Capital or Revenue,Directorate,SERCOP High Level Category,SERCOP Detailed Category,Transaction Number,Date,Service Area,Expenses Type,Amount,Supplier Name
Revenue,Place,Cultural and Related Services,Open Spaces,5105683782,20.04.2016,Rights of Way Operations,Payment to Private Contractors,560,REDACTED PERSONAL DATA
Revenue,Place,Cultural and Related Services,Open Spaces,5105683780,20.04.2016,Rights of Way Operations,Payment to Private Contractors,560,REDACTED PERSONAL DATA
Revenue,Childrens Services,Children's & Education Services,Family Support Services,5105684891,29.04.2016,S17 Disabled Children,Support Children,540,REDACTED PERSONAL DATA
Revenue,Childrens Services,Children's & Education Services,Other Education and Community Budget,5105684521,27.04.2016,Workforce Development - Early Years,Training,"1,900.00",REDACTED PERSONAL DATA
Revenue,Childrens Services,Children's & Education Services,Other Education and Community Budget,5105684521,27.04.2016,Workforce Development - Early Years,Training,369,REDACTED PERSONAL DATA
Revenue,Childrens Services,Children's & Education Services,Safeguarding Children/Young Peoples Svs,5105682942,20.04.2016,LSCB (Local Safeguarding Childrens Board),Consultants Fees,"5,775.00",REDACTED PERSONAL DATA
Revenue,Public Health,Public Health,Discretionary,5105681924,06.04.2016,My Life a Full Life Public Health,Consultants Fees,"1,500.00",REDACTED PERSONAL DATA
Revenue,Public Health,Public Health,Discretionary,5105681925,06.04.2016,My Life a Full Life Public Health,Consultants Fees,"2,000.00",REDACTED PERSONAL DATA
Revenue,Childrens Services,Children's & Education Services,Other Education and Community Budget,5105682366,08.04.2016,Home to School Transport,Taxis - Contract Hire,696.66,MICK'S TAXI
Revenue,Childrens Services,Children's & Education Services,Other Education and Community Budget,5105682398,08.04.2016,Home to School Transport,Taxis - Contract Hire,332.01,MICK'S TAXI
Revenue,Resources,Central Services,Support Services,5105684389,27.04.2016,Organisational Development � Leadership,Training,86.05,REDACTED PERSONAL DATA
Revenue,Childrens Services,Children's & Education Services,Other Education and Community Budget,5105684378,27.04.2016,Home to School Transport,Taxis - Contract Hire,465,CLARES CABS
Revenue,Place,Children's & Education Services,Other Education and Community Budget,5105682596,15.04.2016,School Music Service,Professional Services,353,REDACTED PERSONAL DATA
Revenue,Place,Cultural and Related Services,Culture and Heritage,5105682105,08.04.2016,Dinosaur Isle Museum (Sandown Geology),General Materials,100,MISS DOTTY'S CAKES
Revenue,Place,Cultural and Related Services,Service Management and Support Services,5105683752,20.04.2016,WL Training & Recruitment/Personnel,Training,"1,000.00",REDACTED PERSONAL DATA
Revenue,Resources,Central Services,Support Services,5105683818,29.04.2016,ICT Contracts,Computer Maintenance,300,REDACTED PERSONAL DATA
Revenue,Childrens Services,Children's & Education Services,Other Education and Community Budget,5105682026,06.04.2016,Mental Health Pilot,Payment to Private Contractors,"1,600.00",REDACTED PERSONAL DATA
Revenue,Childrens Services,Children's & Education Services,Family Support Services,5105683700,20.04.2016,Short Breaks,Charges from Independent Providers,264,REDACTED PERSONAL DATA
Revenue,Adult Services,Adult Social Care,Central Codes (to be reallocated),5105683759,20.04.2016,Community Outreach,Training,30,JOHN MARSH DRIVING INSTRUCTOR
Revenue,Place,Planning services,Planning Policy,5105685006,29.04.2016,Policy & Conservation,Consultants Fees,"5,041.30",REDACTED PERSONAL DATA
Revenue,Resources,Central Services,Central Services to the Public,5105682379,20.04.2016,Council Tax,Training,"3,850.00",REDACTED PERSONAL DATA
Revenue,Childrens Services,Children's & Education Services,Other Education and Community Budget,5105684303,27.04.2016,Core Programmes,Training,"1,000.00",REDACTED PERSONAL DATA
Revenue,Childrens Services,Children's & Education Services,Children Looked After,5105684494,27.04.2016,Adoption Costs,Professional Services,348.9,REDACTED PERSONAL DATA
Revenue,Childrens Services,Children's & Education Services,Children Looked After,5105684495,27.04.2016,Adoption Costs,Professional Services,-348.9,REDACTED PERSONAL DATA
Revenue,Childrens Services,Children's & Education Services,Children Looked After,5105681764,06.04.2016,Adoption Reform Grant,Charges from Independent Providers,424,REDACTED PERSONAL DATA
Revenue,Childrens Services,Children's & Education Services,Children Looked After,5105682939,20.04.2016,Adoption Reform Grant,Charges from Independent Providers,200,REDACTED PERSONAL DATA
Revenue,Childrens Services,Children's & Education Services,Family Support Services,5105681843,01.04.2016,Short Breaks,Charges from Independent Providers,176,REDACTED PERSONAL DATA
Revenue,Childrens Services,Children's & Education Services,Special Schools & Alternative Provision,5105685033,29.04.2016,Island Learning Centre,Bought in Prof Services - Curriculum (Schools),"1,075.00",ISLAND EQUUS
Revenue,Childrens Services,Children's & Education Services,Special Schools & Alternative Provision,5105685025,29.04.2016,Island Learning Centre,Bought in Prof Services - Curriculum (Schools),"1,325.00",ISLAND EQUUS
Revenue,Childrens Services,Children's & Education Services,Safeguarding Children/Young Peoples Svs,5105681950,20.04.2016,Referral & Assessment,Agency staff,"1,665.00",M.EL.H LIMITED
Revenue,Childrens Services,Children's & Education Services,Safeguarding Children/Young Peoples Svs,5105681949,20.04.2016,Referral & Assessment,Agency staff,"1,665.00",M.EL.H LIMITED
Revenue,Place,Highways and Transport Services,Traffic Management and Road Safety,5105684513,27.04.2016,Road Safety,Professional Services,200,REDACTED PERSONAL DATA
Capital,Place,Capital,Capital,5105682009,06.04.2016,Highways transport capital,Payment to Contractors - Capital,560,REDACTED PERSONAL DATA
Revenue,Place,Cultural and Related Services,Culture and Heritage,5105682123,06.04.2016,Dinosaur Isle Museum (Sandown Geology),General Materials,300,REDACTED PERSONAL DATA
Revenue,Place,Housing Services,Homelessness,5105683899,22.04.2016,Leaseholds by LA,Accommodation Costs - Leaseholder Payments,695.89,REDACTED PERSONAL DATA
Revenue,Place,Housing Services,Homelessness,5105683899,22.04.2016,Leaseholds by LA,Accommodation Costs - Leaseholder Payments,695.89,REDACTED PERSONAL DATA
Revenue,Place,Housing Services,Homelessness,5105683899,22.04.2016,Leaseholds by LA,Accommodation Costs - Leaseholder Payments,695.89,REDACTED PERSONAL DATA
Revenue,Place,Housing Services,Homelessness,5105683899,22.04.2016,Leaseholds by LA,Accommodation Costs - Leaseholder Payments,695.89,REDACTED PERSONAL DATA
Revenue,Place,Housing Services,Homelessness,5105683899,22.04.2016,Leaseholds by LA,Accommodation Costs - Leaseholder Payments,695.89,REDACTED PERSONAL DATA
Revenue,Place,Cultural and Related Services,Culture and Heritage,5105683803,20.04.2016,Archaeological Reburial,Heritage Acquisitions,230,REDACTED PERSONAL DATA
Revenue,Place,Central Services,Support Services,5105683706,20.04.2016,"County Hall,Newport",Property Services - Planned Maintenance,230,REDACTED PERSONAL DATA
Revenue,Place,Central Services,Support Services,5105683704,20.04.2016,"County Hall,Newport",Property Services - Day to day Maintenance,30,REDACTED PERSONAL DATA
Revenue,Place,Central Services,Support Services,5105684422,27.04.2016,"Civic Centre,Sandown",Property Services - Day to day Maintenance,30,REDACTED PERSONAL DATA
Revenue,Place,Central Services,Support Services,5105684484,27.04.2016,Properties  - Other Properties,Property Services - Day to day Maintenance,60,REDACTED PERSONAL DATA
Revenue,Place,Central Services,Support Services,5105684399,27.04.2016,Non-operational buildings,Property Services - Day to day Maintenance,45,REDACTED PERSONAL DATA
Revenue,Adult Services,Adult Social Care,Learning Disab Supp (to be reallocated),5105684459,27.04.2016,Plean Dene,Minor Works,65,REDACTED PERSONAL DATA
Revenue,Adult Services,Adult Social Care,Learning Disab Supp (to be reallocated),5105681771,06.04.2016,Westminster House,Property Services - Planned Maintenance,160,REDACTED PERSONAL DATA
Revenue,Place,Cultural and Related Services,Library Service,5105683709,20.04.2016,Newport Library,Property Services - Day to day Maintenance,30,REDACTED PERSONAL DATA
Revenue,Place,Cultural and Related Services,Library Service,5105684841,29.04.2016,Ryde Library,Property Services - Day to day Maintenance,60,REDACTED PERSONAL DATA
Revenue,Childrens Services,Children's & Education Services,Children Looked After,5105682603,15.04.2016,Beaulieu House,Minor Works,30,REDACTED PERSONAL DATA
Revenue,Childrens Services,Children's & Education Services,Support Service & Management Costs,5105682605,15.04.2016,Childrens Centres Maintenance,Property Services - Day to day Maintenance,30,REDACTED PERSONAL DATA
Revenue,Place,Fire & Rescue Services,Fire fighting and Rescue Operations,5105683848,20.04.2016,Business Support  - Fire,Delegated Minor Maintenance,45,REDACTED PERSONAL DATA
Revenue,Place,Cultural and Related Services,Culture and Heritage,5105684595,29.04.2016,Medina Theatre,Payment to Private Contractors,55,REDACTED PERSONAL DATA
Revenue,Childrens Services,Children's & Education Services,Other Education and Community Budget,5105684835,29.04.2016,Complaints (Children & Families),Professional Services,140,REDACTED PERSONAL DATA
Revenue,Childrens Services,Children's & Education Services,Other Education and Community Budget,5105684835,29.04.2016,Complaints (Children & Families),Professional Services,105,REDACTED PERSONAL DATA
Revenue,Childrens Services,Children's & Education Services,Other Education and Community Budget,5105684835,29.04.2016,Complaints (Children & Families),Professional Services,7,REDACTED PERSONAL DATA
Revenue,Childrens Services,Children's & Education Services,Other Education and Community Budget,5105684835,29.04.2016,Complaints (Children & Families),Professional Services,42,REDACTED PERSONAL DATA
Revenue,Childrens Services,Children's & Education Services,Special Schools & Alternative Provision,5105684318,27.04.2016,Island Learning Centre,Taxis - Contract Hire,580,LAKE TAXIS
Revenue,Childrens Services,Children's & Education Services,Other Education and Community Budget,5105682516,13.04.2016,Workforce Development - Early Years,Training,600,REDACTED PERSONAL DATA
Revenue,Childrens Services,Children's & Education Services,Other Education and Community Budget,5105682516,13.04.2016,Workforce Development - Early Years,Training,148.6,REDACTED PERSONAL DATA
Revenue,Place,Housing Services,Homelessness,5105683916,22.04.2016,Leaseholds by LA,Accommodation Costs - Leaseholder Payments,866.67,2K PROPERTY
Revenue,Resources,Central Services,Support Services,5105681765,06.04.2016,ICT Contracts,Computer Maintenance,"1,198.00",3TC SOFTWARE LIMITED
Revenue,Resources,Central Services,Support Services,5105682088,06.04.2016,ICT Contracts,Computer Maintenance,-599,3TC SOFTWARE LIMITED
Revenue,Childrens Services,Children's & Education Services,Children Looked After,5105682905,15.04.2016,Purchased Fostering,Charges from Independent Providers,"4,114.50",5 FOSTERING
Revenue,Childrens Services,Children's & Education Services,Children Looked After,5105684590,29.04.2016,Purchased Fostering,Charges from Independent Providers,274.3,5 FOSTERING
Revenue,Place,Cultural and Related Services,Recreation and Sport,5105684578,27.04.2016,Play Development,Hire of facilities,95,5TH RYDE SCOUT GROUP
Revenue,Adult Services,Adult Social Care,Learning Disab Supp (to be reallocated),5105684375,29.04.2016,31 Carter Avenue,Minor Works,75,A & M APPLIANCE CARE
Revenue,Adult Services,Adult Social Care,Learning Disab Supp (to be reallocated),5105684374,27.04.2016,40 Venner Avenue,Minor Works,200.15,A & M APPLIANCE CARE
Revenue,Adult Services,Adult Social Care,Central Codes (to be reallocated),5105682969,20.04.2016,Adelaide Resource Centre,Consumable Cleaning Materials,249,A & M APPLIANCE CARE
Revenue,Adult Services,Adult Social Care,Central Codes (to be reallocated),5105682970,20.04.2016,Gouldings Resource Centre,Consumable Cleaning Materials,52,A & M APPLIANCE CARE
Revenue,Adult Services,Adult Social Care,Central Codes (to be reallocated),5105684377,27.04.2016,Gouldings Resource Centre,Consumable Cleaning Materials,150,A & M APPLIANCE CARE
Revenue,Adult Services,Adult Social Care,Central Codes (to be reallocated),5105683698,20.04.2016,Gouldings Resource Centre,Property Services - Day to day Maintenance,55,A & M APPLIANCE CARE
Revenue,Adult Services,Adult Social Care,Central Codes (to be reallocated),5105682971,20.04.2016,Gouldings Resource Centre,Maintenance of Operational Equipment,150.62,A & M APPLIANCE CARE
Revenue,Place,Cultural and Related Services,Culture and Heritage,5105682104,08.04.2016,Dinosaur Isle Museum (Sandown Geology),Operational Equipment,250,REDACTED PERSONAL DATA
Revenue,Childrens Services,Children's & Education Services,Children Looked After,5105682638,15.04.2016,Special Guardianship Order Costs,Support Children,168.39,REDACTED PERSONAL DATA
Revenue,Childrens Services,Children's & Education Services,Children Looked After,5105682638,15.04.2016,Special Guardianship Order Costs,Support Children,207.73,REDACTED PERSONAL DATA
Revenue,Childrens Services,Children's & Education Services,Children Looked After,5105682186,08.04.2016,Special Guardianship Order Costs,Support Children,168.39,REDACTED PERSONAL DATA
Revenue,Childrens Services,Children's & Education Services,Children Looked After,5105682186,08.04.2016,Special Guardianship Order Costs,Support Children,207.73,REDACTED PERSONAL DATA
Revenue,Childrens Services,Children's & Education Services,Children Looked After,5105683969,22.04.2016,Special Guardianship Order Costs,Support Children,168.39,REDACTED PERSONAL DATA
Revenue,Childrens Services,Children's & Education Services,Children Looked After,5105683969,22.04.2016,Special Guardianship Order Costs,Support Children,207.73,REDACTED PERSONAL DATA
Revenue,Childrens Services,Children's & Education Services,Children Looked After,5105684634,29.04.2016,Special Guardianship Order Costs,Support Children,168.39,REDACTED PERSONAL DATA
Revenue,Childrens Services,Children's & Education Services,Children Looked After,5105684634,29.04.2016,Special Guardianship Order Costs,Support Children,207.73,REDACTED PERSONAL DATA
Revenue,Childrens Services,Children's & Education Services,Children Looked After,5105682700,15.04.2016,Leaving Care Costs,Support Children,120.89,REDACTED PERSONAL DATA
Revenue,Childrens Services,Children's & Education Services,Children Looked After,5105682249,08.04.2016,Leaving Care Costs,Support Children,120.89,REDACTED PERSONAL DATA
Revenue,Childrens Services,Children's & Education Services,Children Looked After,5105684696,29.04.2016,Leaving Care Costs,Support Children,120.89,REDACTED PERSONAL DATA
Revenue,Childrens Services,Children's & Education Services,Children Looked After,5105684062,22.04.2016,Leaving Care Costs,Support Children,120.89,REDACTED PERSONAL DATA
Revenue,Childrens Services,Children's & Education Services,Children Looked After,5105682249,08.04.2016,Leaving Care Costs,Accommodation Costs - Service Users,68.5,REDACTED PERSONAL DATA
Revenue,Childrens Services,Children's & Education Services,Children Looked After,5105682700,15.04.2016,Leaving Care Costs,Accommodation Costs - Service Users,68.5,REDACTED PERSONAL DATA
Revenue,Childrens Services,Children's & Education Services,Children Looked After,5105684062,22.04.2016,Leaving Care Costs,Accommodation Costs - Service Users,68.5,REDACTED PERSONAL DATA
Revenue,Childrens Services,Children's & Education Services,Children Looked After,5105684696,29.04.2016,Leaving Care Costs,Accommodation Costs - Service Users,68.5,REDACTED PERSONAL DATA
Revenue,Place,Housing Services,Homelessness,5105683911,22.04.2016,Leaseholds by LA,Accommodation Costs - Leaseholder Payments,510.25,REDACTED PERSONAL DATA
Revenue,Place,Housing Services,Homelessness,5105683911,22.04.2016,Leaseholds by LA,Accommodation Costs - Leaseholder Payments,510.25,REDACTED PERSONAL DATA
Revenue,Place,Housing Services,Homelessness,5105683911,22.04.2016,Leaseholds by LA,Accommodation Costs - Leaseholder Payments,510.25,REDACTED PERSONAL DATA
Revenue,Place,Housing Services,Homelessness,5105683911,22.04.2016,Leaseholds by LA,Accommodation Costs - Leaseholder Payments,510.25,REDACTED PERSONAL DATA
Revenue,Place,Housing Services,Homelessness,5105683911,22.04.2016,Leaseholds by LA,Accommodation Costs - Leaseholder Payments,510.25,REDACTED PERSONAL DATA
Revenue,Place,Housing Services,Homelessness,5105683911,22.04.2016,Leaseholds by LA,Accommodation Costs - Leaseholder Payments,510.25,REDACTED PERSONAL DATA
Revenue,Childrens Services,Children's & Education Services,Children Looked After,5105684870,29.04.2016,Support for Looked After Children - Disabled Childrens Team,Charges from Independent Providers,513,REDACTED PERSONAL DATA
Revenue,Childrens Services,Children's & Education Services,Children Looked After,5105684871,29.04.2016,Support for Looked After Children - Disabled Childrens Team,Charges from Independent Providers,0,REDACTED PERSONAL DATA
Revenue,Childrens Services,Children's & Education Services,Children Looked After,5105682167,08.04.2016,Adoption Costs,Support Children,225.83,REDACTED PERSONAL DATA
Revenue,Childrens Services,Children's & Education Services,Children Looked After,5105682620,15.04.2016,Adoption Costs,Support Children,225.83,REDACTED PERSONAL DATA
Revenue,Childrens Services,Children's & Education Services,Children Looked After,5105683950,22.04.2016,Adoption Costs,Support Children,225.83,REDACTED PERSONAL DATA
Revenue,Childrens Services,Children's & Education Services,Children Looked After,5105684616,29.04.2016,Adoption Costs,Support Children,225.83,REDACTED PERSONAL DATA
Revenue,Childrens Services,Children's & Education Services,Children Looked After,5105682220,08.04.2016,In-house Fostering,Boarding Out Allowances,249.15,REDACTED PERSONAL DATA
Revenue,Childrens Services,Children's & Education Services,Children Looked After,5105682220,08.04.2016,In-house Fostering,Boarding Out Allowances,164.52,REDACTED PERSONAL DATA
Revenue,Childrens Services,Children's & Education Services,Children Looked After,5105682672,15.04.2016,In-house Fostering,Boarding Out Allowances,249.15,REDACTED PERSONAL DATA
Revenue,Childrens Services,Children's & Education Services,Children Looked After,5105682672,15.04.2016,In-house Fostering,Boarding Out Allowances,164.52,REDACTED PERSONAL DATA
Revenue,Childrens Services,Children's & Education Services,Children Looked After,5105684026,22.04.2016,In-house Fostering,Boarding Out Allowances,249.15,REDACTED PERSONAL DATA
Revenue,Childrens Services,Children's & Education Services,Children Looked After,5105684668,29.04.2016,In-house Fostering,Boarding Out Allowances,249.15,REDACTED PERSONAL DATA
Revenue,Childrens Services,Children's & Education Services,Children Looked After,5105684668,29.04.2016,In-house Fostering,Boarding Out Allowances,164.52,REDACTED PERSONAL DATA
Revenue,Childrens Services,Children's & Education Services,Children Looked After,5105684026,22.04.2016,In-house Fostering,Boarding Out Allowances,164.52,REDACTED PERSONAL DATA
Revenue,Place,Housing Services,Homelessness,5105683913,22.04.2016,Leaseholds by LA,Accommodation Costs - Leaseholder Payments,780,REDACTED PERSONAL DATA
Revenue,Place,Housing Services,Homelessness,5105683902,22.04.2016,Leaseholds by LA,Accommodation Costs - Leaseholder Payments,649.83,REDACTED PERSONAL DATA
Revenue,Place,Housing Services,Homelessness,5105683902,22.04.2016,Leaseholds by LA,Accommodation Costs - Leaseholder Payments,700,REDACTED PERSONAL DATA
Revenue,Place,Housing Services,Homelessness,5105683902,22.04.2016,Leaseholds by LA,Accommodation Costs - Leaseholder Payments,789.01,REDACTED PERSONAL DATA
Revenue,Place,Housing Services,Homelessness,5105683902,22.04.2016,Leaseholds by LA,Accommodation Costs - Leaseholder Payments,835.08,REDACTED PERSONAL DATA
Revenue,Adult Services,Adult Social Care,Physical Support - older people (65+),5105683114,20.04.2016,Physical Support Residential 65+,Charges from Independent Providers,"2,143.40",ACACIA CARE HOME
Revenue,Adult Services,Adult Social Care,Physical Support - older people (65+),5105683114,20.04.2016,Physical Support Residential 65+,Charges from Independent Providers,"1,740.76",ACACIA CARE HOME
Revenue,Adult Services,Adult Social Care,Physical Support - older people (65+),5105683114,20.04.2016,Physical Support Residential 65+,Charges from Independent Providers,"1,740.76",ACACIA CARE HOME
Revenue,Adult Services,Adult Social Care,Support - Memory /Cognition-older people (65+),5105683114,20.04.2016,Memory & Cognition Residential 65+,Charges from Independent Providers,"1,823.36",ACACIA CARE HOME
Revenue,Adult Services,Adult Social Care,Social Support - Support for Carer,5105683940,22.04.2016,Carers Residential,Charges from Independent Providers,520.96,ACACIA CARE HOME
Revenue,Place,Environmental & Regulatory Services,Regulatory Services,5105683708,20.04.2016,Licensing Services,Professional Services,36,ACCESS PERSONAL CHECKING SERVICES LTD
Revenue,Place,Environmental & Regulatory Services,Regulatory Services,5105683708,20.04.2016,Licensing Services,Professional Services,264,ACCESS PERSONAL CHECKING SERVICES LTD
Revenue,Adult Services,Adult Social Care,Assistive Equipment & Technology,5105684998,29.04.2016,S75 Integrated Community Equipment Store,Operational Equipment,122,ACCORA  LIMITED
Revenue,Adult Services,Adult Social Care,Assistive Equipment & Technology,5105684998,29.04.2016,S75 Integrated Community Equipment Store,Operational Equipment,62,ACCORA  LIMITED
Revenue,Place,Highways and Transport Services,Public Transport,5105684507,27.04.2016,Concessionary Fares- Over 60s,Payment to Private Contractors,"5,000.00",ACT -APPLIED CARD TECHNOLOGIES LTD
Revenue,Resources,Central Services,Support Services,5105681790,01.04.2016,Litigation Costs,Legal Fees - Other Parties,480,"COLLEGE CHAMBERS, BARRISTERS"
Revenue,Resources,Central Services,Support Services,5105682917,15.04.2016,Litigation Costs,Legal Fees - Other Parties,480,"COLLEGE CHAMBERS, BARRISTERS"
Revenue,Resources,Central Services,Support Services,5105684497,27.04.2016,Litigation Costs,Legal Fees - Other Parties,480,"COLLEGE CHAMBERS, BARRISTERS"
Revenue,Place,Fire & Rescue Services,Fire fighting and Rescue Operations,5105685026,29.04.2016,Fire Technical Support,Vehicle Maintenance Costs,40,ADAMS MOREY LTD
Revenue,Place,Fire & Rescue Services,Fire fighting and Rescue Operations,5105685031,29.04.2016,Fire Technical Support,Vehicle Maintenance Costs,14.5,ADAMS MOREY LTD
Revenue,Place,Fire & Rescue Services,Fire fighting and Rescue Operations,5105685008,29.04.2016,Fire Technical Support,Vehicle Maintenance Costs,21.75,ADAMS MOREY LTD
Revenue,Place,Fire & Rescue Services,Fire fighting and Rescue Operations,5105682545,13.04.2016,Fire Technical Support,Vehicle Maintenance Costs,157.38,ADAMS MOREY LTD
Revenue,Place,Fire & Rescue Services,Fire fighting and Rescue Operations,5105682546,13.04.2016,Fire Technical Support,Vehicle Maintenance Costs,70.39,ADAMS MOREY LTD
Revenue,Place,Fire & Rescue Services,Fire fighting and Rescue Operations,5105683720,20.04.2016,Fire Technical Support,Vehicle Maintenance Costs,36.76,ADAMS MOREY LTD
Revenue,Place,Fire & Rescue Services,Fire fighting and Rescue Operations,5105683720,20.04.2016,Fire Technical Support,Vehicle Maintenance Costs,19.02,ADAMS MOREY LTD
Revenue,Place,Fire & Rescue Services,Fire fighting and Rescue Operations,5105683720,20.04.2016,Fire Technical Support,Vehicle Maintenance Costs,25.32,ADAMS MOREY LTD
Revenue,Place,Fire & Rescue Services,Fire fighting and Rescue Operations,5105683720,20.04.2016,Fire Technical Support,Vehicle Maintenance Costs,17.25,ADAMS MOREY LTD
Revenue,Place,Fire & Rescue Services,Fire fighting and Rescue Operations,5105683720,20.04.2016,Fire Technical Support,Vehicle Maintenance Costs,6.75,ADAMS MOREY LTD
Revenue,Place,Fire & Rescue Services,Fire fighting and Rescue Operations,5105683720,20.04.2016,Fire Technical Support,Vehicle Maintenance Costs,34.3,ADAMS MOREY LTD
Revenue,Place,Fire & Rescue Services,Fire fighting and Rescue Operations,5105683720,20.04.2016,Fire Technical Support,Vehicle Maintenance Costs,3.1,ADAMS MOREY LTD
Revenue,Place,Fire & Rescue Services,Fire fighting and Rescue Operations,5105683777,20.04.2016,Fire Technical Support,Vehicle Maintenance Costs,285.34,ADAMS MOREY LTD
Revenue,Place,Fire & Rescue Services,Fire fighting and Rescue Operations,5105682544,13.04.2016,Fire Technical Support,Vehicle Maintenance Costs,100,ADAMS MOREY LTD
Revenue,Place,Fire & Rescue Services,Fire fighting and Rescue Operations,5105682544,13.04.2016,Fire Technical Support,Vehicle Maintenance Costs,10.19,ADAMS MOREY LTD
Revenue,Place,Fire & Rescue Services,Fire fighting and Rescue Operations,5105682548,13.04.2016,Fire Technical Support,Vehicle Maintenance Costs,14.5,ADAMS MOREY LTD
Revenue,Childrens Services,Children's & Education Services,Special Schools & Alternative Provision,5105683707,20.04.2016,Island Learning Centre,Agency staff,"2,740.00",A-DAY CONSULTANTS LTD
Revenue,Childrens Services,Children's & Education Services,Special Schools & Alternative Provision,5105681737,01.04.2016,Island Learning Centre,Agency staff,"3,360.00",A-DAY CONSULTANTS LTD
Revenue,Adult Services,Adult Social Care,Physical Support - older people (65+),5105683001,20.04.2016,Physical Support Residential 65+,Charges from Independent Providers,"1,812.44",ADIEMUS CARE LTD
Revenue,Place,Environmental & Regulatory Services,Flood Defence and Land Drainage,5105682496,13.04.2016,"Flood Grant, Planning",Payment to Private Contractors,"3,700.00",AECOM
Revenue,Place,Cultural and Related Services,Recreation and Sport,5105682547,13.04.2016,Medina Leisure Centre,Maintenance of Operational Equipment,440,AIRSPACE SOLUTUTIONS LTD
Revenue,Place,Central Services,Support Services,5105684569,29.04.2016,"Seaclose Offices, Newport",Property Services - Day to day Maintenance,150,AIRTEK SERVICES IOW LTD
Revenue,Place,Cultural and Related Services,Recreation and Sport,5105684819,29.04.2016,The Heights,Property Services - Day to day Maintenance,495,AIRTEK SERVICES IOW LTD
Revenue,Place,Cultural and Related Services,Recreation and Sport,5105681778,06.04.2016,Medina Leisure Centre,Property Services - Day to day Maintenance,190,AIRTEK SERVICES IOW LTD
Revenue,Childrens Services,Children's & Education Services,Safeguarding Children/Young Peoples Svs,5105681835,15.04.2016,LSCB (Local Safeguarding Childrens Board),Professional Services,"6,395.00",ALAN BEDFORD CONSULTING
Revenue,Place,Fire & Rescue Services,Fire fighting and Rescue Operations,5105684316,27.04.2016,Fire Technical Support,Vehicle Maintenance Costs,67.55,ALBANY FARM & G MACHINERY LTD
Revenue,Place,Cultural and Related Services,Culture and Heritage,5105684951,29.04.2016,Dinosaur Isle Museum (Sandown Geology),Stock Purchases,261.6,ALLSORTED LTD
Revenue,Place,Cultural and Related Services,Culture and Heritage,5105684951,29.04.2016,Dinosaur Isle Museum (Sandown Geology),Stock Purchases,18.75,ALLSORTED LTD
Revenue,Place,Cultural and Related Services,Culture and Heritage,5105684951,29.04.2016,Dinosaur Isle Museum (Sandown Geology),Stock Purchases,51.84,ALLSORTED LTD
Revenue,Place,Cultural and Related Services,Culture and Heritage,5105684951,29.04.2016,Dinosaur Isle Museum (Sandown Geology),Stock Purchases,1.8,ALLSORTED LTD
Revenue,Place,Cultural and Related Services,Culture and Heritage,5105684951,29.04.2016,Dinosaur Isle Museum (Sandown Geology),Stock Purchases,3.55,ALLSORTED LTD
Revenue,Place,Cultural and Related Services,Culture and Heritage,5105684951,29.04.2016,Dinosaur Isle Museum (Sandown Geology),Stock Purchases,18.05,ALLSORTED LTD
Revenue,Place,Cultural and Related Services,Culture and Heritage,5105684951,29.04.2016,Dinosaur Isle Museum (Sandown Geology),Stock Purchases,5.5,ALLSORTED LTD
Revenue,Place,Cultural and Related Services,Culture and Heritage,5105684951,29.04.2016,Dinosaur Isle Museum (Sandown Geology),Stock Purchases,20.3,ALLSORTED LTD
Revenue,Place,Highways and Transport Services,Public Transport,5105682975,20.04.2016,Transport Fleet Administration,Vehicle Fuel Costs,"7,301.05",ALLSTAR BUSINESS SOLUTIONS LTD
Revenue,Childrens Services,Children's & Education Services,Family Support Services,5105681799,06.04.2016,S17 Disabled Children,Transport of Clients,106,ALPHA (IOW) LTD
Revenue,Childrens Services,Children's & Education Services,Management & Support Services,5105682091,20.04.2016,"Speech, Language and Communication",Transport of Clients,108.24,ALPHA (IOW) LTD
Revenue,Childrens Services,Children's & Education Services,Management & Support Services,5105682091,20.04.2016,"Speech, Language and Communication",Transport of Clients,80,ALPHA (IOW) LTD
Revenue,Childrens Services,Children's & Education Services,Management & Support Services,5105682091,20.04.2016,"Speech, Language and Communication",Transport of Clients,336,ALPHA (IOW) LTD
Revenue,Childrens Services,Children's & Education Services,Management & Support Services,5105682091,20.04.2016,Special Educational Needs Transport,Taxis - Contract Hire,130,ALPHA (IOW) LTD
Revenue,Childrens Services,Children's & Education Services,Management & Support Services,5105682091,20.04.2016,Special Educational Needs Transport,Taxis - Contract Hire,92,ALPHA (IOW) LTD
Revenue,Childrens Services,Children's & Education Services,Management & Support Services,5105682091,20.04.2016,Special Educational Needs Transport,Taxis - Contract Hire,246.28,ALPHA (IOW) LTD
Revenue,Childrens Services,Children's & Education Services,Management & Support Services,5105682091,20.04.2016,Special Educational Needs Transport,Taxis - Contract Hire,369.4,ALPHA (IOW) LTD
Revenue,Childrens Services,Children's & Education Services,Management & Support Services,5105682091,20.04.2016,Special Educational Needs Transport,Taxis - Contract Hire,80.8,ALPHA (IOW) LTD
Revenue,Childrens Services,Children's & Education Services,Management & Support Services,5105682091,20.04.2016,Special Educational Needs Transport,Taxis - Contract Hire,226.24,ALPHA (IOW) LTD
Revenue,Childrens Services,Children's & Education Services,Management & Support Services,5105682091,20.04.2016,Special Educational Needs Transport,Taxis - Contract Hire,360,ALPHA (IOW) LTD
Revenue,Childrens Services,Children's & Education Services,Management & Support Services,5105682091,20.04.2016,Special Educational Needs Transport,Taxis - Contract Hire,360,ALPHA (IOW) LTD
Revenue,Childrens Services,Children's & Education Services,Management & Support Services,5105682091,20.04.2016,Special Educational Needs Transport,Taxis - Contract Hire,320.68,ALPHA (IOW) LTD
Revenue,Childrens Services,Children's & Education Services,Management & Support Services,5105682091,20.04.2016,Special Educational Needs Transport,Taxis - Contract Hire,272,ALPHA (IOW) LTD
Revenue,Childrens Services,Children's & Education Services,Management & Support Services,5105682091,20.04.2016,Special Educational Needs Transport,Taxis - Contract Hire,108.24,ALPHA (IOW) LTD
Revenue,Childrens Services,Children's & Education Services,Management & Support Services,5105682091,20.04.2016,Special Educational Needs Transport,Taxis - Contract Hire,248,ALPHA (IOW) LTD
Revenue,Childrens Services,Children's & Education Services,Management & Support Services,5105682091,20.04.2016,Special Educational Needs Transport,Taxis - Contract Hire,80,ALPHA (IOW) LTD
Revenue,Childrens Services,Children's & Education Services,Management & Support Services,5105682091,20.04.2016,Special Educational Needs Transport,Taxis - Contract Hire,160,ALPHA (IOW) LTD
Revenue,Childrens Services,Children's & Education Services,Other Education and Community Budget,5105682091,20.04.2016,Home to School Transport,Taxis - Contract Hire,346.04,ALPHA (IOW) LTD
Revenue,Childrens Services,Children's & Education Services,Other Education and Community Budget,5105682091,20.04.2016,Home to School Transport,Taxis - Contract Hire,48,ALPHA (IOW) LTD
Revenue,Childrens Services,Children's & Education Services,Other Education and Community Budget,5105682091,20.04.2016,Home to School Transport,Taxis - Contract Hire,373.08,ALPHA (IOW) LTD
Revenue,Childrens Services,Children's & Education Services,Other Education and Community Budget,5105682091,20.04.2016,Home to School Transport,Taxis - Contract Hire,242.4,ALPHA (IOW) LTD
Revenue,Childrens Services,Children's & Education Services,Other Education and Community Budget,5105682091,20.04.2016,Home to School Transport,Taxis - Contract Hire,359.72,ALPHA (IOW) LTD
Revenue,Childrens Services,Children's & Education Services,Other Education and Community Budget,5105682091,20.04.2016,Home to School Transport,Taxis - Contract Hire,344.92,ALPHA (IOW) LTD
Revenue,Childrens Services,Children's & Education Services,Other Education and Community Budget,5105682091,20.04.2016,Home to School Transport,Taxis - Contract Hire,80,ALPHA (IOW) LTD
Revenue,Childrens Services,Children's & Education Services,Other Education and Community Budget,5105682091,20.04.2016,Home to School Transport,Taxis - Contract Hire,96,ALPHA (IOW) LTD
Revenue,Childrens Services,Children's & Education Services,Other Education and Community Budget,5105682091,20.04.2016,Home to School Transport,Taxis - Contract Hire,280,ALPHA (IOW) LTD
Revenue,Childrens Services,Children's & Education Services,Other Education and Community Budget,5105682091,20.04.2016,Home to School Transport,Taxis - Contract Hire,172,ALPHA (IOW) LTD
Revenue,Adult Services,Adult Social Care,Learning Disability Suppt-adults (18-64),5105683041,20.04.2016,Learning Disability Residential 18-64,Charges from Independent Providers,"3,836.84",ALPHAGRANGE LTD
Revenue,Childrens Services,Children's & Education Services,Other Education and Community Budget,5105684803,29.04.2016,Home to School Transport,Taxis - Contract Hire,576,AMAR CABS OF NEWPORT
Revenue,Childrens Services,Children's & Education Services,Management & Support Services,5105684791,29.04.2016,Pre 16 Independ. & Non-Maint. Special Schls & Independ. Specialist Provision,Transport of Clients,675,AMAR EXCLUSIVES
Revenue,Place,Environmental & Regulatory Services,Waste Disposal,5105685124,29.04.2016,Waste Disposal - Amey Contract,Waste Contractors,"330,835.43",AMEY (IOW) SPV LIMITED
Revenue,Place,Environmental & Regulatory Services,Waste Collection,5105685124,29.04.2016,Waste Collection - Amey Contract,Waste Contractors,"284,758.30",AMEY (IOW) SPV LIMITED
Revenue,Place,Environmental & Regulatory Services,Recycling,5105685124,29.04.2016,Waste Recycling - Amey Contract,Waste Contractors,"67,249.89",AMEY (IOW) SPV LIMITED
Capital,Place,Capital,Capital,5105684245,22.04.2016,Waste Capital Programme,Payment to Contractors - Capital,"196,091.91",AMEY (IOW) SPV LIMITED
Revenue,Adult Services,Adult Social Care,Physical Support - older people (65+),5105683043,20.04.2016,Physical Support Residential 65+,Charges from Independent Providers,"1,740.76",ANCONA CARE HOME
Revenue,Adult Services,Adult Social Care,Physical Support - older people (65+),5105683043,20.04.2016,Physical Support Residential 65+,Charges from Independent Providers,"1,740.76",ANCONA CARE HOME
Revenue,Adult Services,Adult Social Care,Physical Support - older people (65+),5105683043,20.04.2016,Physical Support Residential 65+,Charges from Independent Providers,"1,823.36",ANCONA CARE HOME
Revenue,Adult Services,Adult Social Care,Physical Support - older people (65+),5105683043,20.04.2016,Physical Support Residential 65+,Charges from Independent Providers,"1,740.76",ANCONA CARE HOME
Revenue,Place,Fire & Rescue Services,Fire fighting and Rescue Operations,5105682952,20.04.2016,Fire Technical Support,Vehicle Maintenance Costs,12.5,ANGLOCO LTD
Revenue,Place,Fire & Rescue Services,Fire fighting and Rescue Operations,5105682952,20.04.2016,Fire Technical Support,Vehicle Maintenance Costs,13.67,ANGLOCO LTD
Revenue,Place,Fire & Rescue Services,Fire fighting and Rescue Operations,5105682952,20.04.2016,Fire Technical Support,Vehicle Maintenance Costs,184,ANGLOCO LTD
Revenue,Place,Fire & Rescue Services,Fire fighting and Rescue Operations,5105683684,20.04.2016,Fire Technical Support,Vehicle Maintenance Costs,184,ANGLOCO LTD
Revenue,Place,Fire & Rescue Services,Fire fighting and Rescue Operations,5105684855,29.04.2016,Fire Technical Support,Vehicle Maintenance Costs,"2,485.80",ANGLOCO LTD
Revenue,Place,Fire & Rescue Services,Fire fighting and Rescue Operations,5105684855,29.04.2016,Fire Technical Support,Vehicle Maintenance Costs,"2,485.80",ANGLOCO LTD
Revenue,Place,Fire & Rescue Services,Fire fighting and Rescue Operations,5105684855,29.04.2016,Fire Technical Support,Vehicle Maintenance Costs,320.24,ANGLOCO LTD
Revenue,Place,Fire & Rescue Services,Fire fighting and Rescue Operations,5105684855,29.04.2016,Fire Technical Support,Vehicle Maintenance Costs,320.24,ANGLOCO LTD
Revenue,Place,Fire & Rescue Services,Fire fighting and Rescue Operations,5105683814,20.04.2016,Fire Technical Support,Operational Equipment,"1,200.00",ANGUS FIRE LTD
Revenue,Place,Fire & Rescue Services,Fire fighting and Rescue Operations,5105683814,20.04.2016,Fire Technical Support,Operational Equipment,383,ANGUS FIRE LTD
Revenue,Place,Fire & Rescue Services,Fire fighting and Rescue Operations,5105683814,20.04.2016,Fire Technical Support,Courier Costs,25,ANGUS FIRE LTD
Revenue,Resources,Central Services,Support Services,5105684097,22.04.2016,Staff Benefits,Payment to Private Contractors,225,REDACTED PERSONAL DATA
Revenue,Childrens Services,Children's & Education Services,Management & Support Services,5105682012,06.04.2016,Dyslexia Support,Consultants Fees,"1,050.00",ANOTHER WAY AROUND
Revenue,Place,Central Services,Support Services,5105682418,08.04.2016,Print Unit,Printing Costs,30.9,ANTALIS MCNAUGHTON
Revenue,Place,Central Services,Support Services,5105682930,20.04.2016,Print Unit,Printing Costs,42.18,ANTALIS MCNAUGHTON
Revenue,Place,Central Services,Support Services,5105682783,15.04.2016,Print Unit,Printing Costs,121.5,ANTALIS MCNAUGHTON
Revenue,Place,Central Services,Support Services,5105682418,08.04.2016,Print Unit,Printing Costs,30.1,ANTALIS MCNAUGHTON
Revenue,Place,Central Services,Support Services,5105682418,08.04.2016,Print Unit,Printing Costs,47.58,ANTALIS MCNAUGHTON
Revenue,Place,Central Services,Support Services,5105682497,22.04.2016,Print Unit,Printing Costs,70.2,ANTALIS MCNAUGHTON
Revenue,Place,Central Services,Support Services,5105682499,22.04.2016,Print Unit,Printing Costs,-70.2,ANTALIS MCNAUGHTON
Revenue,Place,Central Services,Support Services,5105683714,20.04.2016,Print Unit,Printing Costs,60.2,ANTALIS MCNAUGHTON
Revenue,Place,Central Services,Support Services,5105684190,22.04.2016,Print Unit,Printing Costs,98.1,ANTALIS MCNAUGHTON
Revenue,Place,Central Services,Support Services,5105684190,22.04.2016,Print Unit,Printing Costs,24.06,ANTALIS MCNAUGHTON
Revenue,Place,Central Services,Support Services,5105684599,29.04.2016,Print Unit,Printing Costs,109.35,ANTALIS MCNAUGHTON
Revenue,Place,Central Services,Support Services,5105684599,29.04.2016,Print Unit,Printing Costs,90.3,ANTALIS MCNAUGHTON
Revenue,Adult Services,Adult Social Care,Assistive Equipment & Technology,5105682118,06.04.2016,S75 Integrated Community Equipment Store,Operational Equipment,999.75,APOLLO HEALTHCARE TECHNOLOGIES
Revenue,Resources,Central Services,Support Services,5105681785,13.04.2016,County Hall Central Mail Room,Clothing & Laundry,9.71,ARCO LTD
Revenue,Resources,Central Services,Support Services,5105681785,13.04.2016,County Hall Central Mail Room,Clothing & Laundry,1.8,ARCO LTD
Revenue,Adult Services,Adult Social Care,Central Codes (to be reallocated),5105682350,08.04.2016,Community Outreach,Clothing & Laundry,10.89,ARCO LTD
Revenue,Adult Services,Adult Social Care,Central Codes (to be reallocated),5105682350,08.04.2016,Community Outreach,Clothing & Laundry,1.8,ARCO LTD
Revenue,Place,Cultural and Related Services,Recreation and Sport,5105682382,08.04.2016,The Heights,Operational Equipment,-90.8,ARCO LTD
Revenue,Place,Cultural and Related Services,Recreation and Sport,5105682383,08.04.2016,The Heights,Operational Equipment,36.32,ARCO LTD
Revenue,Place,Cultural and Related Services,Recreation and Sport,5105681889,08.04.2016,The Heights,Operational Equipment,54.48,ARCO LTD
Revenue,Place,Cultural and Related Services,Recreation and Sport,5105681970,06.04.2016,The Heights,Clothing & Laundry,111.45,ARCO LTD
Revenue,Place,Cultural and Related Services,Recreation and Sport,5105681889,08.04.2016,Medina Leisure Centre,Operational Equipment,54.48,ARCO LTD
Revenue,Place,Cultural and Related Services,Recreation and Sport,5105682383,08.04.2016,Medina Leisure Centre,Operational Equipment,36.32,ARCO LTD
Revenue,Place,Cultural and Related Services,Recreation and Sport,5105682382,08.04.2016,Medina Leisure Centre,Operational Equipment,-90.8,ARCO LTD
Revenue,Place,Fire & Rescue Services,Fire fighting and Rescue Operations,5105684992,29.04.2016,Fire Technical Support,Stock Purchases,17.95,ARCO LTD
Revenue,Place,Fire & Rescue Services,Fire fighting and Rescue Operations,5105684992,29.04.2016,Fire Technical Support,Stock Purchases,410.2,ARCO LTD
Revenue,Place,Fire & Rescue Services,Fire fighting and Rescue Operations,5105684992,29.04.2016,Fire Technical Support,Stock Purchases,74.85,ARCO LTD
Revenue,Place,Fire & Rescue Services,Fire fighting and Rescue Operations,5105684992,29.04.2016,Fire Technical Support,Stock Purchases,49.9,ARCO LTD
Revenue,Place,Fire & Rescue Services,Fire fighting and Rescue Operations,5105684992,29.04.2016,Fire Technical Support,Stock Purchases,122.22,ARCO LTD
Revenue,Place,Fire & Rescue Services,Fire fighting and Rescue Operations,5105684992,29.04.2016,Fire Technical Support,Stock Purchases,35.52,ARCO LTD
Revenue,Place,Fire & Rescue Services,Fire fighting and Rescue Operations,5105684992,29.04.2016,Fire Technical Support,Stock Purchases,72.74,ARCO LTD
Revenue,Public Health,Public Health,Mandatory,5105682439,13.04.2016,NHS Health Check Programme,Payment to Private Contractors,"1,179.50",ARGYLL HOUSE SURGERY
Revenue,Public Health,Public Health,Mandatory,5105682450,13.04.2016,NHS Health Check Programme,Payment to Private Contractors,97,ARGYLL HOUSE SURGERY
Revenue,Public Health,Public Health,Mandatory,5105682468,13.04.2016,NHS Health Check Programme,Payment to Private Contractors,-366,ARGYLL HOUSE SURGERY
Revenue,Childrens Services,Children's & Education Services,Children Looked After,5105681930,06.04.2016,Beaulieu House,Operational Equipment,"3,011.25",ARJO MED AB LTD
Revenue,Place,Environmental & Regulatory Services,"Cemetery, Cremation & Mortuary Services",5105682554,13.04.2016,Cemeteries Administration,Grounds Maintenance,618.91,ARRETON PARISH COUNCIL
Revenue,Place,Cultural and Related Services,Recreation and Sport,5105681774,01.04.2016,Medina Leisure Centre,Stock Purchases,420.86,KELLOGGS ASA AWARDS SCHEME
Revenue,Adult Services,Adult Social Care,Commissioning & Service Delivery,5105684795,29.04.2016,My Life A Full Life Health Education Wessex Bid 1,Training,550,ASHRIDGE BUSINESS SCHOOL
Revenue,Adult Services,Adult Social Care,Central Codes (to be reallocated),5105684527,27.04.2016,Adelaide Resource Centre,Property Services - Planned Maintenance,662.94,ASSA ABLOY ENTRANCE SYSTEMS LTD
Revenue,Childrens Services,Children's & Education Services,Special Schools & Alternative Provision,5105682095,06.04.2016,Island Learning Centre,Schools Examination Fees,758.4,ASSESSMENT & QUALIFICATION ALLIANCE
Revenue,Place,Planning services,Management & Support Services,5105683870,20.04.2016,Planning Business Support,Training,350,ASTRID DAVIES CONSULTING LTD
Revenue,Place,Fire & Rescue Services,Fire fighting and Rescue Operations,5105683724,20.04.2016,Fire Technical Support,Vehicle Maintenance Costs,122.42,ATS EUROMASTER LTD
Revenue,Place,Fire & Rescue Services,Fire fighting and Rescue Operations,5105683724,20.04.2016,Fire Technical Support,Vehicle Maintenance Costs,63.69,ATS EUROMASTER LTD
Revenue,Place,Fire & Rescue Services,Fire fighting and Rescue Operations,5105683724,20.04.2016,Fire Technical Support,Vehicle Maintenance Costs,241.64,ATS EUROMASTER LTD
Revenue,Place,Fire & Rescue Services,Fire fighting and Rescue Operations,5105683724,20.04.2016,Fire Technical Support,Vehicle Maintenance Costs,768.26,ATS EUROMASTER LTD
Revenue,Adult Services,Adult Social Care,Central Codes (to be reallocated),5105684514,29.04.2016,Transitions Team Residential Care,Charges from Independent Providers,"32,372.90",AUTISM WESSEX
Revenue,Childrens Services,Children's & Education Services,Management & Support Services,5105684514,29.04.2016,Pre 16 Independ. & Non-Maint. Special Schls & Independ. Specialist Provision,Charges from Independent Providers,"16,388.81",AUTISM WESSEX
Revenue,Resources,Housing Services,Housing Benefits Administration,5105682582,15.04.2016,Housing Benefit,Stationery,815.6,AUTOMAIL ENVELOPES LTD
Revenue,Resources,Housing Services,Housing Benefits Administration,5105682133,08.04.2016,Housing Benefit,Stationery,654.5,AUTOMAIL ENVELOPES LTD
Revenue,Resources,Housing Services,Housing Benefits Administration,5105682133,08.04.2016,Housing Benefit,Stationery,80.57,AUTOMAIL ENVELOPES LTD
Revenue,Adult Services,Adult Social Care,Physical Support - older people (65+),5105683016,20.04.2016,Physical Support Residential 65+,Charges from Independent Providers,"2,143.40",AUTUMN HOUSE CARE LTD
Revenue,Adult Services,Adult Social Care,Physical Support - older people (65+),5105683016,20.04.2016,Physical Support Residential 65+,Charges from Independent Providers,"2,143.40",AUTUMN HOUSE CARE LTD
Revenue,Adult Services,Adult Social Care,Physical Support - older people (65+),5105683016,20.04.2016,Physical Support Residential 65+,Charges from Independent Providers,"1,823.36",AUTUMN HOUSE CARE LTD
Revenue,Adult Services,Adult Social Care,Physical Support - older people (65+),5105683016,20.04.2016,Physical Support Residential 65+,Charges from Independent Providers,"1,823.36",AUTUMN HOUSE CARE LTD
Revenue,Adult Services,Adult Social Care,Physical Support - older people (65+),5105683016,20.04.2016,Physical Support Residential 65+,Charges from Independent Providers,"2,143.40",AUTUMN HOUSE CARE LTD
Revenue,Adult Services,Adult Social Care,Support - Memory /Cognition-older people (65+),5105683016,20.04.2016,Memory & Cognition Residential 65+,Charges from Independent Providers,"2,143.40",AUTUMN HOUSE CARE LTD
Revenue,Adult Services,Adult Social Care,Support - Memory /Cognition-older people (65+),5105683016,20.04.2016,Memory & Cognition Residential 65+,Charges from Independent Providers,"2,143.40",AUTUMN HOUSE CARE LTD
Revenue,Adult Services,Adult Social Care,Support - Memory /Cognition-older people (65+),5105683016,20.04.2016,Memory & Cognition Residential 65+,Charges from Independent Providers,"2,143.40",AUTUMN HOUSE CARE LTD
Revenue,Adult Services,Adult Social Care,Support - Memory /Cognition-older people (65+),5105683016,20.04.2016,Memory & Cognition Residential 65+,Charges from Independent Providers,"2,143.40",AUTUMN HOUSE CARE LTD
Revenue,Adult Services,Adult Social Care,Support - Memory /Cognition-older people (65+),5105683016,20.04.2016,Memory & Cognition Residential 65+,Charges from Independent Providers,"2,143.40",AUTUMN HOUSE CARE LTD
Revenue,Adult Services,Adult Social Care,Support - Memory /Cognition-older people (65+),5105683016,20.04.2016,Memory & Cognition Residential 65+,Charges from Independent Providers,"1,823.36",AUTUMN HOUSE CARE LTD
Revenue,Adult Services,Adult Social Care,Support - Memory /Cognition-older people (65+),5105683016,20.04.2016,Memory & Cognition Residential 65+,Charges from Independent Providers,"2,143.40",AUTUMN HOUSE CARE LTD
Revenue,Adult Services,Adult Social Care,Support - Memory /Cognition-older people (65+),5105683016,20.04.2016,Memory & Cognition Residential 65+,Charges from Independent Providers,"2,143.40",AUTUMN HOUSE CARE LTD
Revenue,Adult Services,Adult Social Care,Support - Memory /Cognition-older people (65+),5105683016,20.04.2016,Memory & Cognition Residential 65+,Charges from Independent Providers,"2,143.40",AUTUMN HOUSE CARE LTD
Revenue,Adult Services,Adult Social Care,Support - Memory /Cognition-older people (65+),5105683016,20.04.2016,Memory & Cognition Residential 65+,Charges from Independent Providers,"2,143.40",AUTUMN HOUSE CARE LTD
Revenue,Adult Services,Adult Social Care,Support - Memory /Cognition-older people (65+),5105683016,20.04.2016,Memory & Cognition Residential 65+,Charges from Independent Providers,"1,823.36",AUTUMN HOUSE CARE LTD
Revenue,Adult Services,Adult Social Care,Support - Memory /Cognition-older people (65+),5105683016,20.04.2016,Memory & Cognition Residential 65+,Charges from Independent Providers,"2,143.40",AUTUMN HOUSE CARE LTD
Revenue,Adult Services,Adult Social Care,Support - Memory /Cognition-older people (65+),5105683016,20.04.2016,Memory & Cognition Residential 65+,Charges from Independent Providers,"2,143.40",AUTUMN HOUSE CARE LTD
Revenue,Adult Services,Adult Social Care,Support - Memory /Cognition-older people (65+),5105683016,20.04.2016,Memory & Cognition Residential 65+,Charges from Independent Providers,"1,823.36",AUTUMN HOUSE CARE LTD
Revenue,Adult Services,Adult Social Care,Support - Memory /Cognition-older people (65+),5105683016,20.04.2016,Memory & Cognition Residential 65+,Charges from Independent Providers,"2,143.40",AUTUMN HOUSE CARE LTD
Revenue,Adult Services,Adult Social Care,Support - Memory /Cognition-older people (65+),5105683016,20.04.2016,Memory & Cognition Residential 65+,Charges from Independent Providers,"2,143.40",AUTUMN HOUSE CARE LTD
Revenue,Adult Services,Adult Social Care,Support - Memory /Cognition-older people (65+),5105683016,20.04.2016,Memory & Cognition Residential 65+,Charges from Independent Providers,"2,143.40",AUTUMN HOUSE CARE LTD
Revenue,Adult Services,Adult Social Care,Support - Memory /Cognition-older people (65+),5105683016,20.04.2016,Memory & Cognition Residential 65+,Charges from Independent Providers,"2,143.40",AUTUMN HOUSE CARE LTD
Revenue,Place,Cultural and Related Services,Culture and Heritage,5105684570,27.04.2016,Medina Theatre,Professional Services,"4,052.78",AVALON PROMOTIONS
Revenue,Place,Cultural and Related Services,Service Management and Support Services,5105684601,29.04.2016,Duke of Edingburgh Award,Licences,"1,051.00",AWARD SCHEME LTD
Revenue,Childrens Services,Children's & Education Services,Children Looked After,5105682631,15.04.2016,Leaving Care Costs,Support Children,50,REDACTED PERSONAL DATA
Revenue,Childrens Services,Children's & Education Services,Children Looked After,5105682178,08.04.2016,Leaving Care Costs,Support Children,50,REDACTED PERSONAL DATA
Revenue,Childrens Services,Children's & Education Services,Children Looked After,5105683961,22.04.2016,Leaving Care Costs,Support Children,50,REDACTED PERSONAL DATA
Revenue,Childrens Services,Children's & Education Services,Children Looked After,5105684627,29.04.2016,Leaving Care Costs,Support Children,50,REDACTED PERSONAL DATA
Revenue,Childrens Services,Children's & Education Services,Children Looked After,5105681709,01.04.2016,Leaving Care Costs,Accommodation Costs - Service Users,500,REDACTED PERSONAL DATA
Revenue,Childrens Services,Children's & Education Services,Children Looked After,5105682178,08.04.2016,In-house Fostering,Boarding Out Allowances,164.52,REDACTED PERSONAL DATA
Revenue,Childrens Services,Children's & Education Services,Children Looked After,5105682178,08.04.2016,In-house Fostering,Boarding Out Allowances,150,REDACTED PERSONAL DATA
Revenue,Childrens Services,Children's & Education Services,Children Looked After,5105682178,08.04.2016,In-house Fostering,Boarding Out Allowances,10,REDACTED PERSONAL DATA
Revenue,Childrens Services,Children's & Education Services,Children Looked After,5105682631,15.04.2016,In-house Fostering,Boarding Out Allowances,164.52,REDACTED PERSONAL DATA
Revenue,Childrens Services,Children's & Education Services,Children Looked After,5105682631,15.04.2016,In-house Fostering,Boarding Out Allowances,150,REDACTED PERSONAL DATA
Revenue,Childrens Services,Children's & Education Services,Children Looked After,5105682631,15.04.2016,In-house Fostering,Boarding Out Allowances,10,REDACTED PERSONAL DATA
Revenue,Childrens Services,Children's & Education Services,Children Looked After,5105683961,22.04.2016,In-house Fostering,Boarding Out Allowances,164.52,REDACTED PERSONAL DATA
Revenue,Childrens Services,Children's & Education Services,Children Looked After,5105683961,22.04.2016,In-house Fostering,Boarding Out Allowances,150,REDACTED PERSONAL DATA
Revenue,Childrens Services,Children's & Education Services,Children Looked After,5105683961,22.04.2016,In-house Fostering,Boarding Out Allowances,10,REDACTED PERSONAL DATA
Revenue,Childrens Services,Children's & Education Services,Children Looked After,5105684627,29.04.2016,In-house Fostering,Boarding Out Allowances,164.52,REDACTED PERSONAL DATA
Revenue,Childrens Services,Children's & Education Services,Children Looked After,5105684627,29.04.2016,In-house Fostering,Boarding Out Allowances,150,REDACTED PERSONAL DATA
Revenue,Childrens Services,Children's & Education Services,Children Looked After,5105684627,29.04.2016,In-house Fostering,Boarding Out Allowances,10,REDACTED PERSONAL DATA
Revenue,Childrens Services,Children's & Education Services,Other Education and Community Budget,5105683766,20.04.2016,Branstone Farm Studies Centre,General Materials,65,REDACTED PERSONAL DATA
Revenue,Childrens Services,Children's & Education Services,Other Education and Community Budget,5105683766,20.04.2016,Branstone Farm Studies Centre,General Materials,65,REDACTED PERSONAL DATA
Revenue,Childrens Services,Children's & Education Services,Other Education and Community Budget,5105683705,20.04.2016,Branstone Farm Studies Centre,General Materials,486,REDACTED PERSONAL DATA
Revenue,Adult Services,Adult Social Care,Learning Disability Suppt-adults (18-64),5105683029,20.04.2016,Learning Disability Residential 18-64,Charges from Independent Providers,"2,806.16",REDACTED PERSONAL DATA
Revenue,Adult Services,Adult Social Care,Learning Disability Suppt-adults (18-64),5105683029,20.04.2016,Learning Disability Residential 18-64,Charges from Independent Providers,"1,936.76",REDACTED PERSONAL DATA
Revenue,Adult Services,Adult Social Care,Learning Disability Suppt-adults (18-64),5105683029,20.04.2016,Learning Disability Residential 18-64,Charges from Independent Providers,"1,936.76",REDACTED PERSONAL DATA
Revenue,Place,Housing Services,Homelessness,5105683900,22.04.2016,Leaseholds by LA,Accommodation Costs - Leaseholder Payments,815.49,REDACTED PERSONAL DATA
Revenue,Resources,Central Services,Support Services,5105684021,22.04.2016,Staff Benefits,Payment to Private Contractors,100,REDACTED PERSONAL DATA
Revenue,Resources,Central Services,Support Services,5105684021,22.04.2016,Staff Benefits,Payment to Private Contractors,50,REDACTED PERSONAL DATA
Revenue,Place,Housing Services,Homelessness,5105683904,22.04.2016,Leaseholds by LA,Accommodation Costs - Leaseholder Payments,866.67,REDACTED PERSONAL DATA
Revenue,Place,Housing Services,Homelessness,5105683904,22.04.2016,Leaseholds by LA,Accommodation Costs - Leaseholder Payments,866.67,REDACTED PERSONAL DATA
Revenue,Place,Housing Services,Homelessness,5105683904,22.04.2016,Leaseholds by LA,Accommodation Costs - Leaseholder Payments,888.33,REDACTED PERSONAL DATA
Revenue,Place,Housing Services,Homelessness,5105683904,22.04.2016,Leaseholds by LA,Accommodation Costs - Leaseholder Payments,799.5,REDACTED PERSONAL DATA
Revenue,Place,Central Services,Support Services,5105681855,06.04.2016,"Enterprise House, Newport",Property Services - Day to day Maintenance,100.17,BALFOUR BEATTY
Revenue,Place,Central Services,Support Services,5105681872,20.04.2016,"Enterprise House, Newport",Property Services - Day to day Maintenance,196.45,BALFOUR BEATTY
Revenue,Place,Central Services,Support Services,5105682049,06.04.2016,"Enterprise House, Newport",Property Services - Day to day Maintenance,32.69,BALFOUR BEATTY
Revenue,Place,Central Services,Support Services,5105684833,29.04.2016,"Enterprise House, Newport",Property Services - Day to day Maintenance,44.7,BALFOUR BEATTY
Revenue,Place,Central Services,Support Services,5105681989,15.04.2016,"County Hall,Newport",Property Services - Planned Maintenance,72,BALFOUR BEATTY
Revenue,Place,Central Services,Support Services,5105684794,29.04.2016,"County Hall,Newport",Property Services - Day to day Maintenance,114.55,BALFOUR BEATTY
Revenue,Place,Central Services,Support Services,5105684921,29.04.2016,"County Hall,Newport",Property Services - Day to day Maintenance,48.38,BALFOUR BEATTY
Revenue,Place,Central Services,Support Services,5105684921,29.04.2016,"County Hall,Newport",Property Services - Day to day Maintenance,61.2,BALFOUR BEATTY
Revenue,Place,Central Services,Support Services,5105682041,06.04.2016,"County Hall,Newport",Property Services - Day to day Maintenance,93.59,BALFOUR BEATTY
Revenue,Place,Central Services,Support Services,5105681781,01.04.2016,"County Hall,Newport",Property Services - Day to day Maintenance,70.8,BALFOUR BEATTY
Revenue,Place,Central Services,Support Services,5105681872,20.04.2016,"County Hall,Newport",Property Services - Day to day Maintenance,106.52,BALFOUR BEATTY
Revenue,Place,Central Services,Support Services,5105681872,20.04.2016,"County Hall,Newport",Property Services - Day to day Maintenance,347.47,BALFOUR BEATTY
Revenue,Place,Central Services,Support Services,5105684833,29.04.2016,"Guildhall,Newport",Property Services - Day to day Maintenance,272,BALFOUR BEATTY
Revenue,Place,Central Services,Support Services,5105682356,08.04.2016,"Guildhall,Newport",Property Services - Day to day Maintenance,144.9,BALFOUR BEATTY
Revenue,Place,Central Services,Support Services,5105682356,08.04.2016,"Civic Centre,Sandown",Property Services - Day to day Maintenance,58.5,BALFOUR BEATTY
Revenue,Place,Central Services,Support Services,5105681959,08.04.2016,"Civic Centre,Sandown",Property Services - Day to day Maintenance,57.19,BALFOUR BEATTY
Revenue,Place,Central Services,Support Services,5105681781,01.04.2016,"Jubilee Stores, Newport",Property Services - Day to day Maintenance,160.7,BALFOUR BEATTY
Revenue,Place,Central Services,Support Services,5105684794,29.04.2016,"Jubilee Stores, Newport",Property Services - Day to day Maintenance,176.96,BALFOUR BEATTY
Revenue,Place,Central Services,Support Services,5105682041,06.04.2016,"Seaclose Offices, Newport",Property Services - Day to day Maintenance,87.2,BALFOUR BEATTY
Revenue,Place,Central Services,Support Services,5105682041,06.04.2016,"Seaclose Offices, Newport",Property Services - Day to day Maintenance,81.78,BALFOUR BEATTY
Revenue,Place,Central Services,Support Services,5105684789,29.04.2016,"Westridge, Ryde",Property Services - Day to day Maintenance,49.98,BALFOUR BEATTY
Revenue,Place,Central Services,Support Services,5105681959,08.04.2016,"Westridge, Ryde",Property Services - Planned Maintenance,238,BALFOUR BEATTY
Revenue,Place,Central Services,Support Services,5105684921,29.04.2016,"Westridge, Ryde",Property Services - Day to day Maintenance,33.35,BALFOUR BEATTY
Revenue,Place,Central Services,Support Services,5105681955,06.04.2016,"Westridge, Ryde",Property Services - Day to day Maintenance,238.42,BALFOUR BEATTY
Revenue,Place,Central Services,Support Services,5105681955,06.04.2016,"Westridge, Ryde",Property Services - Day to day Maintenance,105.14,BALFOUR BEATTY
Revenue,Place,Central Services,Support Services,5105684833,29.04.2016,60 Dodnor Lane rechargeable,Security of Buildings,333.68,BALFOUR BEATTY
Capital,Resources,Capital,Capital,5105684474,27.04.2016,Management of Asbestos,Payment to Contractors - Capital,"14,697.00",BALFOUR BEATTY
Revenue,Place,Housing Services,Housing Strategy,5105681770,27.04.2016,Downside Community & Learning Centre,Minor Works,331.92,BALFOUR BEATTY
Revenue,Place,Housing Services,Housing Strategy,5105682358,08.04.2016,Downside Community & Learning Centre,Minor Works,52.5,BALFOUR BEATTY
Revenue,Adult Services,Adult Social Care,Learning Disab Supp (to be reallocated),5105684794,29.04.2016,Overbrook,Minor Works,44.7,BALFOUR BEATTY
Revenue,Adult Services,Adult Social Care,Learning Disab Supp (to be reallocated),5105684833,29.04.2016,Plean Dene,Minor Works,282.36,BALFOUR BEATTY
Revenue,Adult Services,Adult Social Care,Learning Disab Supp (to be reallocated),5105681956,06.04.2016,Plean Dene,Minor Works,54.71,BALFOUR BEATTY
Revenue,Adult Services,Adult Social Care,Learning Disab Supp (to be reallocated),5105684833,29.04.2016,Saxonbury,Minor Works,102.3,BALFOUR BEATTY
Revenue,Adult Services,Adult Social Care,Learning Disab Supp (to be reallocated),5105681872,20.04.2016,40 Venner Avenue,Minor Works,440.12,BALFOUR BEATTY
Revenue,Adult Services,Adult Social Care,Learning Disab Supp (to be reallocated),5105681956,06.04.2016,40 Venner Avenue,Minor Works,108.21,BALFOUR BEATTY
Revenue,Place,Central Services,Support Services,5105681770,27.04.2016,17 Fairlee Road,Property Services - Day to day Maintenance,78.75,BALFOUR BEATTY
Revenue,Place,Central Services,Support Services,5105682043,06.04.2016,17 Fairlee Road,Property Services - Day to day Maintenance,27,BALFOUR BEATTY
Revenue,Place,Central Services,Support Services,5105681855,06.04.2016,17 Fairlee Road,Property Services - Day to day Maintenance,36,BALFOUR BEATTY
Revenue,Place,Central Services,Support Services,5105682356,08.04.2016,17 Fairlee Road,Minor Works,332.96,BALFOUR BEATTY
Revenue,Adult Services,Adult Social Care,Central Codes (to be reallocated),5105681956,06.04.2016,Adelaide Resource Centre,Property Services - Day to day Maintenance,172.01,BALFOUR BEATTY
Revenue,Adult Services,Adult Social Care,Central Codes (to be reallocated),5105682020,06.04.2016,Adelaide Resource Centre,Property Services - Day to day Maintenance,69.59,BALFOUR BEATTY
Revenue,Adult Services,Adult Social Care,Central Codes (to be reallocated),5105681959,08.04.2016,Adelaide Resource Centre,Property Services - Day to day Maintenance,80.28,BALFOUR BEATTY
Revenue,Adult Services,Adult Social Care,Central Codes (to be reallocated),5105682020,06.04.2016,Adelaide Resource Centre,Property Services - Planned Maintenance,288,BALFOUR BEATTY
Revenue,Adult Services,Adult Social Care,Central Codes (to be reallocated),5105684921,29.04.2016,Adelaide Resource Centre,Property Services - Day to day Maintenance,84.87,BALFOUR BEATTY
Revenue,Adult Services,Adult Social Care,Central Codes (to be reallocated),5105682356,08.04.2016,Adelaide Resource Centre,Property Services - Planned Maintenance,288,BALFOUR BEATTY
Revenue,Adult Services,Adult Social Care,Central Codes (to be reallocated),5105682358,08.04.2016,Adelaide Resource Centre,Property Services - Planned Maintenance,784.49,BALFOUR BEATTY
Revenue,Adult Services,Adult Social Care,Central Codes (to be reallocated),5105682041,06.04.2016,Adelaide Resource Centre,Maintenance of Operational Equipment,82.99,BALFOUR BEATTY
Revenue,Adult Services,Adult Social Care,Central Codes (to be reallocated),5105681959,08.04.2016,Gouldings Resource Centre,Property Services - Planned Maintenance,288,BALFOUR BEATTY
Revenue,Adult Services,Adult Social Care,Central Codes (to be reallocated),5105682020,06.04.2016,Gouldings Resource Centre,Property Services - Day to day Maintenance,77.86,BALFOUR BEATTY
Revenue,Adult Services,Adult Social Care,Central Codes (to be reallocated),5105681955,06.04.2016,Gouldings Resource Centre,Property Services - Day to day Maintenance,53.98,BALFOUR BEATTY
Revenue,Adult Services,Adult Social Care,Central Codes (to be reallocated),5105681872,20.04.2016,Gouldings Resource Centre,Property Services - Day to day Maintenance,79.39,BALFOUR BEATTY
Revenue,Adult Services,Adult Social Care,Central Codes (to be reallocated),5105681781,01.04.2016,Gouldings Resource Centre,Property Services - Day to day Maintenance,153.29,BALFOUR BEATTY
Revenue,Adult Services,Adult Social Care,Central Codes (to be reallocated),5105681955,06.04.2016,Gouldings Resource Centre,Property Services - Day to day Maintenance,77.72,BALFOUR BEATTY
Revenue,Adult Services,Adult Social Care,Learning Disab Supp (to be reallocated),5105681781,01.04.2016,Westminster House,Property Services - Day to day Maintenance,104.27,BALFOUR BEATTY
Revenue,Adult Services,Adult Social Care,Learning Disab Supp (to be reallocated),5105681770,27.04.2016,Westminster House,Property Services - Day to day Maintenance,104.07,BALFOUR BEATTY
Revenue,Adult Services,Adult Social Care,Learning Disab Supp (to be reallocated),5105682049,06.04.2016,Westminster House,Property Services - Day to day Maintenance,254.4,BALFOUR BEATTY
Revenue,Adult Services,Adult Social Care,Learning Disab Supp (to be reallocated),5105682038,20.04.2016,Westminster House,Property Services - Day to day Maintenance,187.21,BALFOUR BEATTY
Revenue,Adult Services,Adult Social Care,Learning Disab Supp (to be reallocated),5105682020,06.04.2016,Westminster House,Property Services - Day to day Maintenance,205.36,BALFOUR BEATTY
Revenue,Adult Services,Adult Social Care,Learning Disab Supp (to be reallocated),5105682358,08.04.2016,Westminster House,Property Services - Day to day Maintenance,48.5,BALFOUR BEATTY
Revenue,Adult Services,Adult Social Care,Learning Disab Supp (to be reallocated),5105681959,08.04.2016,Westminster House,Property Services - Planned Maintenance,99,BALFOUR BEATTY
Revenue,Adult Services,Adult Social Care,Learning Disab Supp (to be reallocated),5105682356,08.04.2016,Westminster House,Property Services - Planned Maintenance,99,BALFOUR BEATTY
Revenue,Adult Services,Adult Social Care,Central Codes (to be reallocated),5105681955,06.04.2016,Mental Health Day Services,Property Services - Day to day Maintenance,42.17,BALFOUR BEATTY
Revenue,Place,Cultural and Related Services,Culture and Heritage,5105682356,08.04.2016,"St Thomas Church, Ryde",Property Services - Planned Maintenance,112.52,BALFOUR BEATTY
Revenue,Place,Cultural and Related Services,Library Service,5105684833,29.04.2016,Cowes Library,Property Services - Day to day Maintenance,36.25,BALFOUR BEATTY
Revenue,Place,Cultural and Related Services,Library Service,5105684794,29.04.2016,Cowes Library,Property Services - Day to day Maintenance,195.2,BALFOUR BEATTY
Revenue,Place,Cultural and Related Services,Library Service,5105681781,01.04.2016,Cowes Library,Property Services - Day to day Maintenance,203.9,BALFOUR BEATTY
Revenue,Place,Cultural and Related Services,Library Service,5105681955,06.04.2016,Ventnor Library,Property Services - Day to day Maintenance,84.11,BALFOUR BEATTY
Revenue,Place,Cultural and Related Services,Library Service,5105682043,06.04.2016,Ventnor Library,Property Services - Day to day Maintenance,144.5,BALFOUR BEATTY
Revenue,Place,Cultural and Related Services,Recreation and Sport,5105681855,06.04.2016,Ryde Sports Centre,Payment to Private Contractors,"1,038.91",BALFOUR BEATTY
Revenue,Place,Cultural and Related Services,Recreation and Sport,5105682084,06.04.2016,Ryde Sports Centre,Payment to Private Contractors,-51,BALFOUR BEATTY
Revenue,Place,Cultural and Related Services,Culture and Heritage,5105682043,06.04.2016,Archives,Property Services - Day to day Maintenance,27,BALFOUR BEATTY
Revenue,Place,Cultural and Related Services,Culture and Heritage,5105682020,06.04.2016,Archives,Property Services - Day to day Maintenance,250.69,BALFOUR BEATTY
Revenue,Place,Cultural and Related Services,Culture and Heritage,5105684833,29.04.2016,Archives,Property Services - Day to day Maintenance,44.7,BALFOUR BEATTY
Revenue,Place,Cultural and Related Services,Culture and Heritage,5105684789,29.04.2016,Archives,Property Services - Day to day Maintenance,49.98,BALFOUR BEATTY
Revenue,Place,Cultural and Related Services,Culture and Heritage,5105682356,08.04.2016,Archives,Property Services - Planned Maintenance,346.18,BALFOUR BEATTY
Revenue,Place,Cultural and Related Services,Culture and Heritage,5105682038,20.04.2016,Archaeology,Property Services - Planned Maintenance,121.52,BALFOUR BEATTY
Revenue,Place,Cultural and Related Services,Culture and Heritage,5105682020,06.04.2016,Archaeology,Property Services - Day to day Maintenance,51.83,BALFOUR BEATTY
Revenue,Place,Cultural and Related Services,Recreation and Sport,5105682041,06.04.2016,The Heights,Property Services - Day to day Maintenance,112.5,BALFOUR BEATTY
Revenue,Place,Cultural and Related Services,Recreation and Sport,5105681770,27.04.2016,The Heights,Property Services - Day to day Maintenance,72.44,BALFOUR BEATTY
Revenue,Place,Cultural and Related Services,Recreation and Sport,5105682049,06.04.2016,The Heights,Property Services - Day to day Maintenance,67.26,BALFOUR BEATTY
Revenue,Place,Cultural and Related Services,Recreation and Sport,5105682049,06.04.2016,The Heights,Property Services - Planned Maintenance,555,BALFOUR BEATTY
Revenue,Place,Cultural and Related Services,Recreation and Sport,5105684789,29.04.2016,Medina Leisure Centre,Property Services - Day to day Maintenance,165.75,BALFOUR BEATTY
Revenue,Place,Cultural and Related Services,Recreation and Sport,5105684921,29.04.2016,Medina Leisure Centre,Property Services - Day to day Maintenance,155.3,BALFOUR BEATTY
Revenue,Place,Cultural and Related Services,Recreation and Sport,5105681781,01.04.2016,Medina Leisure Centre,Property Services - Day to day Maintenance,63.2,BALFOUR BEATTY
Revenue,Place,Cultural and Related Services,Recreation and Sport,5105682041,06.04.2016,Medina Leisure Centre,Property Services - Day to day Maintenance,140.11,BALFOUR BEATTY
Revenue,Place,Cultural and Related Services,Recreation and Sport,5105682043,06.04.2016,Medina Leisure Centre,Property Services - Day to day Maintenance,68.25,BALFOUR BEATTY
Revenue,Place,Cultural and Related Services,Recreation and Sport,5105682421,08.04.2016,Osborne Middle School - Astroturf Mgmt,Operational Equipment,630.9,BALFOUR BEATTY
Revenue,Place,Cultural and Related Services,Recreation and Sport,5105684794,29.04.2016,Ryde Harbour,Property Services - Day to day Maintenance,61.69,BALFOUR BEATTY
Revenue,Place,Cultural and Related Services,Recreation and Sport,5105681872,20.04.2016,Ryde Harbour,Property Services - Day to day Maintenance,70.89,BALFOUR BEATTY
Revenue,Place,Cultural and Related Services,Recreation and Sport,5105682049,06.04.2016,Shanklin Lift,Property Services - Day to day Maintenance,498.14,BALFOUR BEATTY
Revenue,Childrens Services,Children's & Education Services,Family Support Services,5105682020,06.04.2016,Family Information Zone,Property Services - Day to day Maintenance,105.7,BALFOUR BEATTY
Revenue,Childrens Services,Children's & Education Services,Special Schools & Alternative Provision,5105684794,29.04.2016,Island Learning Centre,Minor Works,149.1,BALFOUR BEATTY
Revenue,Childrens Services,Children's & Education Services,Special Schools & Alternative Provision,5105681956,06.04.2016,Island Learning Centre,Minor Works,289,BALFOUR BEATTY
Revenue,Childrens Services,Children's & Education Services,Special Schools & Alternative Provision,5105684921,29.04.2016,Island Learning Centre,Minor Works,156.17,BALFOUR BEATTY
Revenue,Childrens Services,Children's & Education Services,Special Schools & Alternative Provision,5105682049,06.04.2016,Island Learning Centre,Minor Works,51.65,BALFOUR BEATTY
Revenue,Childrens Services,Children's & Education Services,Special Schools & Alternative Provision,5105682041,06.04.2016,Island Learning Centre,Minor Works,131.08,BALFOUR BEATTY
Revenue,Childrens Services,Children's & Education Services,Special Schools & Alternative Provision,5105682049,06.04.2016,Island Learning Centre,Minor Works,376.89,BALFOUR BEATTY
Revenue,Childrens Services,Children's & Education Services,Special Schools & Alternative Provision,5105682038,20.04.2016,Island Learning Centre,Minor Works,335.42,BALFOUR BEATTY
Revenue,Childrens Services,Children's & Education Services,Special Schools & Alternative Provision,5105681959,08.04.2016,Island Learning Centre,Minor Works,52.5,BALFOUR BEATTY
Revenue,Childrens Services,Children's & Education Services,Management & Support Services,5105682358,08.04.2016,Specialist Service Business Admin,Minor Works,52.5,BALFOUR BEATTY
Revenue,Childrens Services,Children's & Education Services,Management & Support Services,5105681770,27.04.2016,Specialist Service Business Admin,Minor Works,128.45,BALFOUR BEATTY
Revenue,Childrens Services,Children's & Education Services,Children Looked After,5105682020,06.04.2016,Beaulieu House,Minor Works,155.4,BALFOUR BEATTY
Revenue,Childrens Services,Children's & Education Services,Children Looked After,5105684921,29.04.2016,Beaulieu House,Minor Works,52.5,BALFOUR BEATTY
Revenue,Childrens Services,Children's & Education Services,Children Looked After,5105681959,08.04.2016,Beaulieu House,Minor Works,165,BALFOUR BEATTY
Revenue,Childrens Services,Children's & Education Services,Children Looked After,5105682041,06.04.2016,Beaulieu House,Minor Works,56.15,BALFOUR BEATTY
Revenue,Childrens Services,Children's & Education Services,Other Education and Community Budget,5105681904,01.04.2016,HCC Property Services SLA,Payment to Private Contractors,182.72,BALFOUR BEATTY
Revenue,Childrens Services,Children's & Education Services,Other Education and Community Budget,5105681904,01.04.2016,HCC Property Services SLA,Payment to Private Contractors,97.75,BALFOUR BEATTY
Revenue,Childrens Services,Children's & Education Services,Other Education and Community Budget,5105681904,01.04.2016,HCC Property Services SLA,Payment to Private Contractors,161.79,BALFOUR BEATTY
Revenue,Childrens Services,Children's & Education Services,Other Education and Community Budget,5105681904,01.04.2016,HCC Property Services SLA,Payment to Private Contractors,34,BALFOUR BEATTY
Revenue,Childrens Services,Children's & Education Services,Other Education and Community Budget,5105681904,01.04.2016,HCC Property Services SLA,Payment to Private Contractors,72.45,BALFOUR BEATTY
Revenue,Childrens Services,Children's & Education Services,Other Education and Community Budget,5105681904,01.04.2016,HCC Property Services SLA,Payment to Private Contractors,34,BALFOUR BEATTY
Revenue,Childrens Services,Children's & Education Services,Other Education and Community Budget,5105681904,01.04.2016,HCC Property Services SLA,Payment to Private Contractors,63.25,BALFOUR BEATTY
Revenue,Childrens Services,Children's & Education Services,Other Education and Community Budget,5105681904,01.04.2016,HCC Property Services SLA,Payment to Private Contractors,98.23,BALFOUR BEATTY
Revenue,Childrens Services,Children's & Education Services,Other Education and Community Budget,5105681904,01.04.2016,HCC Property Services SLA,Payment to Private Contractors,153.97,BALFOUR BEATTY
Revenue,Childrens Services,Children's & Education Services,Other Education and Community Budget,5105681904,01.04.2016,HCC Property Services SLA,Payment to Private Contractors,80.62,BALFOUR BEATTY
Revenue,Childrens Services,Children's & Education Services,Other Education and Community Budget,5105681904,01.04.2016,HCC Property Services SLA,Payment to Private Contractors,64.29,BALFOUR BEATTY
Revenue,Childrens Services,Children's & Education Services,Other Education and Community Budget,5105681904,01.04.2016,HCC Property Services SLA,Payment to Private Contractors,80.62,BALFOUR BEATTY
Revenue,Childrens Services,Children's & Education Services,Other Education and Community Budget,5105681904,01.04.2016,HCC Property Services SLA,Payment to Private Contractors,64.29,BALFOUR BEATTY
Revenue,Childrens Services,Children's & Education Services,Other Education and Community Budget,5105681904,01.04.2016,HCC Property Services SLA,Payment to Private Contractors,50.6,BALFOUR BEATTY
Revenue,Childrens Services,Children's & Education Services,Other Education and Community Budget,5105681904,01.04.2016,HCC Property Services SLA,Payment to Private Contractors,212.75,BALFOUR BEATTY
Revenue,Childrens Services,Children's & Education Services,Other Education and Community Budget,5105681904,01.04.2016,HCC Property Services SLA,Payment to Private Contractors,57.5,BALFOUR BEATTY
Revenue,Childrens Services,Children's & Education Services,Other Education and Community Budget,5105681897,01.04.2016,HCC Property Services SLA,Payment to Private Contractors,184,BALFOUR BEATTY
Revenue,Childrens Services,Children's & Education Services,Other Education and Community Budget,5105681897,01.04.2016,HCC Property Services SLA,Payment to Private Contractors,68,BALFOUR BEATTY
Revenue,Childrens Services,Children's & Education Services,Other Education and Community Budget,5105681897,01.04.2016,HCC Property Services SLA,Payment to Private Contractors,166.75,BALFOUR BEATTY
Revenue,Childrens Services,Children's & Education Services,Other Education and Community Budget,5105681897,01.04.2016,HCC Property Services SLA,Payment to Private Contractors,488.75,BALFOUR BEATTY
Revenue,Childrens Services,Children's & Education Services,Other Education and Community Budget,5105681897,01.04.2016,HCC Property Services SLA,Payment to Private Contractors,84.53,BALFOUR BEATTY
Revenue,Childrens Services,Children's & Education Services,Other Education and Community Budget,5105681897,01.04.2016,HCC Property Services SLA,Payment to Private Contractors,50.6,BALFOUR BEATTY
Revenue,Childrens Services,Children's & Education Services,Other Education and Community Budget,5105681897,01.04.2016,HCC Property Services SLA,Payment to Private Contractors,51,BALFOUR BEATTY
Revenue,Childrens Services,Children's & Education Services,Other Education and Community Budget,5105681897,01.04.2016,HCC Property Services SLA,Payment to Private Contractors,105.22,BALFOUR BEATTY
Revenue,Childrens Services,Children's & Education Services,Other Education and Community Budget,5105681897,01.04.2016,HCC Property Services SLA,Payment to Private Contractors,77.63,BALFOUR BEATTY
Revenue,Childrens Services,Children's & Education Services,Other Education and Community Budget,5105681897,01.04.2016,HCC Property Services SLA,Payment to Private Contractors,480.02,BALFOUR BEATTY
Revenue,Childrens Services,Children's & Education Services,Other Education and Community Budget,5105681897,01.04.2016,HCC Property Services SLA,Payment to Private Contractors,166.75,BALFOUR BEATTY
Revenue,Childrens Services,Children's & Education Services,Other Education and Community Budget,5105681897,01.04.2016,HCC Property Services SLA,Payment to Private Contractors,143.14,BALFOUR BEATTY
Revenue,Childrens Services,Children's & Education Services,Other Education and Community Budget,5105681897,01.04.2016,HCC Property Services SLA,Payment to Private Contractors,136.94,BALFOUR BEATTY
Revenue,Childrens Services,Children's & Education Services,Other Education and Community Budget,5105681897,01.04.2016,HCC Property Services SLA,Payment to Private Contractors,49.98,BALFOUR BEATTY
Revenue,Childrens Services,Children's & Education Services,Other Education and Community Budget,5105681897,01.04.2016,HCC Property Services SLA,Payment to Private Contractors,385.03,BALFOUR BEATTY
Revenue,Childrens Services,Children's & Education Services,Other Education and Community Budget,5105681897,01.04.2016,HCC Property Services SLA,Payment to Private Contractors,166.75,BALFOUR BEATTY
Revenue,Childrens Services,Children's & Education Services,Other Education and Community Budget,5105681897,01.04.2016,HCC Property Services SLA,Payment to Private Contractors,53.49,BALFOUR BEATTY
Revenue,Childrens Services,Children's & Education Services,Other Education and Community Budget,5105681897,01.04.2016,HCC Property Services SLA,Payment to Private Contractors,349.21,BALFOUR BEATTY
Revenue,Childrens Services,Children's & Education Services,Other Education and Community Budget,5105681897,01.04.2016,HCC Property Services SLA,Payment to Private Contractors,300.06,BALFOUR BEATTY
Revenue,Childrens Services,Children's & Education Services,Other Education and Community Budget,5105681897,01.04.2016,HCC Property Services SLA,Payment to Private Contractors,419.75,BALFOUR BEATTY
Revenue,Childrens Services,Children's & Education Services,Other Education and Community Budget,5105681897,01.04.2016,HCC Property Services SLA,Payment to Private Contractors,97.75,BALFOUR BEATTY
Revenue,Childrens Services,Children's & Education Services,Other Education and Community Budget,5105681897,01.04.2016,HCC Property Services SLA,Payment to Private Contractors,335.71,BALFOUR BEATTY
Revenue,Childrens Services,Children's & Education Services,Other Education and Community Budget,5105681897,01.04.2016,HCC Property Services SLA,Payment to Private Contractors,34,BALFOUR BEATTY
Revenue,Childrens Services,Children's & Education Services,Other Education and Community Budget,5105681897,01.04.2016,HCC Property Services SLA,Payment to Private Contractors,98.69,BALFOUR BEATTY
Revenue,Childrens Services,Children's & Education Services,Other Education and Community Budget,5105684397,27.04.2016,HCC Property Services SLA,Payment to Private Contractors,218.5,BALFOUR BEATTY
Revenue,Childrens Services,Children's & Education Services,Other Education and Community Budget,5105684397,27.04.2016,HCC Property Services SLA,Payment to Private Contractors,57.5,BALFOUR BEATTY
Revenue,Childrens Services,Children's & Education Services,Other Education and Community Budget,5105684397,27.04.2016,HCC Property Services SLA,Payment to Private Contractors,125.5,BALFOUR BEATTY
Revenue,Childrens Services,Children's & Education Services,Other Education and Community Budget,5105684397,27.04.2016,HCC Property Services SLA,Payment to Private Contractors,57.5,BALFOUR BEATTY
Revenue,Childrens Services,Children's & Education Services,Other Education and Community Budget,5105684397,27.04.2016,HCC Property Services SLA,Payment to Private Contractors,68,BALFOUR BEATTY
Revenue,Childrens Services,Children's & Education Services,Other Education and Community Budget,5105684397,27.04.2016,HCC Property Services SLA,Payment to Private Contractors,325.05,BALFOUR BEATTY
Revenue,Childrens Services,Children's & Education Services,Other Education and Community Budget,5105684397,27.04.2016,HCC Property Services SLA,Payment to Private Contractors,234.6,BALFOUR BEATTY
Revenue,Childrens Services,Children's & Education Services,Other Education and Community Budget,5105684397,27.04.2016,HCC Property Services SLA,Payment to Private Contractors,158.7,BALFOUR BEATTY
Revenue,Childrens Services,Children's & Education Services,Other Education and Community Budget,5105684397,27.04.2016,HCC Property Services SLA,Payment to Private Contractors,57.5,BALFOUR BEATTY
Revenue,Childrens Services,Children's & Education Services,Other Education and Community Budget,5105684397,27.04.2016,HCC Property Services SLA,Payment to Private Contractors,158.7,BALFOUR BEATTY
Revenue,Childrens Services,Children's & Education Services,Other Education and Community Budget,5105684397,27.04.2016,HCC Property Services SLA,Payment to Private Contractors,57.5,BALFOUR BEATTY
Revenue,Childrens Services,Children's & Education Services,Other Education and Community Budget,5105684524,27.04.2016,HCC Property Services SLA,Payment to Private Contractors,566.4,BALFOUR BEATTY
Revenue,Childrens Services,Children's & Education Services,Other Education and Community Budget,5105684524,27.04.2016,HCC Property Services SLA,Payment to Private Contractors,104.41,BALFOUR BEATTY
Revenue,Childrens Services,Children's & Education Services,Other Education and Community Budget,5105684524,27.04.2016,HCC Property Services SLA,Payment to Private Contractors,245.96,BALFOUR BEATTY
Revenue,Childrens Services,Children's & Education Services,Other Education and Community Budget,5105684524,27.04.2016,HCC Property Services SLA,Payment to Private Contractors,325.05,BALFOUR BEATTY
Revenue,Childrens Services,Children's & Education Services,Other Education and Community Budget,5105684524,27.04.2016,HCC Property Services SLA,Payment to Private Contractors,138,BALFOUR BEATTY
Revenue,Childrens Services,Children's & Education Services,Other Education and Community Budget,5105684524,27.04.2016,HCC Property Services SLA,Payment to Private Contractors,189.98,BALFOUR BEATTY
Revenue,Childrens Services,Children's & Education Services,Other Education and Community Budget,5105684524,27.04.2016,HCC Property Services SLA,Payment to Private Contractors,498.53,BALFOUR BEATTY
Revenue,Childrens Services,Children's & Education Services,Other Education and Community Budget,5105684524,27.04.2016,HCC Property Services SLA,Payment to Private Contractors,50.6,BALFOUR BEATTY
Revenue,Childrens Services,Children's & Education Services,Other Education and Community Budget,5105684524,27.04.2016,HCC Property Services SLA,Payment to Private Contractors,50.6,BALFOUR BEATTY
Revenue,Childrens Services,Children's & Education Services,Other Education and Community Budget,5105684524,27.04.2016,HCC Property Services SLA,Payment to Private Contractors,62.1,BALFOUR BEATTY
Revenue,Childrens Services,Children's & Education Services,Other Education and Community Budget,5105684520,27.04.2016,HCC Property Services SLA,Payment to Private Contractors,430.1,BALFOUR BEATTY
Revenue,Childrens Services,Children's & Education Services,Other Education and Community Budget,5105684520,27.04.2016,HCC Property Services SLA,Payment to Private Contractors,195.5,BALFOUR BEATTY
Revenue,Childrens Services,Children's & Education Services,Other Education and Community Budget,5105684520,27.04.2016,HCC Property Services SLA,Payment to Private Contractors,201.96,BALFOUR BEATTY
Revenue,Childrens Services,Children's & Education Services,Other Education and Community Budget,5105684520,27.04.2016,HCC Property Services SLA,Payment to Private Contractors,288.59,BALFOUR BEATTY
Revenue,Childrens Services,Children's & Education Services,Other Education and Community Budget,5105684520,27.04.2016,HCC Property Services SLA,Payment to Private Contractors,148.36,BALFOUR BEATTY
Revenue,Childrens Services,Children's & Education Services,Other Education and Community Budget,5105684520,27.04.2016,HCC Property Services SLA,Payment to Private Contractors,31.82,BALFOUR BEATTY
Revenue,Childrens Services,Children's & Education Services,Other Education and Community Budget,5105684520,27.04.2016,HCC Property Services SLA,Payment to Private Contractors,142.4,BALFOUR BEATTY
Revenue,Childrens Services,Children's & Education Services,Other Education and Community Budget,5105684520,27.04.2016,HCC Property Services SLA,Payment to Private Contractors,248.4,BALFOUR BEATTY
Revenue,Childrens Services,Children's & Education Services,Other Education and Community Budget,5105684520,27.04.2016,HCC Property Services SLA,Payment to Private Contractors,80.65,BALFOUR BEATTY
Revenue,Childrens Services,Children's & Education Services,Other Education and Community Budget,5105684520,27.04.2016,HCC Property Services SLA,Payment to Private Contractors,"1,122.56",BALFOUR BEATTY
Revenue,Childrens Services,Children's & Education Services,Other Education and Community Budget,5105684520,27.04.2016,HCC Property Services SLA,Payment to Private Contractors,57.5,BALFOUR BEATTY
Revenue,Childrens Services,Children's & Education Services,Other Education and Community Budget,5105684520,27.04.2016,HCC Property Services SLA,Payment to Private Contractors,88.48,BALFOUR BEATTY
Revenue,Childrens Services,Children's & Education Services,Other Education and Community Budget,5105684421,27.04.2016,HCC Property Services SLA,Payment to Private Contractors,119,BALFOUR BEATTY
Revenue,Childrens Services,Children's & Education Services,Other Education and Community Budget,5105684421,27.04.2016,HCC Property Services SLA,Payment to Private Contractors,199.27,BALFOUR BEATTY
Revenue,Childrens Services,Children's & Education Services,Other Education and Community Budget,5105684421,27.04.2016,HCC Property Services SLA,Payment to Private Contractors,34,BALFOUR BEATTY
Revenue,Childrens Services,Children's & Education Services,Other Education and Community Budget,5105684421,27.04.2016,HCC Property Services SLA,Payment to Private Contractors,382.55,BALFOUR BEATTY
Revenue,Childrens Services,Children's & Education Services,Other Education and Community Budget,5105684421,27.04.2016,HCC Property Services SLA,Payment to Private Contractors,128.18,BALFOUR BEATTY
Revenue,Childrens Services,Children's & Education Services,Other Education and Community Budget,5105684421,27.04.2016,HCC Property Services SLA,Payment to Private Contractors,179.4,BALFOUR BEATTY
Revenue,Childrens Services,Children's & Education Services,Support Service & Management Costs,5105682358,08.04.2016,Childrens Centres Maintenance,Minor Works,69.12,BALFOUR BEATTY
Revenue,Childrens Services,Children's & Education Services,Support Service & Management Costs,5105684921,29.04.2016,Childrens Centres Maintenance,Minor Works,145.74,BALFOUR BEATTY
Revenue,Childrens Services,Children's & Education Services,Support Service & Management Costs,5105682038,20.04.2016,Childrens Centres Maintenance,Minor Works,229.54,BALFOUR BEATTY
Revenue,Childrens Services,Children's & Education Services,Support Service & Management Costs,5105681770,27.04.2016,Childrens Centres Maintenance,Minor Works,60.42,BALFOUR BEATTY
Revenue,Childrens Services,Children's & Education Services,Support Service & Management Costs,5105682041,06.04.2016,Childrens Centres Maintenance,Minor Works,96.7,BALFOUR BEATTY
Revenue,Childrens Services,Children's & Education Services,Support Service & Management Costs,5105681781,01.04.2016,Childrens Centres Maintenance,Minor Works,109.27,BALFOUR BEATTY
Revenue,Childrens Services,Children's & Education Services,Support Service & Management Costs,5105681770,27.04.2016,Childrens Centres Maintenance,Minor Works,83.9,BALFOUR BEATTY
Revenue,Childrens Services,Children's & Education Services,Support Service & Management Costs,5105682038,20.04.2016,Childrens Centres Maintenance,Minor Works,251.84,BALFOUR BEATTY
Revenue,Childrens Services,Children's & Education Services,Support Service & Management Costs,5105682038,20.04.2016,Childrens Centres Maintenance,Minor Works,207.04,BALFOUR BEATTY
Revenue,Childrens Services,Children's & Education Services,Support Service & Management Costs,5105682038,20.04.2016,Childrens Centres Maintenance,Minor Works,202.54,BALFOUR BEATTY
Revenue,Childrens Services,Children's & Education Services,Support Service & Management Costs,5105684833,29.04.2016,Childrens Centres Maintenance,Minor Works,32.4,BALFOUR BEATTY
Capital,Childrens Services,Capital,Capital,5105684832,29.04.2016,Administration and Inspection Schemes,Payment to Contractors - Capital,"6,756.39",BALFOUR BEATTY
Capital,Childrens Services,Capital,Capital,5105684498,27.04.2016,Children Services Early Years,Payment to Contractors - Capital,"24,264.51",BALFOUR BEATTY
Revenue,Place,Environmental & Regulatory Services,Regulatory Services,5105681956,06.04.2016,Public Conveniences - General,Property Services - Day to day Maintenance,67.5,BALFOUR BEATTY
Revenue,Place,Environmental & Regulatory Services,Regulatory Services,5105681956,06.04.2016,Public Conveniences - General,Property Services - Day to day Maintenance,74.99,BALFOUR BEATTY
Revenue,Place,Environmental & Regulatory Services,Regulatory Services,5105684794,29.04.2016,Public Conveniences - General,Property Services - Day to day Maintenance,126.9,BALFOUR BEATTY
Revenue,Place,Environmental & Regulatory Services,Regulatory Services,5105684921,29.04.2016,Public Conveniences - General,Property Services - Day to day Maintenance,142.99,BALFOUR BEATTY
Revenue,Place,Environmental & Regulatory Services,Regulatory Services,5105684789,29.04.2016,Public Conveniences - General,Property Services - Day to day Maintenance,120.28,BALFOUR BEATTY
Revenue,Place,Environmental & Regulatory Services,Regulatory Services,5105681956,06.04.2016,Public Conveniences - General,Property Services - Day to day Maintenance,168.1,BALFOUR BEATTY
Revenue,Place,Environmental & Regulatory Services,Regulatory Services,5105682358,08.04.2016,Public Conveniences - General,Property Services - Day to day Maintenance,84.2,BALFOUR BEATTY
Revenue,Place,Environmental & Regulatory Services,Regulatory Services,5105681959,08.04.2016,Public Conveniences - General,Property Services - Day to day Maintenance,62.1,BALFOUR BEATTY
Revenue,Place,Environmental & Regulatory Services,Regulatory Services,5105682358,08.04.2016,Public Conveniences - General,Property Services - Day to day Maintenance,65.49,BALFOUR BEATTY
Revenue,Place,Environmental & Regulatory Services,Regulatory Services,5105682043,06.04.2016,Public Conveniences - General,Property Services - Day to day Maintenance,61.2,BALFOUR BEATTY
Revenue,Place,Environmental & Regulatory Services,Regulatory Services,5105682043,06.04.2016,Public Conveniences - General,Property Services - Day to day Maintenance,57.59,BALFOUR BEATTY
Revenue,Place,Environmental & Regulatory Services,Regulatory Services,5105681955,06.04.2016,Public Conveniences - General,Property Services - Day to day Maintenance,222.95,BALFOUR BEATTY
Revenue,Place,Environmental & Regulatory Services,Regulatory Services,5105682049,06.04.2016,Public Conveniences - General,Property Services - Day to day Maintenance,50.8,BALFOUR BEATTY
Revenue,Place,Environmental & Regulatory Services,Regulatory Services,5105681781,01.04.2016,Public Conveniences - General,Property Services - Day to day Maintenance,51.9,BALFOUR BEATTY
Revenue,Place,Environmental & Regulatory Services,Regulatory Services,5105681956,06.04.2016,Public Conveniences - General,Property Services - Day to day Maintenance,63,BALFOUR BEATTY
Revenue,Place,Environmental & Regulatory Services,Regulatory Services,5105681781,01.04.2016,Public Conveniences - General,Property Services - Day to day Maintenance,207.75,BALFOUR BEATTY
Revenue,Place,Environmental & Regulatory Services,Regulatory Services,5105681770,27.04.2016,Public Conveniences - General,Property Services - Day to day Maintenance,40.55,BALFOUR BEATTY
Revenue,Place,Environmental & Regulatory Services,Regulatory Services,5105681956,06.04.2016,Public Conveniences - General,Property Services - Day to day Maintenance,95.7,BALFOUR BEATTY
Revenue,Place,Environmental & Regulatory Services,Regulatory Services,5105681872,20.04.2016,Public Conveniences - General,Property Services - Day to day Maintenance,131.25,BALFOUR BEATTY
Revenue,Place,Environmental & Regulatory Services,Regulatory Services,5105681872,20.04.2016,Public Conveniences - General,Property Services - Day to day Maintenance,192.59,BALFOUR BEATTY
Revenue,Place,Cultural and Related Services,Open Spaces,5105682043,06.04.2016,Parks Mtce Miscellaneous,Property Services - Day to day Maintenance,136.79,BALFOUR BEATTY
Revenue,Place,Cultural and Related Services,Open Spaces,5105682356,08.04.2016,Fort Victoria,Property Services - Planned Maintenance,103.52,BALFOUR BEATTY
Revenue,Place,Highways and Transport Services,"Airports, Harbours & Toll Facilities",5105682038,20.04.2016,Newport Harbour Account,Property Services - Day to day Maintenance,132.95,BALFOUR BEATTY
Revenue,Place,Fire & Rescue Services,Fire fighting and Rescue Operations,5105682043,06.04.2016,Business Support  - Fire,Property Services - Day to day Maintenance,99.75,BALFOUR BEATTY
Revenue,Place,Fire & Rescue Services,Fire fighting and Rescue Operations,5105682038,20.04.2016,Business Support  - Fire,Property Services - Day to day Maintenance,195.98,BALFOUR BEATTY
Revenue,Place,Fire & Rescue Services,Fire fighting and Rescue Operations,5105681872,20.04.2016,Business Support  - Fire,Property Services - Day to day Maintenance,57.75,BALFOUR BEATTY
Revenue,Place,Fire & Rescue Services,Fire fighting and Rescue Operations,5105681955,06.04.2016,Business Support  - Fire,Property Services - Day to day Maintenance,119.85,BALFOUR BEATTY
Revenue,Place,Fire & Rescue Services,Fire fighting and Rescue Operations,5105682356,08.04.2016,Business Support  - Fire,Property Services - Day to day Maintenance,46.05,BALFOUR BEATTY
Revenue,Place,Fire & Rescue Services,Fire fighting and Rescue Operations,5105684833,29.04.2016,Business Support  - Fire,Property Services - Day to day Maintenance,170.34,BALFOUR BEATTY
Revenue,Place,Fire & Rescue Services,Fire fighting and Rescue Operations,5105684794,29.04.2016,Business Support  - Fire,Property Services - Day to day Maintenance,70.8,BALFOUR BEATTY
Revenue,Place,Fire & Rescue Services,Fire fighting and Rescue Operations,5105684794,29.04.2016,Business Support  - Fire,Property Services - Day to day Maintenance,66.34,BALFOUR BEATTY
Revenue,Place,Environmental & Regulatory Services,Service Management and Support Services,5105682043,06.04.2016,Regulatory Management & Admin Support,Fixtures and Fittings,60.55,BALFOUR BEATTY
Revenue,Place,Environmental & Regulatory Services,"Cemetery, Cremation & Mortuary Services",5105681955,06.04.2016,Cemeteries-Ryde,Property Services - Day to day Maintenance,165.12,BALFOUR BEATTY
Revenue,Place,Environmental & Regulatory Services,"Cemetery, Cremation & Mortuary Services",5105682358,08.04.2016,Cemeteries-Northwood,Property Services - Day to day Maintenance,226.95,BALFOUR BEATTY
Revenue,Place,Environmental & Regulatory Services,"Cemetery, Cremation & Mortuary Services",5105682358,08.04.2016,Cemeteries-Ventnor,Property Services - Day to day Maintenance,103.71,BALFOUR BEATTY
Revenue,Place,Environmental & Regulatory Services,"Cemetery, Cremation & Mortuary Services",5105682020,06.04.2016,Crematorium,Property Services - Day to day Maintenance,75.5,BALFOUR BEATTY
Revenue,Place,Environmental & Regulatory Services,"Cemetery, Cremation & Mortuary Services",5105682049,06.04.2016,Crematorium,Property Services - Day to day Maintenance,74.53,BALFOUR BEATTY
Revenue,Childrens Services,Children's & Education Services,Special Schools & Alternative Provision,5105681770,27.04.2016,Island Learning Centre,Payment to Private Contractors,577.5,BALFOUR BEATTY
Revenue,Childrens Services,Children's & Education Services,Special Schools & Alternative Provision,5105684517,27.04.2016,Island Learning Centre,Payment to Private Contractors,"68,665.53",BALFOUR BEATTY
Capital,Place,Capital,Capital,5105681788,01.04.2016,Carriageway works,External Design and Supervision Fees,"18,592.00",BALFOUR BEATTY LIVING PLACES LTD
Revenue,Place,Fire & Rescue Services,Fire fighting and Rescue Operations,5105682044,06.04.2016,Fire Technical Support,Payment to Private Contractors,"6,639.70",BALLYCLARE LTD
Revenue,Place,Fire & Rescue Services,Fire fighting and Rescue Operations,5105682044,06.04.2016,Fire Technical Support,Payment to Private Contractors,111.69,BALLYCLARE LTD
Revenue,Public Health,Public Health,Discretionary,5105682973,20.04.2016,My Life a Full Life Public Health,Payment to Private Contractors,"1,750.00",REDACTED PERSONAL DATA
Revenue,Childrens Services,Children's & Education Services,Support Service & Management Costs,5105681890,15.04.2016,Early Help Contracts,Payment to Private Contractors,"56,000.00",BARNARDO'S
Revenue,Childrens Services,Children's & Education Services,Support Service & Management Costs,5105683797,20.04.2016,Early Help Contracts,Payment to Private Contractors,"-340,036.56",BARNARDO'S
Revenue,Childrens Services,Children's & Education Services,Support Service & Management Costs,5105681866,13.04.2016,Early Help Contracts,Payment to Private Contractors,"340,036.56",BARNARDO'S
Revenue,Childrens Services,Children's & Education Services,Support Service & Management Costs,5105681742,20.04.2016,Early Help Contracts,Payment to Private Contractors,"340,036.56",BARNARDO'S
Revenue,Resources,Central Services,Support Services,5105684001,22.04.2016,Staff Benefits,Payment to Private Contractors,11.67,BARTON PRIMARY & EARLY YEARS
Revenue,Adult Services,Adult Social Care,Learning Disab Supp (to be reallocated),5105684935,29.04.2016,Plean Dene,Operational Equipment,10.82,LAKE CLEANING & CATERING SUPPLIES
Revenue,Adult Services,Adult Social Care,Learning Disab Supp (to be reallocated),5105685029,29.04.2016,Plean Dene,Operational Equipment,51.08,LAKE CLEANING & CATERING SUPPLIES
Revenue,Place,Cultural and Related Services,Recreation and Sport,5105682119,06.04.2016,The Heights,Consumable Cleaning Materials,68.3,LAKE CLEANING & CATERING SUPPLIES
Revenue,Place,Cultural and Related Services,Recreation and Sport,5105685032,29.04.2016,The Heights,Consumable Cleaning Materials,216.02,LAKE CLEANING & CATERING SUPPLIES
Revenue,Place,Cultural and Related Services,Recreation and Sport,5105685023,29.04.2016,Medina Leisure Centre,Consumable Cleaning Materials,38.91,LAKE CLEANING & CATERING SUPPLIES
Revenue,Place,Cultural and Related Services,Recreation and Sport,5105685023,29.04.2016,Medina Leisure Centre,Consumable Cleaning Materials,14.56,LAKE CLEANING & CATERING SUPPLIES
Revenue,Place,Cultural and Related Services,Recreation and Sport,5105685023,29.04.2016,Medina Leisure Centre,Consumable Cleaning Materials,26.88,LAKE CLEANING & CATERING SUPPLIES
Revenue,Place,Cultural and Related Services,Recreation and Sport,5105685023,29.04.2016,Medina Leisure Centre,Consumable Cleaning Materials,41.52,LAKE CLEANING & CATERING SUPPLIES
Revenue,Place,Cultural and Related Services,Recreation and Sport,5105685023,29.04.2016,Medina Leisure Centre,Consumable Cleaning Materials,24.4,LAKE CLEANING & CATERING SUPPLIES
Revenue,Place,Cultural and Related Services,Recreation and Sport,5105685023,29.04.2016,Medina Leisure Centre,Consumable Cleaning Materials,39.2,LAKE CLEANING & CATERING SUPPLIES
Revenue,Place,Cultural and Related Services,Recreation and Sport,5105685021,29.04.2016,Medina Leisure Centre,Consumable Cleaning Materials,11.76,LAKE CLEANING & CATERING SUPPLIES
Revenue,Place,Cultural and Related Services,Recreation and Sport,5105685021,29.04.2016,Medina Leisure Centre,Consumable Cleaning Materials,5.28,LAKE CLEANING & CATERING SUPPLIES
Revenue,Place,Cultural and Related Services,Recreation and Sport,5105685021,29.04.2016,Medina Leisure Centre,Consumable Cleaning Materials,11.82,LAKE CLEANING & CATERING SUPPLIES
Revenue,Place,Cultural and Related Services,Recreation and Sport,5105685021,29.04.2016,Medina Leisure Centre,Consumable Cleaning Materials,21.92,LAKE CLEANING & CATERING SUPPLIES
Revenue,Place,Cultural and Related Services,Recreation and Sport,5105685021,29.04.2016,Medina Leisure Centre,Consumable Cleaning Materials,21.84,LAKE CLEANING & CATERING SUPPLIES
Revenue,Place,Cultural and Related Services,Recreation and Sport,5105685021,29.04.2016,Medina Leisure Centre,Consumable Cleaning Materials,7.28,LAKE CLEANING & CATERING SUPPLIES
Revenue,Place,Cultural and Related Services,Recreation and Sport,5105685021,29.04.2016,Medina Leisure Centre,Consumable Cleaning Materials,14.56,LAKE CLEANING & CATERING SUPPLIES
Revenue,Place,Cultural and Related Services,Recreation and Sport,5105683847,20.04.2016,Westridge Squash Courts,Consumable Cleaning Materials,33.34,LAKE CLEANING & CATERING SUPPLIES
Revenue,Place,Fire & Rescue Services,Fire fighting and Rescue Operations,5105683853,20.04.2016,Fire Technical Support,Stock Purchases,80.16,LAKE CLEANING & CATERING SUPPLIES
Revenue,Place,Fire & Rescue Services,Fire fighting and Rescue Operations,5105683853,20.04.2016,Fire Technical Support,Stock Purchases,11.82,LAKE CLEANING & CATERING SUPPLIES
Revenue,Place,Fire & Rescue Services,Fire fighting and Rescue Operations,5105683853,20.04.2016,Fire Technical Support,Stock Purchases,12.48,LAKE CLEANING & CATERING SUPPLIES
Revenue,Place,Fire & Rescue Services,Fire fighting and Rescue Operations,5105683853,20.04.2016,Fire Technical Support,Stock Purchases,11.94,LAKE CLEANING & CATERING SUPPLIES
Revenue,Place,Fire & Rescue Services,Fire fighting and Rescue Operations,5105683853,20.04.2016,Fire Technical Support,Stock Purchases,11.34,LAKE CLEANING & CATERING SUPPLIES
Revenue,Place,Fire & Rescue Services,Fire fighting and Rescue Operations,5105683853,20.04.2016,Fire Technical Support,Stock Purchases,23.85,LAKE CLEANING & CATERING SUPPLIES
Revenue,Place,Fire & Rescue Services,Fire fighting and Rescue Operations,5105683853,20.04.2016,Fire Technical Support,Stock Purchases,62.5,LAKE CLEANING & CATERING SUPPLIES
Revenue,Place,Environmental & Regulatory Services,"Cemetery, Cremation & Mortuary Services",5105683850,20.04.2016,Crematorium,Consumable Cleaning Materials,16.02,LAKE CLEANING & CATERING SUPPLIES
Revenue,Place,Cultural and Related Services,Culture and Heritage,5105684346,27.04.2016,IOW Festival of Walking,Advertising & Publicity,540,BAUER CONSUMER MEDIA LTD
Revenue,Place,Cultural and Related Services,Culture and Heritage,5105684346,27.04.2016,IOW Festival of Walking,Advertising & Publicity,100,BAUER CONSUMER MEDIA LTD
Revenue,Place,Cultural and Related Services,Recreation and Sport,5105681817,01.04.2016,Play Development,Advertising & Publicity,136,BEACON MEDIA LIMITED
Revenue,Childrens Services,Children's & Education Services,Management & Support Services,5105682498,15.04.2016,Pre 16 Independ. & Non-Maint. Special Schls & Independ. Specialist Provision,Transport of Clients,264,BEACON TAXIS
Revenue,Adult Services,Adult Social Care,Support - Memory /Cognition-older people (65+),5105683210,20.04.2016,Memory & Cognition Residential 65+,Charges from Independent Providers,"2,269.40",BEAUMONT LODGE LTD
Revenue,Public Health,Public Health,Mandatory,5105682451,13.04.2016,NHS Health Check Programme,Payment to Private Contractors,97,BEECH GROVE SURGERY
Revenue,Adult Services,Adult Social Care,Learning Disability Suppt-adults (18-64),5105683560,20.04.2016,Learning Disability Residential 18-64,Charges from Independent Providers,"16,584.68",BEECHWOOD COLLEGE
Revenue,Resources,Central Services,Central Services to the Public,5105681964,06.04.2016,Council Tax Benefit,Printing Costs,265,BELMONT PRESS
Revenue,Resources,Central Services,Central Services to the Public,5105681964,06.04.2016,Council Tax Benefit,Printing Costs,"2,667.60",BELMONT PRESS
Revenue,Childrens Services,Children's & Education Services,Children Looked After,5105682399,08.04.2016,Purchased Fostering,Charges from Independent Providers,910,BENECARE FOSTERING LTD
Revenue,Childrens Services,Children's & Education Services,Children Looked After,5105683786,20.04.2016,Purchased Fostering,Charges from Independent Providers,910,BENECARE FOSTERING LTD
Revenue,Childrens Services,Children's & Education Services,Children Looked After,5105684471,29.04.2016,Purchased Fostering,Charges from Independent Providers,910,BENECARE FOSTERING LTD
Revenue,Place,Housing Services,Homelessness,5105684581,29.04.2016,B&B Properties,Accommodation Costs - Bed & Breakfast,"4,609.00",BERTRAM LODGE
Revenue,Adult Services,Adult Social Care,Learning Disab Supp (to be reallocated),5105684420,27.04.2016,31 Carter Avenue,Operational Equipment,155.67,BETA PAK LTD
Revenue,Adult Services,Adult Social Care,Learning Disab Supp (to be reallocated),5105683879,20.04.2016,Seagulls,Operational Equipment,71.76,BETA PAK LTD
Revenue,Adult Services,Adult Social Care,Learning Disab Supp (to be reallocated),5105683880,20.04.2016,Plean Dene,Operational Equipment,67.52,BETA PAK LTD
Revenue,Adult Services,Adult Social Care,Learning Disab Supp (to be reallocated),5105681967,06.04.2016,Plean Dene,Operational Equipment,45.96,BETA PAK LTD
Revenue,Adult Services,Adult Social Care,Learning Disab Supp (to be reallocated),5105681966,06.04.2016,Plean Dene,Operational Equipment,8.73,BETA PAK LTD
Revenue,Adult Services,Adult Social Care,Learning Disab Supp (to be reallocated),5105681967,06.04.2016,Plean Dene,Operational Equipment,11,BETA PAK LTD
Revenue,Adult Services,Adult Social Care,Learning Disab Supp (to be reallocated),5105681951,06.04.2016,Plean Dene,Operational Equipment,29.18,BETA PAK LTD
Revenue,Adult Services,Adult Social Care,Learning Disab Supp (to be reallocated),5105684469,27.04.2016,Saxonbury,Operational Equipment,164.17,BETA PAK LTD
Revenue,Adult Services,Adult Social Care,Learning Disab Supp (to be reallocated),5105684976,29.04.2016,Saxonbury,Operational Equipment,14.29,BETA PAK LTD
Revenue,Adult Services,Adult Social Care,Learning Disab Supp (to be reallocated),5105682111,06.04.2016,Saxonbury,Operational Equipment,125.18,BETA PAK LTD
Revenue,Adult Services,Adult Social Care,Learning Disab Supp (to be reallocated),5105682788,22.04.2016,40 Venner Avenue,Operational Equipment,89.33,BETA PAK LTD
Revenue,Adult Services,Adult Social Care,Learning Disab Supp (to be reallocated),5105681968,06.04.2016,40 Venner Avenue,Operational Equipment,21.66,BETA PAK LTD
Revenue,Adult Services,Adult Social Care,Learning Disab Supp (to be reallocated),5105684302,27.04.2016,40 Venner Avenue,Operational Equipment,107.96,BETA PAK LTD
Revenue,Adult Services,Adult Social Care,Learning Disab Supp (to be reallocated),5105685012,29.04.2016,40 Venner Avenue,Operational Equipment,92.72,BETA PAK LTD
Revenue,Adult Services,Adult Social Care,Learning Disab Supp (to be reallocated),5105682048,06.04.2016,The Laurels,Operational Equipment,4.03,BETA PAK LTD
Revenue,Adult Services,Adult Social Care,Learning Disab Supp (to be reallocated),5105682112,08.04.2016,The Laurels,Operational Equipment,299.16,BETA PAK LTD
Revenue,Adult Services,Adult Social Care,Assistive Equipment & Technology,5105681997,06.04.2016,Wightcare,General Materials,-13.59,BETA PAK LTD
Revenue,Adult Services,Adult Social Care,Central Codes (to be reallocated),5105685034,29.04.2016,Adelaide Resource Centre,Consumable Cleaning Materials,19.66,BETA PAK LTD
Revenue,Adult Services,Adult Social Care,Central Codes (to be reallocated),5105684250,22.04.2016,Adelaide Resource Centre,Consumable Cleaning Materials,9.56,BETA PAK LTD
Revenue,Adult Services,Adult Social Care,Central Codes (to be reallocated),5105682790,15.04.2016,Adelaide Resource Centre,Consumable Cleaning Materials,132.7,BETA PAK LTD
Revenue,Adult Services,Adult Social Care,Central Codes (to be reallocated),5105682137,08.04.2016,Mental Health Day Services,Maintenance of Operational Equipment,70,BETA PAK LTD
Revenue,Adult Services,Adult Social Care,Central Codes (to be reallocated),5105682137,08.04.2016,Mental Health Day Services,Maintenance of Operational Equipment,15,BETA PAK LTD
Revenue,Childrens Services,Children's & Education Services,Children Looked After,5105682419,08.04.2016,Purchased Residential,Charges from Independent Providers,"4,839.08",BETTERCARE KEYS LTD
Revenue,Childrens Services,Children's & Education Services,Management & Support Services,5105682419,08.04.2016,Pre 16 Independ. & Non-Maint. Special Schls & Independ. Specialist Provision,Charges from Independent Providers,"1,280.92",BETTERCARE KEYS LTD
Revenue,Resources,Central Services,Support Services,5105681797,08.04.2016,ICT Development Manager,Training,"2,375.00",BEVAN YOUNG ASSOCIATES
Revenue,Resources,Central Services,Support Services,5105681797,08.04.2016,ICT Development Manager,Training,"1,900.00",BEVAN YOUNG ASSOCIATES
Revenue,Adult Services,Adult Social Care,Central Codes (to be reallocated),5105681879,08.04.2016,Adelaide Resource Centre,Catering Purchases,-5.14,3663 (BFS GROUP LTD)
Revenue,Adult Services,Adult Social Care,Central Codes (to be reallocated),5105682384,08.04.2016,Adelaide Resource Centre,Catering Purchases,-19.36,3663 (BFS GROUP LTD)
Revenue,Adult Services,Adult Social Care,Central Codes (to be reallocated),5105682384,08.04.2016,Adelaide Resource Centre,Catering Purchases,-23.88,3663 (BFS GROUP LTD)
Revenue,Adult Services,Adult Social Care,Central Codes (to be reallocated),5105682385,08.04.2016,Adelaide Resource Centre,Catering Purchases,-21.34,3663 (BFS GROUP LTD)
Revenue,Adult Services,Adult Social Care,Central Codes (to be reallocated),5105682335,08.04.2016,Adelaide Resource Centre,Catering Purchases,107.45,3663 (BFS GROUP LTD)
Revenue,Adult Services,Adult Social Care,Central Codes (to be reallocated),5105682333,08.04.2016,Adelaide Resource Centre,Catering Purchases,344.56,3663 (BFS GROUP LTD)
Revenue,Adult Services,Adult Social Care,Central Codes (to be reallocated),5105682331,08.04.2016,Adelaide Resource Centre,Catering Purchases,21.34,3663 (BFS GROUP LTD)
Revenue,Adult Services,Adult Social Care,Central Codes (to be reallocated),5105682512,13.04.2016,Adelaide Resource Centre,Catering Purchases,-22.49,3663 (BFS GROUP LTD)
Revenue,Adult Services,Adult Social Care,Central Codes (to be reallocated),5105682511,13.04.2016,Adelaide Resource Centre,Catering Purchases,363.26,3663 (BFS GROUP LTD)
Revenue,Adult Services,Adult Social Care,Central Codes (to be reallocated),5105682511,13.04.2016,Adelaide Resource Centre,Catering Purchases,17.63,3663 (BFS GROUP LTD)
Revenue,Adult Services,Adult Social Care,Central Codes (to be reallocated),5105682335,08.04.2016,Adelaide Resource Centre,Catering Purchases,10.81,3663 (BFS GROUP LTD)
Revenue,Adult Services,Adult Social Care,Central Codes (to be reallocated),5105682333,08.04.2016,Adelaide Resource Centre,Catering Purchases,13.7,3663 (BFS GROUP LTD)
Revenue,Adult Services,Adult Social Care,Central Codes (to be reallocated),5105682906,15.04.2016,Adelaide Resource Centre,Catering Purchases,109.98,3663 (BFS GROUP LTD)
Revenue,Adult Services,Adult Social Care,Central Codes (to be reallocated),5105682906,15.04.2016,Adelaide Resource Centre,Catering Purchases,22.44,3663 (BFS GROUP LTD)
Revenue,Adult Services,Adult Social Care,Central Codes (to be reallocated),5105681780,01.04.2016,Gouldings Resource Centre,Catering Purchases,211.82,3663 (BFS GROUP LTD)
Revenue,Adult Services,Adult Social Care,Central Codes (to be reallocated),5105681909,01.04.2016,Gouldings Resource Centre,Catering Purchases,97.02,3663 (BFS GROUP LTD)
Revenue,Adult Services,Adult Social Care,Central Codes (to be reallocated),5105681909,01.04.2016,Gouldings Resource Centre,Catering Purchases,50.97,3663 (BFS GROUP LTD)
Revenue,Adult Services,Adult Social Care,Central Codes (to be reallocated),5105681780,01.04.2016,Gouldings Resource Centre,Catering Purchases,54.34,3663 (BFS GROUP LTD)
Revenue,Adult Services,Adult Social Care,Central Codes (to be reallocated),5105684328,27.04.2016,Gouldings Resource Centre,Catering Purchases,310.11,3663 (BFS GROUP LTD)
Revenue,Adult Services,Adult Social Care,Central Codes (to be reallocated),5105684328,27.04.2016,Gouldings Resource Centre,Catering Purchases,68.87,3663 (BFS GROUP LTD)
Revenue,Adult Services,Adult Social Care,Central Codes (to be reallocated),5105682110,06.04.2016,Gouldings Resource Centre,Catering Purchases,566.72,3663 (BFS GROUP LTD)
Revenue,Adult Services,Adult Social Care,Central Codes (to be reallocated),5105682110,06.04.2016,Gouldings Resource Centre,Catering Purchases,28.4,3663 (BFS GROUP LTD)
Revenue,Adult Services,Adult Social Care,Central Codes (to be reallocated),5105684925,29.04.2016,Gouldings Resource Centre,Catering Purchases,16.84,3663 (BFS GROUP LTD)
Revenue,Adult Services,Adult Social Care,Central Codes (to be reallocated),5105684946,29.04.2016,Gouldings Resource Centre,Catering Purchases,390.88,3663 (BFS GROUP LTD)
Revenue,Adult Services,Adult Social Care,Central Codes (to be reallocated),5105684946,29.04.2016,Gouldings Resource Centre,Catering Purchases,51.16,3663 (BFS GROUP LTD)
Revenue,Adult Services,Adult Social Care,Learning Disab Supp (to be reallocated),5105682014,06.04.2016,Westminster House,Catering Purchases,61.59,3663 (BFS GROUP LTD)
Revenue,Adult Services,Adult Social Care,Learning Disab Supp (to be reallocated),5105681917,01.04.2016,Westminster House,Catering Purchases,88.31,3663 (BFS GROUP LTD)
Revenue,Adult Services,Adult Social Care,Learning Disab Supp (to be reallocated),5105684312,27.04.2016,Westminster House,Catering Purchases,66.21,3663 (BFS GROUP LTD)
Revenue,Adult Services,Adult Social Care,Learning Disab Supp (to be reallocated),5105684310,27.04.2016,Westminster House,Catering Purchases,52.5,3663 (BFS GROUP LTD)
Revenue,Adult Services,Adult Social Care,Learning Disab Supp (to be reallocated),5105681919,01.04.2016,Westminster House,Catering Purchases,159.96,3663 (BFS GROUP LTD)
Revenue,Place,Cultural and Related Services,Recreation and Sport,5105684261,27.04.2016,The Heights,Stock Purchases,90.47,3663 (BFS GROUP LTD)
Revenue,Place,Cultural and Related Services,Recreation and Sport,5105684261,27.04.2016,The Heights,Stock Purchases,44.57,3663 (BFS GROUP LTD)
Revenue,Place,Cultural and Related Services,Recreation and Sport,5105681962,06.04.2016,The Heights,Stock Purchases,203.9,3663 (BFS GROUP LTD)
Revenue,Place,Cultural and Related Services,Recreation and Sport,5105681962,06.04.2016,The Heights,Stock Purchases,101.41,3663 (BFS GROUP LTD)
Revenue,Place,Cultural and Related Services,Recreation and Sport,5105681963,06.04.2016,The Heights,Stock Purchases,44.94,3663 (BFS GROUP LTD)
Revenue,Place,Cultural and Related Services,Recreation and Sport,5105682359,13.04.2016,Westridge Squash Courts,Stock Purchases,217.93,3663 (BFS GROUP LTD)
Revenue,Corporate Items,Central Services,Corporate and Democratic Core,5105684479,27.04.2016,Corporate Management,Professional Services,"1,994.52",BGC EUROPEAN HOLDINGS
Revenue,Corporate Items,Central Services,Corporate and Democratic Core,5105684480,27.04.2016,Corporate Management,Professional Services,"3,989.04",BGC EUROPEAN HOLDINGS
Revenue,Place,Cultural and Related Services,Library Service,5105684553,27.04.2016,Public Libraries Central,Publications,"3,605.00",BIBLIOGRAPHIC DATA SERVICES LTD
Revenue,Place,Cultural and Related Services,Library Service,5105682918,15.04.2016,Public Libraries Central,Stationery,63.28,BIBLIOTHECA LTD
Revenue,Place,Cultural and Related Services,Recreation and Sport,5105683806,20.04.2016,Commercial Sales Team,Printing Costs,486,BILTMORE PRINTERS
Revenue,Adult Services,Adult Social Care,Social Care Activities,5105682422,08.04.2016,Domestic Violence,Advertising & Publicity,"2,300.00",BILTMORE PRINTERS
Revenue,Childrens Services,Children's & Education Services,Children Looked After,5105681886,01.04.2016,In-house Fostering,Advertising & Publicity,"3,000.00",BILTMORE PRINTERS
Revenue,Childrens Services,Children's & Education Services,Children Looked After,5105682423,08.04.2016,In-house Fostering,Advertising & Publicity,200,BILTMORE PRINTERS
Revenue,Resources,Central Services,Support Services,5105683939,22.04.2016,Staff Benefits,Payment to Private Contractors,189.15,BLACKBERRY LANE PRE-SCHOOL
Revenue,Resources,Central Services,Support Services,5105683939,22.04.2016,Staff Benefits,Payment to Private Contractors,70.2,BLACKBERRY LANE PRE-SCHOOL
Revenue,Childrens Services,Children's & Education Services,Family Support Services,5105681978,06.04.2016,Short Breaks,Charges from Independent Providers,520,BODSTER EQUINE ASSISTED LEARN CIC
Revenue,Adult Services,Adult Social Care,Learning Disab Supp (to be reallocated),5105681782,01.04.2016,Overbrook,Catering Purchases,168.03,BOOKER CASH & CARRY LTD
Revenue,Adult Services,Adult Social Care,Learning Disab Supp (to be reallocated),5105681777,01.04.2016,Overbrook,Catering Purchases,6.65,BOOKER CASH & CARRY LTD
Revenue,Adult Services,Adult Social Care,Learning Disab Supp (to be reallocated),5105685007,29.04.2016,Overbrook,Catering Purchases,17.98,BOOKER CASH & CARRY LTD
Revenue,Adult Services,Adult Social Care,Learning Disab Supp (to be reallocated),5105685007,29.04.2016,Overbrook,Catering Purchases,45.05,BOOKER CASH & CARRY LTD
Revenue,Adult Services,Adult Social Care,Learning Disab Supp (to be reallocated),5105682348,08.04.2016,Plean Dene,Catering Purchases,18.21,BOOKER CASH & CARRY LTD
Revenue,Adult Services,Adult Social Care,Learning Disab Supp (to be reallocated),5105682349,08.04.2016,Plean Dene,Catering Purchases,8.75,BOOKER CASH & CARRY LTD
Revenue,Adult Services,Adult Social Care,Learning Disab Supp (to be reallocated),5105682491,13.04.2016,Plean Dene,Catering Purchases,9.84,BOOKER CASH & CARRY LTD
Revenue,Adult Services,Adult Social Care,Learning Disab Supp (to be reallocated),5105682492,13.04.2016,Plean Dene,Catering Purchases,9.99,BOOKER CASH & CARRY LTD
Revenue,Adult Services,Adult Social Care,Learning Disab Supp (to be reallocated),5105682602,15.04.2016,Plean Dene,Catering Purchases,7.27,BOOKER CASH & CARRY LTD
Revenue,Adult Services,Adult Social Care,Learning Disab Supp (to be reallocated),5105682491,13.04.2016,Plean Dene,Catering Purchases,6.98,BOOKER CASH & CARRY LTD
Revenue,Adult Services,Adult Social Care,Learning Disab Supp (to be reallocated),5105682040,06.04.2016,Plean Dene,Catering Purchases,137.9,BOOKER CASH & CARRY LTD
Revenue,Adult Services,Adult Social Care,Learning Disab Supp (to be reallocated),5105683869,20.04.2016,Plean Dene,Catering Purchases,18.05,BOOKER CASH & CARRY LTD
Revenue,Adult Services,Adult Social Care,Learning Disab Supp (to be reallocated),5105683758,20.04.2016,Plean Dene,Catering Purchases,7.43,BOOKER CASH & CARRY LTD
Revenue,Adult Services,Adult Social Care,Learning Disab Supp (to be reallocated),5105683758,20.04.2016,Plean Dene,Catering Purchases,15.48,BOOKER CASH & CARRY LTD
Revenue,Adult Services,Adult Social Care,Learning Disab Supp (to be reallocated),5105684282,27.04.2016,Plean Dene,Catering Purchases,26.99,BOOKER CASH & CARRY LTD
Revenue,Adult Services,Adult Social Care,Learning Disab Supp (to be reallocated),5105684279,27.04.2016,Plean Dene,Catering Purchases,20.08,BOOKER CASH & CARRY LTD
Revenue,Adult Services,Adult Social Care,Learning Disab Supp (to be reallocated),5105684335,27.04.2016,Plean Dene,Catering Purchases,107.1,BOOKER CASH & CARRY LTD
Revenue,Adult Services,Adult Social Care,Learning Disab Supp (to be reallocated),5105684786,29.04.2016,Plean Dene,Catering Purchases,62.83,BOOKER CASH & CARRY LTD
Revenue,Adult Services,Adult Social Care,Learning Disab Supp (to be reallocated),5105684786,29.04.2016,Plean Dene,Catering Purchases,2.99,BOOKER CASH & CARRY LTD
Revenue,Adult Services,Adult Social Care,Learning Disab Supp (to be reallocated),5105681775,01.04.2016,Plean Dene,Catering Purchases,153.32,BOOKER CASH & CARRY LTD
Revenue,Adult Services,Adult Social Care,Learning Disab Supp (to be reallocated),5105682042,06.04.2016,Plean Dene,Catering Purchases,20.26,BOOKER CASH & CARRY LTD
Revenue,Adult Services,Adult Social Care,Learning Disab Supp (to be reallocated),5105681775,01.04.2016,Plean Dene,Catering Purchases,9.34,BOOKER CASH & CARRY LTD
Revenue,Adult Services,Adult Social Care,Learning Disab Supp (to be reallocated),5105682040,06.04.2016,Plean Dene,Catering Purchases,33.87,BOOKER CASH & CARRY LTD
Revenue,Adult Services,Adult Social Care,Learning Disab Supp (to be reallocated),5105684990,29.04.2016,Plean Dene,Catering Purchases,142.35,BOOKER CASH & CARRY LTD
Revenue,Adult Services,Adult Social Care,Learning Disab Supp (to be reallocated),5105684991,29.04.2016,Plean Dene,Catering Purchases,35.68,BOOKER CASH & CARRY LTD
Revenue,Adult Services,Adult Social Care,Learning Disab Supp (to be reallocated),5105684941,29.04.2016,Plean Dene,Catering Purchases,4.67,BOOKER CASH & CARRY LTD
Revenue,Adult Services,Adult Social Care,Learning Disab Supp (to be reallocated),5105684990,29.04.2016,Plean Dene,Catering Purchases,33.86,BOOKER CASH & CARRY LTD
Revenue,Childrens Services,Children's & Education Services,Family Support Services,5105682598,15.04.2016,S17 Referral & Assesment,Professional Services,386.23,BOSTICO INTERNATIONAL
Revenue,Childrens Services,Children's & Education Services,Children Looked After,5105682430,13.04.2016,Support for Looked After Children,Professional Services,597.87,BOSTICO INTERNATIONAL
Revenue,Childrens Services,Adult Social Care,Information & Early Intervention,5105682434,13.04.2016,Adult Social Care - Workforce Development,Training,"5,500.00",BOURNEMOUTH UNIVERSITY
Revenue,Place,Cultural and Related Services,Recreation and Sport,5105684516,27.04.2016,The Heights,Stock Purchases,180.3,BRAKE BROS LTD
Revenue,Place,Housing Services,Homelessness,5105683929,22.04.2016,Leaseholds by LA,Accommodation Costs - Leaseholder Payments,746.81,BRAMBLE LETTINGS
Revenue,Place,Housing Services,Homelessness,5105683929,22.04.2016,Leaseholds by LA,Accommodation Costs - Leaseholder Payments,746.81,BRAMBLE LETTINGS
Revenue,Place,Housing Services,Homelessness,5105683929,22.04.2016,Leaseholds by LA,Accommodation Costs - Leaseholder Payments,746.81,BRAMBLE LETTINGS
Revenue,Place,Housing Services,Homelessness,5105683929,22.04.2016,Leaseholds by LA,Accommodation Costs - Leaseholder Payments,746.81,BRAMBLE LETTINGS
Revenue,Place,Housing Services,Homelessness,5105683929,22.04.2016,Leaseholds by LA,Accommodation Costs - Leaseholder Payments,588.38,BRAMBLE LETTINGS
Revenue,Place,Housing Services,Homelessness,5105683929,22.04.2016,Leaseholds by LA,Accommodation Costs - Leaseholder Payments,588.38,BRAMBLE LETTINGS
Revenue,Place,Housing Services,Homelessness,5105683929,22.04.2016,Leaseholds by LA,Accommodation Costs - Leaseholder Payments,588.38,BRAMBLE LETTINGS
Revenue,Place,Housing Services,Homelessness,5105683929,22.04.2016,Leaseholds by LA,Accommodation Costs - Leaseholder Payments,588.38,BRAMBLE LETTINGS
Revenue,Place,Housing Services,Homelessness,5105683929,22.04.2016,Leaseholds by LA,Accommodation Costs - Leaseholder Payments,588.38,BRAMBLE LETTINGS
Revenue,Place,Housing Services,Homelessness,5105683929,22.04.2016,Leaseholds by LA,Accommodation Costs - Leaseholder Payments,746.81,BRAMBLE LETTINGS
Revenue,Place,Housing Services,Homelessness,5105683929,22.04.2016,Leaseholds by LA,Accommodation Costs - Leaseholder Payments,746.81,BRAMBLE LETTINGS
Revenue,Place,Housing Services,Homelessness,5105683929,22.04.2016,Leaseholds by LA,Accommodation Costs - Leaseholder Payments,746.81,BRAMBLE LETTINGS
Revenue,Place,Housing Services,Homelessness,5105683929,22.04.2016,Leaseholds by LA,Accommodation Costs - Leaseholder Payments,746.81,BRAMBLE LETTINGS
Revenue,Place,Housing Services,Homelessness,5105683929,22.04.2016,Leaseholds by LA,Accommodation Costs - Leaseholder Payments,746.81,BRAMBLE LETTINGS
Revenue,Place,Housing Services,Homelessness,5105683929,22.04.2016,Leaseholds by LA,Accommodation Costs - Leaseholder Payments,281.66,BRAMBLE LETTINGS
Revenue,Place,Housing Services,Homelessness,5105683929,22.04.2016,Leaseholds by LA,Accommodation Costs - Leaseholder Payments,216.66,BRAMBLE LETTINGS
Revenue,Place,Housing Services,Homelessness,5105683929,22.04.2016,Leaseholds by LA,Accommodation Costs - Leaseholder Payments,769.43,BRAMBLE LETTINGS
Revenue,Place,Housing Services,Homelessness,5105683929,22.04.2016,Leaseholds by LA,Accommodation Costs - Leaseholder Payments,746.81,BRAMBLE LETTINGS
Revenue,Place,Housing Services,Homelessness,5105683929,22.04.2016,Leaseholds by LA,Accommodation Costs - Leaseholder Payments,746.81,BRAMBLE LETTINGS
Revenue,Place,Housing Services,Homelessness,5105683929,22.04.2016,Leaseholds by LA,Accommodation Costs - Leaseholder Payments,746.81,BRAMBLE LETTINGS
Revenue,Place,Housing Services,Homelessness,5105683929,22.04.2016,Leaseholds by LA,Accommodation Costs - Leaseholder Payments,746.81,BRAMBLE LETTINGS
Revenue,Place,Housing Services,Homelessness,5105683929,22.04.2016,Leaseholds by LA,Accommodation Costs - Leaseholder Payments,746.81,BRAMBLE LETTINGS
Revenue,Place,Housing Services,Homelessness,5105683929,22.04.2016,Leaseholds by LA,Accommodation Costs - Leaseholder Payments,588.38,BRAMBLE LETTINGS
Revenue,Place,Housing Services,Homelessness,5105683929,22.04.2016,Leaseholds by LA,Accommodation Costs - Leaseholder Payments,746.81,BRAMBLE LETTINGS
Revenue,Adult Services,Adult Social Care,Support - Memory /Cognition-older people (65+),5105683044,20.04.2016,Memory & Cognition Residential 65+,Charges from Independent Providers,"2,143.40",BRIGHSTONE CARE LTD
Revenue,Adult Services,Adult Social Care,Support - Memory /Cognition-older people (65+),5105683044,20.04.2016,Memory & Cognition Residential 65+,Charges from Independent Providers,"1,823.36",BRIGHSTONE CARE LTD
Revenue,Adult Services,Adult Social Care,Learning Disab Supp (to be reallocated),5105682362,08.04.2016,Overbrook,Grounds Maintenance,48,BRIGHSTONE LANDSCAPING LTD
Revenue,Adult Services,Adult Social Care,Learning Disab Supp (to be reallocated),5105682362,08.04.2016,Seagulls,Grounds Maintenance,48,BRIGHSTONE LANDSCAPING LTD
Revenue,Adult Services,Adult Social Care,Learning Disab Supp (to be reallocated),5105682362,08.04.2016,Plean Dene,Grounds Maintenance,387.49,BRIGHSTONE LANDSCAPING LTD
Revenue,Adult Services,Adult Social Care,Learning Disab Supp (to be reallocated),5105682362,08.04.2016,Saxonbury,Grounds Maintenance,48,BRIGHSTONE LANDSCAPING LTD
Revenue,Adult Services,Adult Social Care,Learning Disab Supp (to be reallocated),5105682362,08.04.2016,40 Venner Avenue,Grounds Maintenance,48,BRIGHSTONE LANDSCAPING LTD
Revenue,Adult Services,Adult Social Care,Learning Disab Supp (to be reallocated),5105682362,08.04.2016,The Laurels,Grounds Maintenance,252,BRIGHSTONE LANDSCAPING LTD
Revenue,Adult Services,Adult Social Care,Learning Disab Supp (to be reallocated),5105682362,08.04.2016,Westminster House,Grounds Maintenance,48,BRIGHSTONE LANDSCAPING LTD
Revenue,Place,Cultural and Related Services,Open Spaces,5105682832,15.04.2016,Other Grounds Maintenance,Payment to Private Contractors,580,BRIGHSTONE LANDSCAPING LTD
Revenue,Place,Environmental & Regulatory Services,(Street) Cleansing (not highways),5105682508,13.04.2016,Beach Cleaning,Payment to Private Contractors,606.88,BRIGHSTONE LANDSCAPING LTD
Revenue,Place,Environmental & Regulatory Services,(Street) Cleansing (not highways),5105682420,08.04.2016,Beach Cleaning,Payment to Private Contractors,545,BRIGHSTONE LANDSCAPING LTD
Revenue,Place,Environmental & Regulatory Services,(Street) Cleansing (not highways),5105684401,27.04.2016,Beach Cleaning,Payment to Private Contractors,185,BRIGHSTONE LANDSCAPING LTD
Revenue,Place,Environmental & Regulatory Services,(Street) Cleansing (not highways),5105684585,29.04.2016,Beach Cleaning,Payment to Private Contractors,45,BRIGHSTONE LANDSCAPING LTD
Revenue,Place,Environmental & Regulatory Services,(Street) Cleansing (not highways),5105682834,15.04.2016,Beach Cleaning,Beach Cleansing Contractors,"1,882.34",BRIGHSTONE LANDSCAPING LTD
Revenue,Place,Cultural and Related Services,Recreation and Sport,5105684434,27.04.2016,Beach Safety & Inspection / Beach Awards,Payment to Private Contractors,55,BRIGHSTONE LANDSCAPING LTD
Revenue,Place,Environmental & Regulatory Services,Coast Protection,5105682355,08.04.2016,Coast Protection,Payment to Private Contractors,45,BRIGHSTONE LANDSCAPING LTD
Revenue,Place,Environmental & Regulatory Services,Coast Protection,5105682599,15.04.2016,Coast Protection,Payment to Private Contractors,500,BRIGHSTONE LANDSCAPING LTD
Revenue,Childrens Services,Children's & Education Services,Other Education and Community Budget,5105684472,27.04.2016,Adult Community Learning,Licences,"1,250.00",BRITISH COMPUTER SOCIETY
Revenue,Place,Central Services,Support Services,5105682958,20.04.2016,Youth Council,Training,180,BRITISH YOUTH COUNCIL
Revenue,Place,Central Services,Support Services,5105682959,20.04.2016,Youth Council,Professional Subscriptions,500,BRITISH YOUTH COUNCIL
Revenue,Public Health,Public Health,Discretionary,5105683807,22.04.2016,Alcohol Misuse Adult- Treatment,Payment to Private Contractors,"3,066.33",BROADREACH HOUSE
Revenue,Public Health,Public Health,Mandatory,5105682452,13.04.2016,NHS Health Check Programme,Payment to Private Contractors,97,BROOKSIDE HEALTH CENTRE
Revenue,Place,Cultural and Related Services,Open Spaces,5105682923,15.04.2016,Other Grounds Maintenance,Operational Equipment,"1,095.00",BROXAP LTD
Revenue,Place,Cultural and Related Services,Open Spaces,5105682967,20.04.2016,Other Grounds Maintenance,Operational Equipment,17.5,BROXAP LTD
Revenue,Resources,Central Services,Support Services,5105684391,27.04.2016,Litigation Costs,Legal Fees - Other Parties,40,BT CONFERENCING
Revenue,Resources,Central Services,Support Services,5105684928,29.04.2016,Telephones,Fixed Telephones,"1,145.40",BTS HOLDINGS PLC
Revenue,Place,Fire & Rescue Services,Fire fighting and Rescue Operations,5105684278,27.04.2016,Business Support  - Fire,Professional Subscriptions,"1,779.00",BUCKINGHAMSHIRE & MILTON KEYNES
Revenue,Adult Services,Adult Social Care,Physical Support - older people (65+),5105683064,20.04.2016,Physical Support Residential 65+,Charges from Independent Providers,765.5,BUCKLAND CARE LTD
Revenue,Adult Services,Adult Social Care,Physical Support - older people (65+),5105683064,20.04.2016,Physical Support Residential 65+,Charges from Independent Providers,"1,740.76",BUCKLAND CARE LTD
Revenue,Adult Services,Adult Social Care,Physical Support - older people (65+),5105683064,20.04.2016,Physical Support Residential 65+,Charges from Independent Providers,"1,740.76",BUCKLAND CARE LTD
Revenue,Adult Services,Adult Social Care,Physical Support - older people (65+),5105683064,20.04.2016,Physical Support Residential 65+,Charges from Independent Providers,"1,823.36",BUCKLAND CARE LTD
Revenue,Adult Services,Adult Social Care,Physical Support - older people (65+),5105683064,20.04.2016,Physical Support Residential 65+,Charges from Independent Providers,"2,143.40",BUCKLAND CARE LTD
Revenue,Adult Services,Adult Social Care,Physical Support - older people (65+),5105683064,20.04.2016,Physical Support Residential 65+,Charges from Independent Providers,"2,143.40",BUCKLAND CARE LTD
Revenue,Adult Services,Adult Social Care,Physical Support - older people (65+),5105683064,20.04.2016,Physical Support Residential 65+,Charges from Independent Providers,"2,143.40",BUCKLAND CARE LTD
Revenue,Adult Services,Adult Social Care,Physical Support - older people (65+),5105683064,20.04.2016,Physical Support Residential 65+,Charges from Independent Providers,"1,740.76",BUCKLAND CARE LTD
Revenue,Adult Services,Adult Social Care,Physical Support - older people (65+),5105683064,20.04.2016,Physical Support Residential 65+,Charges from Independent Providers,"1,740.76",BUCKLAND CARE LTD
Revenue,Adult Services,Adult Social Care,Physical Support - older people (65+),5105683064,20.04.2016,Physical Support Residential 65+,Charges from Independent Providers,"2,143.40",BUCKLAND CARE LTD
Revenue,Adult Services,Adult Social Care,Support - Memory /Cognition-older people (65+),5105683064,20.04.2016,Memory & Cognition Residential 65+,Charges from Independent Providers,"2,143.40",BUCKLAND CARE LTD
Revenue,Adult Services,Adult Social Care,Support - Memory /Cognition-older people (65+),5105683064,20.04.2016,Memory & Cognition Residential 65+,Charges from Independent Providers,65.12,BUCKLAND CARE LTD
Revenue,Adult Services,Adult Social Care,Support - Memory /Cognition-older people (65+),5105683064,20.04.2016,Memory & Cognition Residential 65+,Charges from Independent Providers,"2,143.40",BUCKLAND CARE LTD
Revenue,Adult Services,Adult Social Care,Support - Memory /Cognition-older people (65+),5105683064,20.04.2016,Memory & Cognition Residential 65+,Charges from Independent Providers,"1,823.36",BUCKLAND CARE LTD
Revenue,Adult Services,Adult Social Care,Support - Memory /Cognition-older people (65+),5105683064,20.04.2016,Memory & Cognition Residential 65+,Charges from Independent Providers,"2,143.40",BUCKLAND CARE LTD
Revenue,Adult Services,Adult Social Care,Support - Memory /Cognition-older people (65+),5105683064,20.04.2016,Memory & Cognition Residential 65+,Charges from Independent Providers,"1,823.36",BUCKLAND CARE LTD
Revenue,Adult Services,Adult Social Care,Support - Memory /Cognition-older people (65+),5105683064,20.04.2016,Memory & Cognition Residential 65+,Charges from Independent Providers,"1,823.36",BUCKLAND CARE LTD
Revenue,Adult Services,Adult Social Care,Support - Memory /Cognition-older people (65+),5105683064,20.04.2016,Memory & Cognition Residential 65+,Charges from Independent Providers,"1,823.36",BUCKLAND CARE LTD
Revenue,Adult Services,Adult Social Care,Support - Memory /Cognition-older people (65+),5105683064,20.04.2016,Memory & Cognition Residential 65+,Charges from Independent Providers,"2,143.40",BUCKLAND CARE LTD
Revenue,Adult Services,Adult Social Care,Mental Health Support-older people (65+),5105683064,20.04.2016,Mental Health Residential 65+,Charges from Independent Providers,"2,143.40",BUCKLAND CARE LTD
Revenue,Adult Services,Balance Sheet,Balance Sheet,5105683064,20.04.2016,REDACTED PERSONAL DATA,Order Settlement to Bal Sht GL,"1,740.76",BUCKLAND CARE LTD
Revenue,Adult Services,Balance Sheet,Balance Sheet,5105683064,20.04.2016,REDACTED PERSONAL DATA,Order Settlement to Bal Sht GL,"2,143.40",BUCKLAND CARE LTD
Revenue,Adult Services,Balance Sheet,Balance Sheet,5105682375,08.04.2016,REDACTED PERSONAL DATA,Order Settlement to Bal Sht GL,"2,143.40",BUCKLAND CARE LTD
Revenue,Adult Services,Balance Sheet,Balance Sheet,5105683064,20.04.2016,REDACTED PERSONAL DATA,Order Settlement to Bal Sht GL,"2,143.40",BUCKLAND CARE LTD
Revenue,Adult Services,Adult Social Care,Physical Support - adults (18-64),5105683050,20.04.2016,Physical Support Nursing 18-64,Charges from Independent Providers,"2,854.88",BUCKLAND CARE LTD
Revenue,Adult Services,Adult Social Care,Physical Support - adults (18-64),5105683050,20.04.2016,Physical Support Nursing 18-64,Charges from Independent Providers,"2,854.88",BUCKLAND CARE LTD
Revenue,Adult Services,Adult Social Care,Physical Support - older people (65+),5105683050,20.04.2016,Physical Support Nursing 65+,Charges from Independent Providers,"2,854.88",BUCKLAND CARE LTD
Revenue,Adult Services,Adult Social Care,Physical Support - older people (65+),5105681935,06.04.2016,Physical Support Nursing 65+,Charges from Independent Providers,"1,631.36",BUCKLAND CARE LTD
Revenue,Adult Services,Adult Social Care,Physical Support - older people (65+),5105683050,20.04.2016,Physical Support Nursing 65+,Charges from Independent Providers,"2,854.88",BUCKLAND CARE LTD
Revenue,Adult Services,Adult Social Care,Physical Support - older people (65+),5105683050,20.04.2016,Physical Support Nursing 65+,Charges from Independent Providers,"2,854.88",BUCKLAND CARE LTD
Revenue,Adult Services,Adult Social Care,Physical Support - older people (65+),5105683050,20.04.2016,Physical Support Nursing 65+,Charges from Independent Providers,"2,854.88",BUCKLAND CARE LTD
Revenue,Adult Services,Adult Social Care,Support - Memory /Cognition-older people (65+),5105683050,20.04.2016,Memory & Cognition Nursing 65+,Charges from Independent Providers,"2,854.88",BUCKLAND CARE LTD
Revenue,Adult Services,Adult Social Care,Support - Memory /Cognition-older people (65+),5105683050,20.04.2016,Memory & Cognition Nursing 65+,Charges from Independent Providers,"2,854.88",BUCKLAND CARE LTD
Revenue,Adult Services,Adult Social Care,Support - Memory /Cognition-older people (65+),5105683050,20.04.2016,Memory & Cognition Nursing 65+,Charges from Independent Providers,"2,854.88",BUCKLAND CARE LTD
Revenue,Adult Services,Adult Social Care,Support - Memory /Cognition-older people (65+),5105683050,20.04.2016,Memory & Cognition Nursing 65+,Charges from Independent Providers,"2,854.88",BUCKLAND CARE LTD
Revenue,Adult Services,Adult Social Care,Support - Memory /Cognition-older people (65+),5105683050,20.04.2016,Memory & Cognition Nursing 65+,Charges from Independent Providers,"2,854.88",BUCKLAND CARE LTD
Revenue,Adult Services,Adult Social Care,Support - Memory /Cognition-older people (65+),5105683050,20.04.2016,Memory & Cognition Nursing 65+,Charges from Independent Providers,"2,854.88",BUCKLAND CARE LTD
Revenue,Adult Services,Adult Social Care,Support - Memory /Cognition-older people (65+),5105683050,20.04.2016,Memory & Cognition Nursing 65+,Regular Respite Care,"2,854.88",BUCKLAND CARE LTD
Revenue,Adult Services,Adult Social Care,Commissioning & Service Delivery,5105683050,20.04.2016,"Funded Nursing Care, Registered Nursing Care Contribution",Charges from Independent Providers,448,BUCKLAND CARE LTD
Revenue,Adult Services,Adult Social Care,Commissioning & Service Delivery,5105683050,20.04.2016,"Funded Nursing Care, Registered Nursing Care Contribution",Charges from Independent Providers,448,BUCKLAND CARE LTD
Revenue,Adult Services,Adult Social Care,Commissioning & Service Delivery,5105683050,20.04.2016,"Funded Nursing Care, Registered Nursing Care Contribution",Charges from Independent Providers,448,BUCKLAND CARE LTD
Revenue,Adult Services,Adult Social Care,Commissioning & Service Delivery,5105683050,20.04.2016,"Funded Nursing Care, Registered Nursing Care Contribution",Charges from Independent Providers,448,BUCKLAND CARE LTD
Revenue,Adult Services,Adult Social Care,Commissioning & Service Delivery,5105683050,20.04.2016,"Funded Nursing Care, Registered Nursing Care Contribution",Charges from Independent Providers,448,BUCKLAND CARE LTD
Revenue,Adult Services,Adult Social Care,Commissioning & Service Delivery,5105683050,20.04.2016,"Funded Nursing Care, Registered Nursing Care Contribution",Charges from Independent Providers,448,BUCKLAND CARE LTD
Revenue,Adult Services,Adult Social Care,Commissioning & Service Delivery,5105683050,20.04.2016,"Funded Nursing Care, Registered Nursing Care Contribution",Charges from Independent Providers,448,BUCKLAND CARE LTD
Revenue,Adult Services,Adult Social Care,Commissioning & Service Delivery,5105683050,20.04.2016,"Funded Nursing Care, Registered Nursing Care Contribution",Charges from Independent Providers,448,BUCKLAND CARE LTD
Revenue,Adult Services,Adult Social Care,Commissioning & Service Delivery,5105683050,20.04.2016,"Funded Nursing Care, Registered Nursing Care Contribution",Charges from Independent Providers,448,BUCKLAND CARE LTD
Revenue,Adult Services,Balance Sheet,Balance Sheet,5105683050,20.04.2016,REDACTED PERSONAL DATA,Order Settlement to Bal Sht GL,"2,406.88",BUCKLAND CARE LTD
Revenue,Adult Services,Adult Social Care,Physical Support - older people (65+),5105683314,20.04.2016,Physical Support Residential 65+,Charges from Independent Providers,"1,961.68",BUPA CARE HOME (BNH) LTD
Revenue,Adult Services,Adult Social Care,Central Codes (to be reallocated),5105681708,01.04.2016,Mental Health Residential Care,Charges from Independent Providers,"1,863.42",BUPA CARE HOMES LTD
Revenue,Adult Services,Adult Social Care,Mental Health Support-older people (65+),5105683584,20.04.2016,Mental Health Residential 65+,Charges from Independent Providers,"2,006.76",BUPA CARE HOMES LTD
Capital,Place,Capital,Capital,5105684806,29.04.2016,Cowes Floating Brdge,Payment to Contractors - Capital,"5,354.38",BURNESS CORLETT
Capital,Place,Capital,Capital,5105681798,01.04.2016,Parks and Gardens Capital,Payment to Contractors - Capital,335,C & J GROUND MAINTENANCE
Revenue,Childrens Services,Children's & Education Services,Children Looked After,5105682681,15.04.2016,Children placed with Family&Friends,Boarding Out Allowances,117.51,REDACTED PERSONAL DATA
Revenue,Childrens Services,Children's & Education Services,Children Looked After,5105682681,15.04.2016,Children placed with Family&Friends,Boarding Out Allowances,164.3,REDACTED PERSONAL DATA
Revenue,Childrens Services,Children's & Education Services,Children Looked After,5105682230,08.04.2016,Children placed with Family&Friends,Boarding Out Allowances,164.3,REDACTED PERSONAL DATA
Revenue,Childrens Services,Children's & Education Services,Children Looked After,5105682230,08.04.2016,Children placed with Family&Friends,Boarding Out Allowances,117.51,REDACTED PERSONAL DATA
Revenue,Childrens Services,Children's & Education Services,Children Looked After,5105684677,29.04.2016,Children placed with Family&Friends,Boarding Out Allowances,117.51,REDACTED PERSONAL DATA
Revenue,Childrens Services,Children's & Education Services,Children Looked After,5105684039,22.04.2016,Children placed with Family&Friends,Boarding Out Allowances,117.51,REDACTED PERSONAL DATA
Revenue,Childrens Services,Children's & Education Services,Children Looked After,5105684039,22.04.2016,Children placed with Family&Friends,Boarding Out Allowances,164.3,REDACTED PERSONAL DATA
Revenue,Childrens Services,Children's & Education Services,Children Looked After,5105684677,29.04.2016,Children placed with Family&Friends,Boarding Out Allowances,164.3,REDACTED PERSONAL DATA
Revenue,Childrens Services,Children's & Education Services,Children Looked After,5105682663,15.04.2016,Special Guardianship Order Costs,Support Children,125.79,REDACTED PERSONAL DATA
Revenue,Childrens Services,Children's & Education Services,Children Looked After,5105682211,08.04.2016,Special Guardianship Order Costs,Support Children,125.79,REDACTED PERSONAL DATA
Revenue,Childrens Services,Children's & Education Services,Children Looked After,5105683994,22.04.2016,Special Guardianship Order Costs,Support Children,125.79,REDACTED PERSONAL DATA
Revenue,Childrens Services,Children's & Education Services,Children Looked After,5105684659,29.04.2016,Special Guardianship Order Costs,Support Children,125.79,REDACTED PERSONAL DATA
Revenue,Childrens Services,Children's & Education Services,Children Looked After,5105682705,15.04.2016,Children placed with Family&Friends,Boarding Out Allowances,144.43,REDACTED PERSONAL DATA
Revenue,Childrens Services,Children's & Education Services,Children Looked After,5105682254,08.04.2016,Children placed with Family&Friends,Boarding Out Allowances,144.43,REDACTED PERSONAL DATA
Revenue,Childrens Services,Children's & Education Services,Children Looked After,5105684701,29.04.2016,Children placed with Family&Friends,Boarding Out Allowances,144.43,REDACTED PERSONAL DATA
Revenue,Childrens Services,Children's & Education Services,Children Looked After,5105684068,22.04.2016,Children placed with Family&Friends,Boarding Out Allowances,144.43,REDACTED PERSONAL DATA
Revenue,Childrens Services,Children's & Education Services,Children Looked After,5105682691,15.04.2016,Adoption Costs,Support Children,161.49,REDACTED PERSONAL DATA
Revenue,Childrens Services,Children's & Education Services,Children Looked After,5105682240,08.04.2016,Adoption Costs,Support Children,161.49,REDACTED PERSONAL DATA
Revenue,Childrens Services,Children's & Education Services,Children Looked After,5105682240,08.04.2016,Adoption Costs,Support Children,132.69,REDACTED PERSONAL DATA
Revenue,Childrens Services,Children's & Education Services,Children Looked After,5105682691,15.04.2016,Adoption Costs,Support Children,132.69,REDACTED PERSONAL DATA
Revenue,Childrens Services,Children's & Education Services,Children Looked After,5105684687,29.04.2016,Adoption Costs,Support Children,161.49,REDACTED PERSONAL DATA
Revenue,Childrens Services,Children's & Education Services,Children Looked After,5105684051,22.04.2016,Adoption Costs,Support Children,161.49,REDACTED PERSONAL DATA
Revenue,Childrens Services,Children's & Education Services,Children Looked After,5105684051,22.04.2016,Adoption Costs,Support Children,132.69,REDACTED PERSONAL DATA
Revenue,Childrens Services,Children's & Education Services,Children Looked After,5105684687,29.04.2016,Adoption Costs,Support Children,132.69,REDACTED PERSONAL DATA
Revenue,Resources,Central Services,Support Services,5105684038,22.04.2016,Staff Benefits,Payment to Private Contractors,166.5,REDACTED PERSONAL DATA
Revenue,Childrens Services,Children's & Education Services,Children Looked After,5105682675,15.04.2016,Special Guardianship Order Costs,Support Children,125.79,REDACTED PERSONAL DATA
Revenue,Childrens Services,Children's & Education Services,Children Looked After,5105682223,08.04.2016,Special Guardianship Order Costs,Support Children,125.79,REDACTED PERSONAL DATA
Revenue,Childrens Services,Children's & Education Services,Children Looked After,5105684671,29.04.2016,Special Guardianship Order Costs,Support Children,125.79,REDACTED PERSONAL DATA
Revenue,Childrens Services,Children's & Education Services,Children Looked After,5105684032,22.04.2016,Special Guardianship Order Costs,Support Children,125.79,REDACTED PERSONAL DATA
Revenue,Childrens Services,Children's & Education Services,Children Looked After,5105682251,08.04.2016,In-house Fostering,Boarding Out Allowances,204.81,REDACTED PERSONAL DATA
Revenue,Childrens Services,Children's & Education Services,Children Looked After,5105682702,15.04.2016,In-house Fostering,Boarding Out Allowances,204.81,REDACTED PERSONAL DATA
Revenue,Childrens Services,Children's & Education Services,Children Looked After,5105682702,15.04.2016,In-house Fostering,Boarding Out Allowances,204.81,REDACTED PERSONAL DATA
Revenue,Childrens Services,Children's & Education Services,Children Looked After,5105682251,08.04.2016,In-house Fostering,Boarding Out Allowances,204.81,REDACTED PERSONAL DATA
Revenue,Childrens Services,Children's & Education Services,Children Looked After,5105682251,08.04.2016,In-house Fostering,Boarding Out Allowances,204.81,REDACTED PERSONAL DATA
Revenue,Childrens Services,Children's & Education Services,Children Looked After,5105682702,15.04.2016,In-house Fostering,Boarding Out Allowances,204.81,REDACTED PERSONAL DATA
Revenue,Childrens Services,Children's & Education Services,Children Looked After,5105682702,15.04.2016,In-house Fostering,Boarding Out Allowances,100,REDACTED PERSONAL DATA
Revenue,Childrens Services,Children's & Education Services,Children Looked After,5105682251,08.04.2016,In-house Fostering,Boarding Out Allowances,100,REDACTED PERSONAL DATA
Revenue,Childrens Services,Children's & Education Services,Children Looked After,5105684064,22.04.2016,In-house Fostering,Boarding Out Allowances,204.81,REDACTED PERSONAL DATA
Revenue,Childrens Services,Children's & Education Services,Children Looked After,5105684698,29.04.2016,In-house Fostering,Boarding Out Allowances,204.81,REDACTED PERSONAL DATA
Revenue,Childrens Services,Children's & Education Services,Children Looked After,5105684698,29.04.2016,In-house Fostering,Boarding Out Allowances,204.81,REDACTED PERSONAL DATA
Revenue,Childrens Services,Children's & Education Services,Children Looked After,5105684064,22.04.2016,In-house Fostering,Boarding Out Allowances,204.81,REDACTED PERSONAL DATA
Revenue,Childrens Services,Children's & Education Services,Children Looked After,5105684064,22.04.2016,In-house Fostering,Boarding Out Allowances,204.81,REDACTED PERSONAL DATA
Revenue,Childrens Services,Children's & Education Services,Children Looked After,5105684698,29.04.2016,In-house Fostering,Boarding Out Allowances,204.81,REDACTED PERSONAL DATA
Revenue,Childrens Services,Children's & Education Services,Children Looked After,5105684698,29.04.2016,In-house Fostering,Boarding Out Allowances,100,REDACTED PERSONAL DATA
Revenue,Childrens Services,Children's & Education Services,Children Looked After,5105684064,22.04.2016,In-house Fostering,Boarding Out Allowances,100,REDACTED PERSONAL DATA
Revenue,Childrens Services,Children's & Education Services,Children Looked After,5105682214,08.04.2016,Adoption Costs,Support Children,168.39,REDACTED PERSONAL DATA
Revenue,Childrens Services,Children's & Education Services,Children Looked After,5105682214,08.04.2016,Adoption Costs,Support Children,207.73,REDACTED PERSONAL DATA
Revenue,Childrens Services,Children's & Education Services,Children Looked After,5105683997,22.04.2016,Adoption Costs,Support Children,168.39,REDACTED PERSONAL DATA
Revenue,Childrens Services,Children's & Education Services,Children Looked After,5105683997,22.04.2016,Adoption Costs,Support Children,207.73,REDACTED PERSONAL DATA
Revenue,Childrens Services,Children's & Education Services,Children Looked After,5105682666,15.04.2016,Adoption Costs,Support Children,168.39,REDACTED PERSONAL DATA
Revenue,Childrens Services,Children's & Education Services,Children Looked After,5105682666,15.04.2016,Adoption Costs,Support Children,207.73,REDACTED PERSONAL DATA
Revenue,Childrens Services,Children's & Education Services,Children Looked After,5105684662,29.04.2016,Adoption Costs,Support Children,168.39,REDACTED PERSONAL DATA
Revenue,Childrens Services,Children's & Education Services,Children Looked After,5105684662,29.04.2016,Adoption Costs,Support Children,207.73,REDACTED PERSONAL DATA
Revenue,Childrens Services,Children's & Education Services,Children Looked After,5105682720,15.04.2016,Special Guardianship Order Costs,Support Children,129.16,REDACTED PERSONAL DATA
Revenue,Childrens Services,Children's & Education Services,Children Looked After,5105682269,08.04.2016,Special Guardianship Order Costs,Support Children,129.16,REDACTED PERSONAL DATA
Revenue,Childrens Services,Children's & Education Services,Children Looked After,5105684083,22.04.2016,Special Guardianship Order Costs,Support Children,129.16,REDACTED PERSONAL DATA
Revenue,Childrens Services,Children's & Education Services,Children Looked After,5105684716,29.04.2016,Special Guardianship Order Costs,Support Children,129.16,REDACTED PERSONAL DATA
Revenue,Childrens Services,Children's & Education Services,Children Looked After,5105682187,08.04.2016,Leaving Care Costs,Support Children,120.89,REDACTED PERSONAL DATA
Revenue,Childrens Services,Children's & Education Services,Children Looked After,5105682639,15.04.2016,Leaving Care Costs,Support Children,120.89,REDACTED PERSONAL DATA
Revenue,Childrens Services,Children's & Education Services,Children Looked After,5105683970,22.04.2016,Leaving Care Costs,Support Children,120.89,REDACTED PERSONAL DATA
Revenue,Childrens Services,Children's & Education Services,Children Looked After,5105684635,29.04.2016,Leaving Care Costs,Support Children,120.89,REDACTED PERSONAL DATA
Revenue,Childrens Services,Children's & Education Services,Children Looked After,5105682187,08.04.2016,Leaving Care Costs,Accommodation Costs - Service Users,68.5,REDACTED PERSONAL DATA
Revenue,Childrens Services,Children's & Education Services,Children Looked After,5105682639,15.04.2016,Leaving Care Costs,Accommodation Costs - Service Users,68.5,REDACTED PERSONAL DATA
Revenue,Childrens Services,Children's & Education Services,Children Looked After,5105683970,22.04.2016,Leaving Care Costs,Accommodation Costs - Service Users,68.5,REDACTED PERSONAL DATA
Revenue,Childrens Services,Children's & Education Services,Children Looked After,5105684635,29.04.2016,Leaving Care Costs,Accommodation Costs - Service Users,68.5,REDACTED PERSONAL DATA
Revenue,Childrens Services,Children's & Education Services,Children Looked After,5105682187,08.04.2016,In-house Fostering,Boarding Out Allowances,249.15,REDACTED PERSONAL DATA
Revenue,Childrens Services,Children's & Education Services,Children Looked After,5105682187,08.04.2016,In-house Fostering,Boarding Out Allowances,15,REDACTED PERSONAL DATA
Revenue,Childrens Services,Children's & Education Services,Children Looked After,5105682639,15.04.2016,In-house Fostering,Boarding Out Allowances,249.15,REDACTED PERSONAL DATA
Revenue,Childrens Services,Children's & Education Services,Children Looked After,5105682639,15.04.2016,In-house Fostering,Boarding Out Allowances,15,REDACTED PERSONAL DATA
Revenue,Childrens Services,Children's & Education Services,Children Looked After,5105683970,22.04.2016,In-house Fostering,Boarding Out Allowances,249.15,REDACTED PERSONAL DATA
Revenue,Childrens Services,Children's & Education Services,Children Looked After,5105683970,22.04.2016,In-house Fostering,Boarding Out Allowances,15,REDACTED PERSONAL DATA
Revenue,Childrens Services,Children's & Education Services,Children Looked After,5105684635,29.04.2016,In-house Fostering,Boarding Out Allowances,249.15,REDACTED PERSONAL DATA
Revenue,Childrens Services,Children's & Education Services,Children Looked After,5105684635,29.04.2016,In-house Fostering,Boarding Out Allowances,15,REDACTED PERSONAL DATA
Revenue,Childrens Services,Children's & Education Services,Children Looked After,5105684652,29.04.2016,Children placed with Family&Friends,Boarding Out Allowances,249.15,REDACTED PERSONAL DATA
Revenue,Childrens Services,Children's & Education Services,Children Looked After,5105684652,29.04.2016,Children placed with Family&Friends,Boarding Out Allowances,135,REDACTED PERSONAL DATA
Revenue,Childrens Services,Children's & Education Services,Children Looked After,5105683987,22.04.2016,Children placed with Family&Friends,Boarding Out Allowances,249.15,REDACTED PERSONAL DATA
Revenue,Childrens Services,Children's & Education Services,Children Looked After,5105683987,22.04.2016,Children placed with Family&Friends,Boarding Out Allowances,135,REDACTED PERSONAL DATA
Revenue,Childrens Services,Children's & Education Services,Children Looked After,5105682656,15.04.2016,Children placed with Family&Friends,Boarding Out Allowances,249.15,REDACTED PERSONAL DATA
Revenue,Childrens Services,Children's & Education Services,Children Looked After,5105682656,15.04.2016,Children placed with Family&Friends,Boarding Out Allowances,135,REDACTED PERSONAL DATA
Revenue,Childrens Services,Children's & Education Services,Children Looked After,5105682204,08.04.2016,Children placed with Family&Friends,Boarding Out Allowances,249.15,REDACTED PERSONAL DATA
Revenue,Childrens Services,Children's & Education Services,Children Looked After,5105682204,08.04.2016,Children placed with Family&Friends,Boarding Out Allowances,135,REDACTED PERSONAL DATA
Revenue,Place,Environmental & Regulatory Services,Coast Protection,5105682047,06.04.2016,Coast Protection,Payment to Private Contractors,137.7,C N SERVICES
Revenue,Place,Environmental & Regulatory Services,Coast Protection,5105684440,27.04.2016,Coast Protection,Payment to Private Contractors,276.5,C N SERVICES
Revenue,Place,Highways and Transport Services,"Airports, Harbours & Toll Facilities",5105684426,27.04.2016,Ventnor Haven - General,Payment to Private Contractors,522.91,C N SERVICES
Revenue,Childrens Services,Children's & Education Services,Children Looked After,5105682181,08.04.2016,Children placed with Family&Friends,Regular Respite Care,140,REDACTED PERSONAL DATA
Revenue,Childrens Services,Children's & Education Services,Children Looked After,5105683964,22.04.2016,Children placed with Family&Friends,Regular Respite Care,140,REDACTED PERSONAL DATA
Revenue,Childrens Services,Children's & Education Services,Children Looked After,5105682234,08.04.2016,Special Guardianship Order Costs,Support Children,161.49,REDACTED PERSONAL DATA
Revenue,Childrens Services,Children's & Education Services,Children Looked After,5105682685,15.04.2016,Special Guardianship Order Costs,Support Children,161.49,REDACTED PERSONAL DATA
Revenue,Childrens Services,Children's & Education Services,Children Looked After,5105684043,22.04.2016,Special Guardianship Order Costs,Support Children,161.49,REDACTED PERSONAL DATA
Revenue,Childrens Services,Children's & Education Services,Children Looked After,5105684681,29.04.2016,Special Guardianship Order Costs,Support Children,161.49,REDACTED PERSONAL DATA
Revenue,Adult Services,Adult Social Care,Learning Disability Suppt-adults (18-64),5105683009,20.04.2016,Learning Disability Residential 18-64,Charges from Independent Providers,"1,936.76",REDACTED PERSONAL DATA
Revenue,Childrens Services,Children's & Education Services,Children Looked After,5105682209,08.04.2016,Adoption Costs,Support Children,132.69,REDACTED PERSONAL DATA
Revenue,Childrens Services,Children's & Education Services,Children Looked After,5105682661,15.04.2016,Adoption Costs,Support Children,132.69,REDACTED PERSONAL DATA
Revenue,Childrens Services,Children's & Education Services,Children Looked After,5105683992,22.04.2016,Adoption Costs,Support Children,132.69,REDACTED PERSONAL DATA
Revenue,Childrens Services,Children's & Education Services,Children Looked After,5105684657,29.04.2016,Adoption Costs,Support Children,132.69,REDACTED PERSONAL DATA
Revenue,Resources,Central Services,Support Services,5105683676,20.04.2016,ICT Contracts,Computer Maintenance,665,CADLINE LTD
Revenue,Childrens Services,Children's & Education Services,Children Looked After,5105681803,01.04.2016,Purchased Residential,Charges from Independent Providers,"20,071.85",CAMBIAN ASPERGER SYNDROME SERVICES LTD
Revenue,Adult Services,Adult Social Care,Central Codes (to be reallocated),5105681749,06.04.2016,Transitions Team Residential Care,Charges from Independent Providers,"48,609.47",CAMBIAN ASPERGER SYNDROME SERVICES LTD
Revenue,Childrens Services,Children's & Education Services,Children Looked After,5105681803,01.04.2016,NHS Funded Placements,Charges from Independent Providers,"2,077.62",CAMBIAN ASPERGER SYNDROME SERVICES LTD
Revenue,Childrens Services,Children's & Education Services,Post-16 Provision,5105681891,06.04.2016,Post 16 Independ. & Non-Maint. Special Schls & Independ. Specialist Provision,Charges from Independent Providers,"41,678.37",CAMBIAN ASPERGER SYNDROME SERVICES LTD
Revenue,Childrens Services,Children's & Education Services,Management & Support Services,5105681803,01.04.2016,Pre 16 Independ. & Non-Maint. Special Schls & Independ. Specialist Provision,Charges from Independent Providers,"22,149.47",CAMBIAN ASPERGER SYNDROME SERVICES LTD
Revenue,Childrens Services,Children's & Education Services,Children Looked After,5105684260,27.04.2016,Purchased Residential,Charges from Independent Providers,"31,240.84",CAMBIAN AUTISM SERVICES LTD
Revenue,Childrens Services,Children's & Education Services,Management & Support Services,5105684260,27.04.2016,Pre 16 Independ. & Non-Maint. Special Schls & Independ. Specialist Provision,Charges from Independent Providers,"18,347.79",CAMBIAN AUTISM SERVICES LTD
Revenue,Childrens Services,Children's & Education Services,Children Looked After,5105681846,20.04.2016,Purchased Residential,Charges from Independent Providers,"15,943.02",CAMBIAN CHILDCARE LTD
Revenue,Childrens Services,Children's & Education Services,Children Looked After,5105681849,20.04.2016,Purchased Residential,Charges from Independent Providers,"-12,342.98",CAMBIAN CHILDCARE LTD
Revenue,Childrens Services,Children's & Education Services,Management & Support Services,5105681846,20.04.2016,Independent Schools Non-Special Educational Needs,Charges from Independent Providers,"1,992.65",CAMBIAN CHILDCARE LTD
Revenue,Childrens Services,Children's & Education Services,Management & Support Services,5105681849,20.04.2016,Independent Schools Non-Special Educational Needs,Charges from Independent Providers,"-1,542.70",CAMBIAN CHILDCARE LTD
Revenue,Place,Central Services,Support Services,5105684792,29.04.2016,"Enterprise House, Newport",Cleaning Contracts,12.09,CANNON HYGIENE
Revenue,Place,Central Services,Support Services,5105684792,29.04.2016,"County Hall,Newport",Cleaning Contracts,105.73,CANNON HYGIENE
Revenue,Place,Central Services,Support Services,5105684792,29.04.2016,"Civic Centre,Sandown",Cleaning Contracts,11.05,CANNON HYGIENE
Revenue,Place,Central Services,Support Services,5105684792,29.04.2016,"Westridge, Ryde",Cleaning Contracts,5.2,CANNON HYGIENE
Revenue,Adult Services,Adult Social Care,Assistive Equipment & Technology,5105684792,29.04.2016,S75 Integrated Community Equipment Store,Cleaning Contracts,1.04,CANNON HYGIENE
Revenue,Adult Services,Adult Social Care,Learning Disab Supp (to be reallocated),5105684417,27.04.2016,31 Carter Avenue,Cleaning Contracts,8,CANNON HYGIENE
Revenue,Adult Services,Adult Social Care,Learning Disab Supp (to be reallocated),5105684792,29.04.2016,31 Carter Avenue,Cleaning Contracts,1.04,CANNON HYGIENE
Revenue,Adult Services,Adult Social Care,Learning Disab Supp (to be reallocated),5105681980,06.04.2016,31 Carter Avenue,Cleaning Contracts,12,CANNON HYGIENE
Revenue,Adult Services,Adult Social Care,Learning Disab Supp (to be reallocated),5105684792,29.04.2016,Overbrook,Cleaning Contracts,42.9,CANNON HYGIENE
Revenue,Adult Services,Adult Social Care,Learning Disab Supp (to be reallocated),5105684792,29.04.2016,Seagulls,Cleaning Contracts,1.04,CANNON HYGIENE
Revenue,Adult Services,Adult Social Care,Learning Disab Supp (to be reallocated),5105684417,27.04.2016,Seagulls,Cleaning Contracts,8,CANNON HYGIENE
Revenue,Adult Services,Adult Social Care,Learning Disab Supp (to be reallocated),5105681980,06.04.2016,Seagulls,Cleaning Contracts,12,CANNON HYGIENE
Revenue,Adult Services,Adult Social Care,Learning Disab Supp (to be reallocated),5105684792,29.04.2016,Plean Dene,Cleaning Contracts,109.03,CANNON HYGIENE
Revenue,Adult Services,Adult Social Care,Learning Disab Supp (to be reallocated),5105684792,29.04.2016,Saxonbury,Cleaning Contracts,120.25,CANNON HYGIENE
Revenue,Adult Services,Adult Social Care,Learning Disab Supp (to be reallocated),5105684417,27.04.2016,Saxonbury,Cleaning Contracts,4.8,CANNON HYGIENE
Revenue,Adult Services,Adult Social Care,Learning Disab Supp (to be reallocated),5105681980,06.04.2016,Saxonbury,Cleaning Contracts,4.8,CANNON HYGIENE
Revenue,Adult Services,Adult Social Care,Learning Disab Supp (to be reallocated),5105684792,29.04.2016,40 Venner Avenue,Cleaning Contracts,46.71,CANNON HYGIENE
Revenue,Adult Services,Adult Social Care,Learning Disab Supp (to be reallocated),5105684792,29.04.2016,Highmead,Cleaning Contracts,30.11,CANNON HYGIENE
Revenue,Adult Services,Adult Social Care,Learning Disab Supp (to be reallocated),5105684792,29.04.2016,The Laurels,Cleaning Contracts,30.12,CANNON HYGIENE
Revenue,Place,Central Services,Support Services,5105684792,29.04.2016,"Barrack Block, Sandown",Cleaning Contracts,4.16,CANNON HYGIENE
Revenue,Adult Services,Adult Social Care,Central Codes (to be reallocated),5105684792,29.04.2016,Adelaide Resource Centre,Cleaning Contracts,35.01,CANNON HYGIENE
Revenue,Adult Services,Adult Social Care,Learning Disab Supp (to be reallocated),5105684792,29.04.2016,Westminster House,Cleaning Contracts,49.23,CANNON HYGIENE
Revenue,Adult Services,Adult Social Care,Central Codes (to be reallocated),5105684792,29.04.2016,Mental Health Day Services,Cleaning Contracts,2.08,CANNON HYGIENE
Revenue,Adult Services,Adult Social Care,Central Codes (to be reallocated),5105684792,29.04.2016,Mental Health Day Services,Professional Services,4.16,CANNON HYGIENE
Revenue,Place,Cultural and Related Services,Library Service,5105684792,29.04.2016,Library HQ,Cleaning Contracts,3.12,CANNON HYGIENE
Revenue,Place,Cultural and Related Services,Library Service,5105684792,29.04.2016,Cowes Library,Cleaning Contracts,1.04,CANNON HYGIENE
Revenue,Place,Cultural and Related Services,Library Service,5105684792,29.04.2016,Freshwater West Wight Library,Cleaning Contracts,1.04,CANNON HYGIENE
Revenue,Place,Cultural and Related Services,Library Service,5105684792,29.04.2016,Newport Library,Cleaning Contracts,13.26,CANNON HYGIENE
Revenue,Place,Cultural and Related Services,Library Service,5105684792,29.04.2016,Ryde Library,Cleaning Contracts,5.29,CANNON HYGIENE
Revenue,Place,Cultural and Related Services,Library Service,5105684792,29.04.2016,Sandown Library,Cleaning Contracts,1.04,CANNON HYGIENE
Revenue,Place,Cultural and Related Services,Library Service,5105684792,29.04.2016,Ventnor Library,Cleaning Contracts,1.04,CANNON HYGIENE
Revenue,Childrens Services,Children's & Education Services,Other Education and Community Budget,5105684792,29.04.2016,Learning & Development Running Costs,Cleaning Contracts,5.2,CANNON HYGIENE
Revenue,Place,Cultural and Related Services,Culture and Heritage,5105684792,29.04.2016,Guildhall Museum,Cleaning Contracts,1.04,CANNON HYGIENE
Revenue,Place,Cultural and Related Services,Culture and Heritage,5105684792,29.04.2016,Dinosaur Isle Museum (Sandown Geology),Cleaning Contracts,11.53,CANNON HYGIENE
Revenue,Place,Cultural and Related Services,Recreation and Sport,5105684792,29.04.2016,The Heights,Cleaning Contracts,78.35,CANNON HYGIENE
Revenue,Place,Cultural and Related Services,Recreation and Sport,5105684792,29.04.2016,Medina Leisure Centre,Cleaning Contracts,38.91,CANNON HYGIENE
Revenue,Place,Cultural and Related Services,Recreation and Sport,5105684792,29.04.2016,Westridge Squash Courts,Cleaning Contracts,4.16,CANNON HYGIENE
Revenue,Childrens Services,Children's & Education Services,Special Schools & Alternative Provision,5105684792,29.04.2016,Workshop Initiative Support in Education,Cleaning Contracts,2.08,CANNON HYGIENE
Revenue,Childrens Services,Children's & Education Services,Special Schools & Alternative Provision,5105684792,29.04.2016,Island Learning Centre,Cleaning Contracts,6.24,CANNON HYGIENE
Revenue,Childrens Services,Children's & Education Services,Family Support Services,5105684792,29.04.2016,Contact Team,Cleaning Contracts,8.41,CANNON HYGIENE
Revenue,Childrens Services,Children's & Education Services,Management & Support Services,5105684792,29.04.2016,Specialist Service Business Admin,Cleaning Contracts,13.13,CANNON HYGIENE
Revenue,Childrens Services,Children's & Education Services,Children Looked After,5105684792,29.04.2016,Beaulieu House,Cleaning Contracts,156.3,CANNON HYGIENE
Revenue,Childrens Services,Children's & Education Services,Other Education and Community Budget,5105684792,29.04.2016,Branstone Farm Studies Centre,Cleaning Contracts,3.12,CANNON HYGIENE
Revenue,Place,Cultural and Related Services,Open Spaces,5105684792,29.04.2016,Fort Victoria,Cleaning Contracts,4.51,CANNON HYGIENE
Revenue,Place,Fire & Rescue Services,Fire fighting and Rescue Operations,5105684792,29.04.2016,Fire Technical Support,Cleaning Contracts,1.04,CANNON HYGIENE
Revenue,Place,Fire & Rescue Services,Fire fighting and Rescue Operations,5105684792,29.04.2016,Fire Technical Support,Cleaning Contracts,1.04,CANNON HYGIENE
Revenue,Place,Fire & Rescue Services,Fire fighting and Rescue Operations,5105684792,29.04.2016,Fire Technical Support,Cleaning Contracts,2.08,CANNON HYGIENE
Revenue,Place,Fire & Rescue Services,Fire fighting and Rescue Operations,5105684792,29.04.2016,Fire Technical Support,Cleaning Contracts,5.2,CANNON HYGIENE
Revenue,Place,Fire & Rescue Services,Fire fighting and Rescue Operations,5105684792,29.04.2016,Fire Technical Support,Cleaning Contracts,1.04,CANNON HYGIENE
Revenue,Place,Fire & Rescue Services,Fire fighting and Rescue Operations,5105684792,29.04.2016,Fire Technical Support,Cleaning Contracts,3.12,CANNON HYGIENE
Revenue,Place,Fire & Rescue Services,Fire fighting and Rescue Operations,5105684792,29.04.2016,Fire Technical Support,Cleaning Contracts,1.04,CANNON HYGIENE
Revenue,Place,Planning services,Management & Support Services,5105684792,29.04.2016,Planning Business Support,Cleaning Contracts,22.4,CANNON HYGIENE
Revenue,Place,Environmental & Regulatory Services,Service Management and Support Services,5105684792,29.04.2016,Regulatory Management & Admin Support,Cleaning Contracts,3.12,CANNON HYGIENE
Revenue,Place,Environmental & Regulatory Services,"Cemetery, Cremation & Mortuary Services",5105684792,29.04.2016,Crematorium,Cleaning Contracts,3.12,CANNON HYGIENE
Revenue,Place,Central Services,Support Services,5105683816,22.04.2016,Print Unit,Photocopying Costs,"1,840.87",CANON (UK) LTD
Revenue,Resources,Central Services,Support Services,5105684926,29.04.2016,Parking Services,Professional Services,100,CAPITA BUSINESS SERVICES LTD
Revenue,Childrens Services,Children's & Education Services,Management & Support Services,5105682079,06.04.2016,Licences & Subs - Departmental Supp,Payment to Private Contractors,"4,200.00",CAPITA BUSINESS SERVICES LTD
Revenue,Childrens Services,Children's & Education Services,Management & Support Services,5105682079,06.04.2016,Licences & Subs - Departmental Supp,Payment to Private Contractors,627,CAPITA BUSINESS SERVICES LTD
Revenue,Childrens Services,Children's & Education Services,Other Education and Community Budget,5105682076,06.04.2016,Children's Services Strategic Management,Licences,"12,378.00",CAPITA BUSINESS SERVICES LTD
Revenue,Childrens Services,Children's & Education Services,Other Education and Community Budget,5105682077,06.04.2016,Childrens Services Finance Team,Professional Services,209,CAPITA BUSINESS SERVICES LTD
Revenue,Place,Highways and Transport Services,Parking Services,5105684926,29.04.2016,Off-Street Parking Operations,Operational Equipment,100,CAPITA BUSINESS SERVICES LTD
Revenue,Childrens Services,Children's & Education Services,Family Support Services,5105681928,06.04.2016,Short Breaks,Grants to External Bodies,612.5,CARE CONNECT IOW CIC
Revenue,Childrens Services,Children's & Education Services,Family Support Services,5105681791,01.04.2016,Short Breaks,Grants to External Bodies,612.5,CARE CONNECT IOW CIC
Revenue,Childrens Services,Children's & Education Services,Management & Support Services,5105682876,20.04.2016,Special Educational Needs Transport,Taxis - Contract Hire,236.25,CARE CONNECT IOW CIC
Revenue,Childrens Services,Children's & Education Services,Management & Support Services,5105682877,20.04.2016,Special Educational Needs Transport,Taxis - Contract Hire,236.25,CARE CONNECT IOW CIC
Revenue,Childrens Services,Children's & Education Services,Safeguarding Children/Young Peoples Svs,5105682369,08.04.2016,Disabled Childrens Team,Charges from Independent Providers,118.72,CAREWATCH (SOUTHAMPTON NEW FOREST & IOW)
Revenue,Childrens Services,Children's & Education Services,Safeguarding Children/Young Peoples Svs,5105682063,06.04.2016,Disabled Childrens Team,Charges from Independent Providers,118.72,CAREWATCH (SOUTHAMPTON NEW FOREST & IOW)
Revenue,Childrens Services,Children's & Education Services,Family Support Services,5105682368,08.04.2016,S17 Disabled Children,Charges from Independent Providers,89.04,CAREWATCH (SOUTHAMPTON NEW FOREST & IOW)
Revenue,Childrens Services,Children's & Education Services,Family Support Services,5105682370,08.04.2016,Agency Domiciliary Care,Charges from Independent Providers,208.32,CAREWATCH (SOUTHAMPTON NEW FOREST & IOW)
Revenue,Childrens Services,Children's & Education Services,Family Support Services,5105682062,06.04.2016,Agency Domiciliary Care,Charges from Independent Providers,281.96,CAREWATCH (SOUTHAMPTON NEW FOREST & IOW)
Revenue,Childrens Services,Children's & Education Services,Family Support Services,5105682065,06.04.2016,Agency Domiciliary Care,Charges from Independent Providers,563.92,CAREWATCH (SOUTHAMPTON NEW FOREST & IOW)
Revenue,Childrens Services,Children's & Education Services,Family Support Services,5105682066,06.04.2016,Agency Domiciliary Care,Charges from Independent Providers,260.1,CAREWATCH (SOUTHAMPTON NEW FOREST & IOW)
Revenue,Childrens Services,Children's & Education Services,Family Support Services,5105682367,08.04.2016,Agency Domiciliary Care,Charges from Independent Providers,415.52,CAREWATCH (SOUTHAMPTON NEW FOREST & IOW)
Revenue,Childrens Services,Children's & Education Services,Children Looked After,5105682064,06.04.2016,In-house Fostering,Charges from Independent Providers,356.16,CAREWATCH (SOUTHAMPTON NEW FOREST & IOW)
Revenue,Childrens Services,Children's & Education Services,Children Looked After,5105682608,15.04.2016,Beaulieu House,Agency staff,"2,926.42",CAREWATCH (SOUTHAMPTON NEW FOREST & IOW)
Revenue,Childrens Services,Children's & Education Services,Management & Support Services,5105682556,15.04.2016,Pre 16 Independ. & Non-Maint. Special Schls & Independ. Specialist Provision,Transport of Clients,516.36,CAREWATCH (SOUTHAMPTON NEW FOREST & IOW)
Revenue,Childrens Services,Children's & Education Services,Management & Support Services,5105682555,15.04.2016,Pre 16 Independ. & Non-Maint. Special Schls & Independ. Specialist Provision,Transport of Clients,"-2,284.31",CAREWATCH (SOUTHAMPTON NEW FOREST & IOW)
Revenue,Childrens Services,Children's & Education Services,Management & Support Services,5105682557,15.04.2016,Pre 16 Independ. & Non-Maint. Special Schls & Independ. Specialist Provision,Transport of Clients,34.8,CAREWATCH (SOUTHAMPTON NEW FOREST & IOW)
Revenue,Resources,Central Services,Support Services,5105683935,22.04.2016,Staff Benefits,Payment to Private Contractors,11,CARISBROOKE CLEVER CLOGGS DAY CARE
Revenue,Resources,Central Services,Support Services,5105683935,22.04.2016,Staff Benefits,Payment to Private Contractors,150,CARISBROOKE CLEVER CLOGGS DAY CARE
Revenue,Resources,Central Services,Support Services,5105683935,22.04.2016,Staff Benefits,Payment to Private Contractors,243,CARISBROOKE CLEVER CLOGGS DAY CARE
Revenue,Adult Services,Adult Social Care,Physical Support - older people (65+),5105683532,20.04.2016,Physical Support Residential 65+,Charges from Independent Providers,"1,554.28",CARNALEA LIMITED
Revenue,Place,Cultural and Related Services,Culture and Heritage,5105684858,29.04.2016,Dinosaur Isle Museum (Sandown Geology),Stock Purchases,785.76,CASA GRANDE LIMITED
Revenue,Childrens Services,Children's & Education Services,Management & Support Services,5105682589,15.04.2016,Specialist Service Business Admin,Minor Works,48,CATER WIGHT
Revenue,Childrens Services,Children's & Education Services,Children Looked After,5105683713,20.04.2016,Beaulieu House,Minor Works,51.2,CATER WIGHT
Revenue,Place,Cultural and Related Services,Culture and Heritage,5105685003,29.04.2016,IOW Festival of Walking,Advertising & Publicity,"1,600.00",CELADOR RADIO LTD
Revenue,Resources,Central Services,Central Services to the Public,5105682404,13.04.2016,Council Tax,Postage,150,CFH DOCMAIL LTD
Revenue,Adult Services,Adult Social Care,Learning Disab Supp (to be reallocated),5105684411,27.04.2016,Saxonbury,Minor Works,590,CHANT LOCK & SECURITY SERVICE
Revenue,Childrens Services,Children's & Education Services,Other Education and Community Budget,5105684251,22.04.2016,SEND Independent Advice & Support,Security of Buildings,324,CHANT LOCK & SECURITY SERVICE
Revenue,Place,Environmental & Regulatory Services,Regulatory Services,5105682794,20.04.2016,Public Conveniences - General,Property Services - Planned Maintenance,199.91,CHANT LOCK & SECURITY SERVICE
Revenue,Place,Cultural and Related Services,Open Spaces,5105684408,27.04.2016,Open space lettings,Payment to Private Contractors,156.82,CHANT LOCK & SECURITY SERVICE
Revenue,Place,Cultural and Related Services,Open Spaces,5105683858,22.04.2016,Ryde Depot,Payment to Private Contractors,137.42,CHANT LOCK & SECURITY SERVICE
Revenue,Adult Services,Adult Social Care,Learning Disab Supp (to be reallocated),5105682812,15.04.2016,Plean Dene,Catering Purchases,49.2,CHAPEL NURSERIES
Revenue,Adult Services,Adult Social Care,Learning Disab Supp (to be reallocated),5105682919,15.04.2016,Plean Dene,Catering Purchases,48.6,CHAPEL NURSERIES
Revenue,Adult Services,Adult Social Care,Learning Disab Supp (to be reallocated),5105684775,29.04.2016,Plean Dene,Catering Purchases,40.3,CHAPEL NURSERIES
Revenue,Adult Services,Adult Social Care,Learning Disab Supp (to be reallocated),5105682887,15.04.2016,Plean Dene,Catering Purchases,48.7,CHAPEL NURSERIES
Revenue,Adult Services,Adult Social Care,Learning Disab Supp (to be reallocated),5105682896,15.04.2016,Plean Dene,Catering Purchases,42.4,CHAPEL NURSERIES
Revenue,Adult Services,Adult Social Care,Learning Disab Supp (to be reallocated),5105684967,29.04.2016,Saxonbury,Catering Purchases,32.9,CHAPEL NURSERIES
Revenue,Adult Services,Adult Social Care,Learning Disab Supp (to be reallocated),5105682145,08.04.2016,Saxonbury,Catering Purchases,28.5,CHAPEL NURSERIES
Revenue,Adult Services,Adult Social Care,Learning Disab Supp (to be reallocated),5105682390,08.04.2016,Saxonbury,Catering Purchases,27.7,CHAPEL NURSERIES
Revenue,Adult Services,Adult Social Care,Learning Disab Supp (to be reallocated),5105682819,15.04.2016,Saxonbury,Catering Purchases,31.6,CHAPEL NURSERIES
Revenue,Adult Services,Adult Social Care,Learning Disab Supp (to be reallocated),5105682810,15.04.2016,Saxonbury,Catering Purchases,21.5,CHAPEL NURSERIES
Revenue,Adult Services,Adult Social Care,Central Codes (to be reallocated),5105682414,08.04.2016,Gouldings Resource Centre,Catering Purchases,297.6,CHAPEL NURSERIES
Revenue,Public Health,Public Health,Discretionary,5105684458,27.04.2016,Dental Public Health,Payment to Private Contractors,"9,952.00",CHARTWELLS
Revenue,Childrens Services,Children's & Education Services,Special Schools & Alternative Provision,5105684291,27.04.2016,Island Learning Centre,Schools Catering Contract,209.1,CHARTWELLS
Revenue,Childrens Services,Children's & Education Services,Special Schools & Alternative Provision,5105684291,27.04.2016,Island Learning Centre,Schools Catering Contract,311.6,CHARTWELLS
Revenue,Childrens Services,Children's & Education Services,Special Schools & Alternative Provision,5105684291,27.04.2016,Island Learning Centre,Schools Catering Contract,12.7,CHARTWELLS
Revenue,Resources,Central Services,Support Services,5105684169,21.04.2016,Staff Benefits,Payment to Private Contractors,-243,CHATTERBOX NURSERY LTD
Revenue,Resources,Central Services,Support Services,5105684227,22.04.2016,Staff Benefits,Payment to Private Contractors,38.5,CHATTERBOX NURSERY LTD
Revenue,Resources,Central Services,Support Services,5105684004,21.04.2016,Staff Benefits,Payment to Private Contractors,243,CHATTERBOX NURSERY LTD
Revenue,Resources,Central Services,Support Services,5105684227,22.04.2016,Staff Benefits,Payment to Private Contractors,175,CHATTERBOX NURSERY LTD
Revenue,Resources,Central Services,Support Services,5105684004,21.04.2016,Staff Benefits,Payment to Private Contractors,175,CHATTERBOX NURSERY LTD
Revenue,Resources,Central Services,Support Services,5105684169,21.04.2016,Staff Benefits,Payment to Private Contractors,-175,CHATTERBOX NURSERY LTD
Revenue,Resources,Central Services,Support Services,5105684227,22.04.2016,Staff Benefits,Payment to Private Contractors,236,CHATTERBOX NURSERY LTD
Revenue,Resources,Central Services,Support Services,5105684169,21.04.2016,Staff Benefits,Payment to Private Contractors,-236,CHATTERBOX NURSERY LTD
Revenue,Resources,Central Services,Support Services,5105684004,21.04.2016,Staff Benefits,Payment to Private Contractors,236,CHATTERBOX NURSERY LTD
Revenue,Resources,Central Services,Support Services,5105684169,21.04.2016,Staff Benefits,Payment to Private Contractors,-237.35,CHATTERBOX NURSERY LTD
Revenue,Resources,Central Services,Support Services,5105684004,21.04.2016,Staff Benefits,Payment to Private Contractors,237.35,CHATTERBOX NURSERY LTD
Revenue,Resources,Central Services,Support Services,5105684227,22.04.2016,Staff Benefits,Payment to Private Contractors,237.35,CHATTERBOX NURSERY LTD
Revenue,Resources,Central Services,Support Services,5105684004,21.04.2016,Staff Benefits,Payment to Private Contractors,116.67,CHATTERBOX NURSERY LTD
Revenue,Resources,Central Services,Support Services,5105684169,21.04.2016,Staff Benefits,Payment to Private Contractors,-116.67,CHATTERBOX NURSERY LTD
Revenue,Resources,Central Services,Support Services,5105684004,21.04.2016,Staff Benefits,Payment to Private Contractors,237.25,CHATTERBOX NURSERY LTD
Revenue,Resources,Central Services,Support Services,5105684169,21.04.2016,Staff Benefits,Payment to Private Contractors,-237.25,CHATTERBOX NURSERY LTD
Revenue,Resources,Central Services,Support Services,5105684227,22.04.2016,Staff Benefits,Payment to Private Contractors,237.25,CHATTERBOX NURSERY LTD
Revenue,Place,Cultural and Related Services,Culture and Heritage,5105684295,27.04.2016,Dinosaur Isle Museum (Sandown Geology),Stock Purchases,312.72,CHEATWELL GAMES
Revenue,Resources,Central Services,Support Services,5105684016,22.04.2016,Staff Benefits,Payment to Private Contractors,243,CHEEKY CHIMPS CHILDCARE
Revenue,Adult Services,Adult Social Care,Physical Support - older people (65+),5105683015,20.04.2016,Physical Support Residential 65+,Charges from Independent Providers,"1,823.36",CHERRY TREES I.W. LTD
Revenue,Adult Services,Adult Social Care,Physical Support - older people (65+),5105683015,20.04.2016,Physical Support Residential 65+,Charges from Independent Providers,"2,143.40",CHERRY TREES I.W. LTD
Revenue,Adult Services,Adult Social Care,Physical Support - older people (65+),5105683015,20.04.2016,Physical Support Residential 65+,Charges from Independent Providers,"1,740.76",CHERRY TREES I.W. LTD
Revenue,Adult Services,Adult Social Care,Physical Support - older people (65+),5105683015,20.04.2016,Physical Support Residential 65+,Charges from Independent Providers,"2,143.40",CHERRY TREES I.W. LTD
Revenue,Adult Services,Adult Social Care,Physical Support - older people (65+),5105684465,27.04.2016,Physical Support Residential 65+,Charges from Independent Providers,909.86,CHERRY TREES I.W. LTD
Revenue,Adult Services,Adult Social Care,Physical Support - older people (65+),5105684465,27.04.2016,Physical Support Residential 65+,Charges from Independent Providers,"1,819.72",CHERRY TREES I.W. LTD
Revenue,Adult Services,Adult Social Care,Support - Memory /Cognition-older people (65+),5105683015,20.04.2016,Memory & Cognition Residential 65+,Charges from Independent Providers,"1,740.76",CHERRY TREES I.W. LTD
Revenue,Adult Services,Adult Social Care,Mental Health Support-older people (65+),5105683015,20.04.2016,Mental Health Residential 65+,Charges from Independent Providers,"1,823.36",CHERRY TREES I.W. LTD
Revenue,Childrens Services,Children's & Education Services,Other Education and Community Budget,5105684476,27.04.2016,Workforce Development - Early Years,Training,995,CHILDCARE CONSULTANCY LTD
Revenue,Childrens Services,Children's & Education Services,Other Education and Community Budget,5105684476,27.04.2016,Workforce Development - Early Years,Training,271.89,CHILDCARE CONSULTANCY LTD
Revenue,Resources,Central Services,Support Services,5105683937,22.04.2016,Staff Benefits,Payment to Private Contractors,120.25,CHILLERTON & ROOKLEY CP SCHOOL
Revenue,Resources,Central Services,Support Services,5105683937,22.04.2016,Staff Benefits,Payment to Private Contractors,10,CHILLERTON & ROOKLEY CP SCHOOL
Revenue,Resources,Central Services,Support Services,5105683937,22.04.2016,Staff Benefits,Payment to Private Contractors,110,CHILLERTON & ROOKLEY CP SCHOOL
Revenue,Resources,Central Services,Support Services,5105683937,22.04.2016,Staff Benefits,Payment to Private Contractors,180,CHILLERTON & ROOKLEY CP SCHOOL
Revenue,Childrens Services,Children's & Education Services,Other Education and Community Budget,5105684268,27.04.2016,Workforce Development Schools,Training,327.08,CHIMP MANAGEMENT LTD
Revenue,Adult Services,Adult Social Care,Mental Health Support - adults (18-64),5105683000,20.04.2016,Mental Health Residential 18-64,Charges from Independent Providers,"2,898.00",CHOICE SUPPORT
Revenue,Adult Services,Adult Social Care,Mental Health Support-older people (65+),5105683000,20.04.2016,Mental Health Residential 65+,Charges from Independent Providers,"2,898.00",CHOICE SUPPORT
Revenue,Childrens Services,Children's & Education Services,Safeguarding Children/Young Peoples Svs,5105683699,20.04.2016,Court Work & Consultancy Services,Professional Services,100,CHURCHERS BOLITHO WAY
Revenue,Resources,Central Services,Support Services,5105685030,29.04.2016,Financial Management Overheads,Publications,380,CIPFA BUSINESS LTD
Revenue,Resources,Central Services,Support Services,5105681741,01.04.2016,Financial Management Overheads,Publications,"5,720.00",CIPFA BUSINESS LTD
Revenue,Resources,Central Services,Support Services,5105681861,01.04.2016,Financial Management Overheads,Professional Subscriptions,"3,570.00",CIPFA BUSINESS LTD
Revenue,Childrens Services,Adult Social Care,Information & Early Intervention,5105684448,27.04.2016,Adult Social Care - Workforce Development,Training,"2,375.00",CIS ASSESSMENT.CO.UK
Revenue,Childrens Services,Children's & Education Services,Other Education and Community Budget,5105684373,27.04.2016,Adult Community Learning,Licences,20.6,CITY AND GUILDS
Revenue,Childrens Services,Children's & Education Services,Other Education and Community Budget,5105684373,27.04.2016,Adult Community Learning,Licences,20.6,CITY AND GUILDS
Revenue,Childrens Services,Children's & Education Services,Other Education and Community Budget,5105684373,27.04.2016,Adult Community Learning,Licences,20.6,CITY AND GUILDS
Revenue,Childrens Services,Children's & Education Services,Management & Support Services,5105682365,08.04.2016,Support for Inclusion - Service Recharge,Schools Examination Fees,175,CITY AND GUILDS
Revenue,Childrens Services,Children's & Education Services,Management & Support Services,5105682365,08.04.2016,Support for Inclusion - Service Recharge,Schools Examination Fees,70,CITY AND GUILDS
Revenue,Childrens Services,Children's & Education Services,Management & Support Services,5105682365,08.04.2016,Support for Inclusion - Service Recharge,Schools Examination Fees,60,CITY AND GUILDS
Revenue,Place,Fire & Rescue Services,Fire fighting and Rescue Operations,5105684453,27.04.2016,Fire Technical Support,Vehicle Maintenance Costs,9.57,CITY ELECTRICAL FACTORS LTD
Revenue,Place,Cultural and Related Services,Service Management and Support Services,5105682052,06.04.2016,Leisure Access System,Payment to Private Contractors,"5,841.34",CLARITY RETAIL SYSTEMS LTD
Capital,Childrens Services,Capital,Capital,5105683718,20.04.2016,Administration and Inspection Schemes,Payment to Contractors - Capital,"2,525.91",CLARKES MECHANICAL LTD
Capital,Place,Capital,Capital,5105684455,27.04.2016,Rights Of Way Capital Programme,Payment to Contractors - Capital,"5,000.00",CLIFFORD J. MATTHEWS LTD
Revenue,Place,Cultural and Related Services,Culture and Heritage,5105684797,29.04.2016,Medina Theatre,Professional Services,185.85,CLIVE CONWAY PRODUCTIONS
Revenue,Place,Cultural and Related Services,Culture and Heritage,5105684796,29.04.2016,Medina Theatre,Professional Services,"2,250.00",CLIVE CONWAY PRODUCTIONS
Revenue,Resources,Central Services,Support Services,5105684176,21.04.2016,Staff Benefits,Payment to Private Contractors,-40,CLUB COOL C/O COWES PRIMARY SCHOOL
Revenue,Resources,Central Services,Support Services,5105684229,22.04.2016,Staff Benefits,Payment to Private Contractors,40,CLUB COOL C/O COWES PRIMARY SCHOOL
Revenue,Resources,Central Services,Support Services,5105684010,21.04.2016,Staff Benefits,Payment to Private Contractors,40,CLUB COOL C/O COWES PRIMARY SCHOOL
Revenue,Resources,Central Services,Support Services,5105684176,21.04.2016,Staff Benefits,Payment to Private Contractors,-35,CLUB COOL C/O COWES PRIMARY SCHOOL
Revenue,Resources,Central Services,Support Services,5105684010,21.04.2016,Staff Benefits,Payment to Private Contractors,35,CLUB COOL C/O COWES PRIMARY SCHOOL
Revenue,Resources,Central Services,Support Services,5105684010,21.04.2016,Staff Benefits,Payment to Private Contractors,130,CLUB COOL C/O COWES PRIMARY SCHOOL
Revenue,Resources,Central Services,Support Services,5105684176,21.04.2016,Staff Benefits,Payment to Private Contractors,-130,CLUB COOL C/O COWES PRIMARY SCHOOL
Revenue,Resources,Central Services,Support Services,5105684229,22.04.2016,Staff Benefits,Payment to Private Contractors,130,CLUB COOL C/O COWES PRIMARY SCHOOL
Revenue,Place,Fire & Rescue Services,Fire fighting and Rescue Operations,5105682806,15.04.2016,Fire Control,Fire Comms - Radio,"10,058.84",COMMUNITIES AND LOCAL GOVERNMENT
Revenue,Adult Services,Adult Social Care,Commissioning & Service Delivery,5105684511,27.04.2016,"Communications, Engagement and PMO",Payments to Voluntary and Other Associations,"3,000.00",COMMUNITY ACTION ISLE OF WIGHT
Revenue,Adult Services,Adult Social Care,Commissioning & Service Delivery,5105684508,27.04.2016,Whole Integrated System Review,Payments to Voluntary and Other Associations,"15,000.00",COMMUNITY ACTION ISLE OF WIGHT
Revenue,Childrens Services,Children's & Education Services,Family Support Services,5105682345,08.04.2016,Short Breaks,Charges from Independent Providers,"1,192.00",COMMUNITY ACTION ISLE OF WIGHT
Revenue,Childrens Services,Children's & Education Services,Services for Young People,5105682114,06.04.2016,Youth Commissioning,Payments to Voluntary and Other Associations,"11,250.00",COMMUNITY ACTION ISLE OF WIGHT
Revenue,Childrens Services,Children's & Education Services,Services for Young People,5105682031,06.04.2016,Youth Commissioning,Payments to Voluntary and Other Associations,"11,250.00",COMMUNITY ACTION ISLE OF WIGHT
Revenue,Childrens Services,Children's & Education Services,Services for Young People,5105683877,20.04.2016,Youth Commissioning,Payments to Voluntary and Other Associations,"8,443.50",COMMUNITY ACTION ISLE OF WIGHT
Revenue,Childrens Services,Children's & Education Services,Children Looked After,5105684441,29.04.2016,Purchased Fostering,Charges from Independent Providers,"3,407.10",FAMILIES FOSTERING LTD
Revenue,Place,Cultural and Related Services,Recreation and Sport,5105682476,13.04.2016,Medina Leisure Centre,Maintenance of Operational Equipment,797.39,COMPLETE POOL CONTROLS LTD
Capital,Childrens Services,Capital,Capital,5105681789,01.04.2016,Administration and Inspection Schemes,Payment to Contractors - Capital,"-2,500.00",CONCEPT BUILDING SERVICES (SOUTHERN) LTD
Capital,Childrens Services,Capital,Capital,5105681787,01.04.2016,Administration and Inspection Schemes,Payment to Contractors - Capital,"7,970.85",CONCEPT BUILDING SERVICES (SOUTHERN) LTD
Revenue,Childrens Services,Children's & Education Services,Management & Support Services,5105684405,29.04.2016,Hearing Impaired Service,Professional Services,32.53,CONNEVANS LTD
Revenue,Place,Highways and Transport Services,"Airports, Harbours & Toll Facilities",5105684336,27.04.2016,Newport Harbour Account,Printing Costs,185,CONTEXT COPY & PRINT
Revenue,Adult Services,Adult Social Care,Commissioning & Service Delivery,5105683810,20.04.2016,Prevention & Early Intervention,Payment to Private Contractors,"1,000.00",CONTINUE AND BEGIN LTD
Revenue,Adult Services,Adult Social Care,Commissioning & Service Delivery,5105682521,20.04.2016,Prevention & Early Intervention,Payment to Private Contractors,"2,000.00",CONTINUE AND BEGIN LTD
Revenue,Adult Services,Adult Social Care,Physical Support - older people (65+),5105683055,20.04.2016,Physical Support Residential 65+,Charges from Independent Providers,"1,823.36",CORNELIA HEIGHTS CARE HOME
Revenue,Adult Services,Adult Social Care,Physical Support - older people (65+),5105683055,20.04.2016,Physical Support Residential 65+,Charges from Independent Providers,"1,823.36",CORNELIA HEIGHTS CARE HOME
Revenue,Adult Services,Adult Social Care,Physical Support - older people (65+),5105683055,20.04.2016,Physical Support Residential 65+,Charges from Independent Providers,373.02,CORNELIA HEIGHTS CARE HOME
Revenue,Adult Services,Adult Social Care,Physical Support - older people (65+),5105683055,20.04.2016,Physical Support Residential 65+,Charges from Independent Providers,"1,740.76",CORNELIA HEIGHTS CARE HOME
Revenue,Adult Services,Adult Social Care,Physical Support - older people (65+),5105683055,20.04.2016,Physical Support Residential 65+,Charges from Independent Providers,"1,740.76",CORNELIA HEIGHTS CARE HOME
Revenue,Adult Services,Adult Social Care,Physical Support - older people (65+),5105683055,20.04.2016,Physical Support Residential 65+,Charges from Independent Providers,"2,143.40",CORNELIA HEIGHTS CARE HOME
Revenue,Adult Services,Adult Social Care,Physical Support - older people (65+),5105683055,20.04.2016,Physical Support Residential 65+,Charges from Independent Providers,"2,143.40",CORNELIA HEIGHTS CARE HOME
Revenue,Adult Services,Adult Social Care,Physical Support - older people (65+),5105683055,20.04.2016,Physical Support Residential 65+,Charges from Independent Providers,"1,740.76",CORNELIA HEIGHTS CARE HOME
Revenue,Adult Services,Adult Social Care,Physical Support - older people (65+),5105683055,20.04.2016,Physical Support Residential 65+,Charges from Independent Providers,"1,740.76",CORNELIA HEIGHTS CARE HOME
Revenue,Adult Services,Adult Social Care,Support - Memory /Cognition-older people (65+),5105683055,20.04.2016,Memory & Cognition Residential 65+,Charges from Independent Providers,"1,823.36",CORNELIA HEIGHTS CARE HOME
Revenue,Adult Services,Adult Social Care,Support - Memory /Cognition-older people (65+),5105683055,20.04.2016,Memory & Cognition Residential 65+,Charges from Independent Providers,"2,143.40",CORNELIA HEIGHTS CARE HOME
Revenue,Adult Services,Adult Social Care,Support - Memory /Cognition-older people (65+),5105683055,20.04.2016,Memory & Cognition Residential 65+,Charges from Independent Providers,"1,740.76",CORNELIA HEIGHTS CARE HOME
Revenue,Adult Services,Adult Social Care,Support - Memory /Cognition-older people (65+),5105683055,20.04.2016,Memory & Cognition Residential 65+,Charges from Independent Providers,"1,823.36",CORNELIA HEIGHTS CARE HOME
Revenue,Adult Services,Adult Social Care,Support - Memory /Cognition-older people (65+),5105683055,20.04.2016,Memory & Cognition Residential 65+,Charges from Independent Providers,"1,823.36",CORNELIA HEIGHTS CARE HOME
Revenue,Adult Services,Adult Social Care,Physical Support - older people (65+),5105683053,20.04.2016,Physical Support Residential 65+,Charges from Independent Providers,"1,740.76",CORNELIA MANOR
Revenue,Adult Services,Adult Social Care,Physical Support - older people (65+),5105683053,20.04.2016,Physical Support Residential 65+,Charges from Independent Providers,"1,740.76",CORNELIA MANOR
Revenue,Adult Services,Adult Social Care,Physical Support - older people (65+),5105683053,20.04.2016,Physical Support Residential 65+,Charges from Independent Providers,"1,740.76",CORNELIA MANOR
Revenue,Adult Services,Adult Social Care,Physical Support - older people (65+),5105683053,20.04.2016,Physical Support Residential 65+,Charges from Independent Providers,"1,740.76",CORNELIA MANOR
Revenue,Adult Services,Adult Social Care,Physical Support - older people (65+),5105683053,20.04.2016,Physical Support Residential 65+,Charges from Independent Providers,"2,143.40",CORNELIA MANOR
Revenue,Adult Services,Adult Social Care,Physical Support - older people (65+),5105683053,20.04.2016,Physical Support Residential 65+,Charges from Independent Providers,"1,823.36",CORNELIA MANOR
Revenue,Adult Services,Adult Social Care,Support - Memory /Cognition-older people (65+),5105683053,20.04.2016,Memory & Cognition Residential 65+,Charges from Independent Providers,"1,823.36",CORNELIA MANOR
Revenue,Adult Services,Adult Social Care,Support - Memory /Cognition-older people (65+),5105683053,20.04.2016,Memory & Cognition Residential 65+,Charges from Independent Providers,"1,823.36",CORNELIA MANOR
Revenue,Adult Services,Adult Social Care,Mental Health Support-older people (65+),5105683053,20.04.2016,Mental Health Residential 65+,Charges from Independent Providers,"1,740.76",CORNELIA MANOR
Revenue,Adult Services,Adult Social Care,Mental Health Support-older people (65+),5105683053,20.04.2016,Mental Health Residential 65+,Charges from Independent Providers,"2,143.40",CORNELIA MANOR
Revenue,Adult Services,Adult Social Care,Social Support - Social Isolation/Other,5105683053,20.04.2016,Social Isolation/Other Residential,Charges from Independent Providers,"1,740.76",CORNELIA MANOR
Revenue,Resources,Central Services,Support Services,5105682354,08.04.2016,Litigation Costs,Legal Fees - Other Parties,"1,440.00",CORNERSTONE BARRISTERS
Revenue,Resources,Central Services,Support Services,5105684573,27.04.2016,Litigation Costs,Legal Fees - Other Parties,75,COURT ENFORCEMENT SERVICES LTD
Revenue,Place,Fire & Rescue Services,Fire fighting and Rescue Operations,5105682951,20.04.2016,Business Support  - Fire,Property Services - Day to day Maintenance,"1,650.00",COWAN CONSULTANCY LTD
Revenue,Childrens Services,Children's & Education Services,Children Looked After,5105681753,06.04.2016,Purchased Residential,Charges from Independent Providers,"28,366.66",COXLEASE SCHOOL PRIORY
